Body,Body Name,Invoice Receipt Date,Transaction Number,Supplier Name,Supplier Number,Purchase Invoice Number,Fiscal Period,Invoiced Fiscal Day Date,Amount (�),Source Desc,Cost Centre Code,Cost Center Name,Subjective Name,Subjective Code,Service Area Categorization,Directorate,Service,REDACT,REMOVE,REASON
http://www.havering.gov.uk,London Borough of Havering,11/04/2011,10000001,ACORN VILLAGES *CO11 2NJ,23,010411-030411,Apr-11,11/04/11,-30.49,Swift,A32155,Mental Health-Residential,Residential Placements,643460,ADULT SOCIAL CARE,Social Care & Learning,Adult Social Care,,,
http://www.havering.gov.uk,London Borough of Havering,11/04/2011,10000002,ACORN VILLAGES *CO11 2NJ,23,010411-030411,Apr-11,11/04/11,669.06,Swift,A32155,Mental Health-Residential,Residential Placements,643460,ADULT SOCIAL CARE,Social Care & Learning,Adult Social Care,,,
http://www.havering.gov.uk,London Borough of Havering,11/04/2011,10000003,ACORN VILLAGES *CO11 2NJ,23,040411-100411,Apr-11,11/04/11,-71.15,Swift,A32155,Mental Health-Residential,Residential Placements,643460,ADULT SOCIAL CARE,Social Care & Learning,Adult Social Care,,,
http://www.havering.gov.uk,London Borough of Havering,11/04/2011,10000004,ACORN VILLAGES *CO11 2NJ,23,040411-100411,Apr-11,11/04/11,1561.15,Swift,A32155,Mental Health-Residential,Residential Placements,643460,ADULT SOCIAL CARE,Social Care & Learning,Adult Social Care,,,
http://www.havering.gov.uk,London Borough of Havering,11/04/2011,10000005,ACORN VILLAGES *CO11 2NJ,23,110411-280411,Apr-11,11/04/11,-189.64,Swift,A32155,Mental Health-Residential,Residential Placements,643460,ADULT SOCIAL CARE,Social Care & Learning,Adult Social Care,,,
http://www.havering.gov.uk,London Borough of Havering,11/04/2011,10000006,ACORN VILLAGES *CO11 2NJ,23,110411-280411,Apr-11,11/04/11,4014.39,Swift,A32155,Mental Health-Residential,Residential Placements,643460,ADULT SOCIAL CARE,Social Care & Learning,Adult Social Care,,,
http://www.havering.gov.uk,London Borough of Havering,11/04/2011,10000007,TENNANT UK CLEANING SOLUTIONS LTD,182,963173567,Apr-11,,418.53,Tranfuel,A47560,Transport Workshop,Stock-Purchases,641220,ASSET MANAGEMENT,Finance & Commerce,Asset Management,,,
http://www.havering.gov.uk,London Borough of Havering,18/04/2011,10000008,TENNANT UK CLEANING SOLUTIONS LTD,182,963175463,Apr-11,,582.41,Tranfuel,A47560,Transport Workshop,Stock-Direct Purchases,641235,ASSET MANAGEMENT,Finance & Commerce,Asset Management,,,
http://www.havering.gov.uk,London Borough of Havering,11/04/2011,10000009,BLACK SWAN INTERNATIONAL LTD * CO16 9XL BELAMACANDA,432,040411-100411,Apr-11,11/04/11,-86.93,Swift,A31830,Phys Dis- Residential,Residential Placements,643460,ADULT SOCIAL CARE,Social Care & Learning,Adult Social Care,,,
http://www.havering.gov.uk,London Borough of Havering,11/04/2011,10000010,BLACK SWAN INTERNATIONAL LTD * CO16 9XL BELAMACANDA,432,040411-100411,Apr-11,11/04/11,596.77,Swift,A31830,Phys Dis- Residential,Residential Placements,643460,ADULT SOCIAL CARE,Social Care & Learning,Adult Social Care,,,
http://www.havering.gov.uk,London Borough of Havering,11/04/2011,10000011,BLACK SWAN INTERNATIONAL LTD * CO16 9XL BELAMACANDA,432,040411-100411,Apr-11,11/04/11,-71.15,Swift,A31830,Phys Dis- Residential,Residential Placements,643460,ADULT SOCIAL CARE,Social Care & Learning,Adult Social Care,,,
http://www.havering.gov.uk,London Borough of Havering,11/04/2011,10000012,BLACK SWAN INTERNATIONAL LTD * CO16 9XL BELAMACANDA,432,040411-100411,Apr-11,11/04/11,596.77,Swift,A31830,Phys Dis- Residential,Residential Placements,643460,ADULT SOCIAL CARE,Social Care & Learning,Adult Social Care,,,
http://www.havering.gov.uk,London Borough of Havering,11/04/2011,10000013,BLACK SWAN INTERNATIONAL LTD * CO16 9XL BELAMACANDA,432,110411-280411,Apr-11,11/04/11,-295.07,Swift,A31830,Phys Dis- Residential,Residential Placements,643460,ADULT SOCIAL CARE,Social Care & Learning,Adult Social Care,,,
http://www.havering.gov.uk,London Borough of Havering,11/04/2011,10000014,BLACK SWAN INTERNATIONAL LTD * CO16 9XL BELAMACANDA,432,110411-280411,Apr-11,11/04/11,1534.55,Swift,A31830,Phys Dis- Residential,Residential Placements,643460,ADULT SOCIAL CARE,Social Care & Learning,Adult Social Care,,,
http://www.havering.gov.uk,London Borough of Havering,11/04/2011,10000015,BLACK SWAN INTERNATIONAL LTD * CO16 9XL BELAMACANDA,432,110411-280411,Apr-11,11/04/11,-231.56,Swift,A31830,Phys Dis- Residential,Residential Placements,643460,ADULT SOCIAL CARE,Social Care & Learning,Adult Social Care,,,
http://www.havering.gov.uk,London Borough of Havering,11/04/2011,10000016,BLACK SWAN INTERNATIONAL LTD * CO16 9XL BELAMACANDA,432,110411-280411,Apr-11,11/04/11,1534.55,Swift,A31830,Phys Dis- Residential,Residential Placements,643460,ADULT SOCIAL CARE,Social Care & Learning,Adult Social Care,,,
http://www.havering.gov.uk,London Borough of Havering,11/04/2011,10000017,BLACK SWAN INTERNATIONAL LTD * CO16 9XL BELAMACANDA,432,110411-280411,Apr-11,11/04/11,-189.64,Swift,A31830,Phys Dis- Residential,Residential Placements,643460,ADULT SOCIAL CARE,Social Care & Learning,Adult Social Care,,,
http://www.havering.gov.uk,London Borough of Havering,11/04/2011,10000018,BLACK SWAN INTERNATIONAL LTD * CO16 9XL BELAMACANDA,432,110411-280411,Apr-11,11/04/11,1534.55,Swift,A31830,Phys Dis- Residential,Residential Placements,643460,ADULT SOCIAL CARE,Social Care & Learning,Adult Social Care,,,
http://www.havering.gov.uk,London Borough of Havering,12/04/2011,10000019,BRITISH TELECOM,648,F005,,,696.69,Manual Invoice Entry,A33815,Connexions Contract 2005-2006,Telephones,644210,CHILDREN & YOUNG PEOPLE,Social Care & Learning,Children & Young People,,,
http://www.havering.gov.uk,London Borough of Havering,11/04/2011,10000020,PARKCARE HOMES LTD * WR3 7NW * CRAEGMOOR HEALTHCARE CO LTD,937,040411-100411,Apr-11,11/04/11,-71.15,Swift,A32020,Residential Provision,Residential Placements,643460,ADULT SOCIAL CARE,Social Care & Learning,Adult Social Care,,,
http://www.havering.gov.uk,London Borough of Havering,11/04/2011,10000021,PARKCARE HOMES LTD * WR3 7NW * CRAEGMOOR HEALTHCARE CO LTD,937,040411-100411,Apr-11,11/04/11,885.31,Swift,A32020,Residential Provision,Residential Placements,643460,ADULT SOCIAL CARE,Social Care & Learning,Adult Social Care,,,
http://www.havering.gov.uk,London Borough of Havering,11/04/2011,10000022,PARKCARE HOMES LTD * WR3 7NW * CRAEGMOOR HEALTHCARE CO LTD,937,110411-280411,Apr-11,11/04/11,-189.64,Swift,A32020,Residential Provision,Residential Placements,643460,ADULT SOCIAL CARE,Social Care & Learning,Adult Social Care,,,
http://www.havering.gov.uk,London Borough of Havering,11/04/2011,10000023,PARKCARE HOMES LTD * WR3 7NW * CRAEGMOOR HEALTHCARE CO LTD,937,110411-280411,Apr-11,11/04/11,2276.51,Swift,A32020,Residential Provision,Residential Placements,643460,ADULT SOCIAL CARE,Social Care & Learning,Adult Social Care,,,
http://www.havering.gov.uk,London Borough of Havering,12/04/2011,10000024,CIPFA,1062,3047189,,,1540,Manual Invoice Entry,A43000,Debt Management,Professional Assistance,643150,CORPORATE FINANCIAL MATTERS,Finance & Commerce,Corporate Financial Matters,,,
http://www.havering.gov.uk,London Borough of Havering,12/04/2011,10000025,CIPFA,1062,3047189,Apr-11,30/03/11,3700,Manual Invoice Entry,A41000,Accountancy,Travel And Subsistence,646100,FINANCIAL SERVICES,Finance & Commerce,Financial Services,,,
http://www.havering.gov.uk,London Borough of Havering,13/04/2011,10000026,REDACTED PERSONAL DATA,1457,F/P A & B 07/04-20/04/2011,Apr-11,13/04/11,1428.84,Foster Parents,A38320,LAC Teams 1 & 2 Placements,In House Foster Care Placements,643420,CHILDREN & YOUNG PEOPLE,Social Care & Learning,Children & Young People,,,
http://www.havering.gov.uk,London Borough of Havering,27/04/2011,10000027,REDACTED PERSONAL DATA,1457,F/P A & B 21/04-04/05/2011,Apr-11,27/04/11,1428.84,Foster Parents,A38320,LAC Teams 1 & 2 Placements,In House Foster Care Placements,643420,CHILDREN & YOUNG PEOPLE,Social Care & Learning,Children & Young People,,,
http://www.havering.gov.uk,London Borough of Havering,11/04/2011,10000028,ERNEST DOE & SONS LTD,1558,854698,Apr-11,,861.52,Tranfuel,A47560,Transport Workshop,Stock-Direct Purchases,641235,ASSET MANAGEMENT,Finance & Commerce,Asset Management,,,
http://www.havering.gov.uk,London Borough of Havering,11/04/2011,10000029,ERNEST DOE & SONS LTD,1558,857265,Apr-11,,680.36,Tranfuel,A47560,Transport Workshop,Stock-Direct Purchases,641235,ASSET MANAGEMENT,Finance & Commerce,Asset Management,,,
http://www.havering.gov.uk,London Borough of Havering,26/04/2011,10000030,ELLIOTT GROUP LTD,1735,CT HAROLD WOOD SPORTS PAVILLIO,Apr-11,18/03/11,23606.74,Manual Invoice Entry,A90040,Parks & Open Spaces Capital,Works - Main Contract,911200,CULTURE & LEISURE,Culture & Community,Culture & Leisure,,,
http://www.havering.gov.uk,London Borough of Havering,08/04/2011,10000031,ESSEX & SUFFOLK WATER,1786,6023 5616 0017,Apr-11,23/03/11,1133.18,Manual Invoice Entry,A32125,Harrow Lodge,Building Maintenance,621030,ADULT SOCIAL CARE,Social Care & Learning,Adult Social Care,,,
http://www.havering.gov.uk,London Borough of Havering,07/04/2011,10000032,ESSEX & SUFFOLK WATER,1786,6027 4358 0012 039,Apr-11,18/03/11,1423.2,Manual Invoice Entry,A33855,Youth Locality C,Water Services,623610,CHILDREN & YOUNG PEOPLE,Social Care & Learning,Children & Young People,,,
http://www.havering.gov.uk,London Borough of Havering,13/04/2011,10000033,ESSEX & SUFFOLK WATER,1786,WATER ACCOUNT 1/4/11-30/9/11 D,Apr-11,13/04/11,1315.12,Manual Invoice Entry,0,Balance Sheet,Housing Tenants Water Rates,148270,Old Z Code/Bal Shet,Finance & Commerce,Financial Services,,,
http://www.havering.gov.uk,London Borough of Havering,13/04/2011,10000034,ESSEX & SUFFOLK WATER,1786,WATER ACCOUNT 1/4/11-31/4/12 W,Apr-11,13/04/11,5745.74,Manual Invoice Entry,0,Balance Sheet,Housing Tenants Water Rates,148270,Old Z Code/Bal Shet,Finance & Commerce,Financial Services,,,
http://www.havering.gov.uk,London Borough of Havering,11/04/2011,10000035,AUTISM ANGLIA * CO1 1RE * ESSEX AUTISTIC SOCIETY,1793,040411-100411,Apr-11,11/04/11,-71.15,Swift,A32020,Residential Provision,Residential Placements,643460,ADULT SOCIAL CARE,Social Care & Learning,Adult Social Care,,,
http://www.havering.gov.uk,London Borough of Havering,11/04/2011,10000036,AUTISM ANGLIA * CO1 1RE * ESSEX AUTISTIC SOCIETY,1793,040411-100411,Apr-11,11/04/11,1153.41,Swift,A32020,Residential Provision,Residential Placements,643460,ADULT SOCIAL CARE,Social Care & Learning,Adult Social Care,,,
http://www.havering.gov.uk,London Borough of Havering,11/04/2011,10000037,AUTISM ANGLIA * CO1 1RE * ESSEX AUTISTIC SOCIETY,1793,110411-280411,Apr-11,11/04/11,-189.64,Swift,A32020,Residential Provision,Residential Placements,643460,ADULT SOCIAL CARE,Social Care & Learning,Adult Social Care,,,
http://www.havering.gov.uk,London Borough of Havering,11/04/2011,10000038,AUTISM ANGLIA * CO1 1RE * ESSEX AUTISTIC SOCIETY,1793,110411-280411,Apr-11,11/04/11,2965.91,Swift,A32020,Residential Provision,Residential Placements,643460,ADULT SOCIAL CARE,Social Care & Learning,Adult Social Care,,,
http://www.havering.gov.uk,London Borough of Havering,28/03/2011,10000039,FALON NAMEPLATES LIMITED,1859,2110600,Apr-11,24/03/11,528.46,Manual Invoice Entry,A24210,Bereavement Customer Services Customer Services,Dedication,642520,HOUSING & PUBLIC PROTECTION,Culture & Community,Housing & Public Protection,,,
http://www.havering.gov.uk,London Borough of Havering,07/04/2011,10000040,FALON NAMEPLATES LIMITED,1859,2110682,Apr-11,05/04/11,1079.52,Manual Invoice Entry,A24210,Bereavement Customer Services Customer Services,Dedication,642520,HOUSING & PUBLIC PROTECTION,Culture & Community,Housing & Public Protection,,,
http://www.havering.gov.uk,London Borough of Havering,11/04/2011,10000041,ELIZABETH FITZROY SUPPORT *GU32 3JY GU27 2PE,1936,010411-030411,Apr-11,11/04/11,-30.49,Swift,A32006,ISAS PCT/LBH,Residential Placements,643460,ADULT SOCIAL CARE,Social Care & Learning,Adult Social Care,,,
http://www.havering.gov.uk,London Borough of Havering,11/04/2011,10000042,ELIZABETH FITZROY SUPPORT *GU32 3JY GU27 2PE,1936,010411-030411,Apr-11,11/04/11,637.56,Swift,A32006,ISAS PCT/LBH,Residential Placements,643460,ADULT SOCIAL CARE,Social Care & Learning,Adult Social Care,,,
http://www.havering.gov.uk,London Borough of Havering,11/04/2011,10000043,ELIZABETH FITZROY SUPPORT *GU32 3JY GU27 2PE,1936,040411-100411,Apr-11,11/04/11,-71.15,Swift,A32020,Residential Provision,Residential Placements,643460,ADULT SOCIAL CARE,Social Care & Learning,Adult Social Care,,,
http://www.havering.gov.uk,London Borough of Havering,11/04/2011,10000044,ELIZABETH FITZROY SUPPORT *GU32 3JY GU27 2PE,1936,040411-100411,Apr-11,11/04/11,1199.3,Swift,A32020,Residential Provision,Residential Placements,643460,ADULT SOCIAL CARE,Social Care & Learning,Adult Social Care,,,
http://www.havering.gov.uk,London Borough of Havering,11/04/2011,10000045,ELIZABETH FITZROY SUPPORT *GU32 3JY GU27 2PE,1936,040411-100411,Apr-11,11/04/11,-71.15,Swift,A32006,ISAS PCT/LBH,Residential Placements,643460,ADULT SOCIAL CARE,Social Care & Learning,Adult Social Care,,,
http://www.havering.gov.uk,London Borough of Havering,11/04/2011,10000046,ELIZABETH FITZROY SUPPORT *GU32 3JY GU27 2PE,1936,040411-100411,Apr-11,11/04/11,1487.65,Swift,A32006,ISAS PCT/LBH,Residential Placements,643460,ADULT SOCIAL CARE,Social Care & Learning,Adult Social Care,,,
http://www.havering.gov.uk,London Borough of Havering,11/04/2011,10000047,ELIZABETH FITZROY SUPPORT *GU32 3JY GU27 2PE,1936,110411-280411,Apr-11,11/04/11,-189.64,Swift,A32020,Residential Provision,Residential Placements,643460,ADULT SOCIAL CARE,Social Care & Learning,Adult Social Care,,,
http://www.havering.gov.uk,London Borough of Havering,11/04/2011,10000048,ELIZABETH FITZROY SUPPORT *GU32 3JY GU27 2PE,1936,110411-280411,Apr-11,11/04/11,3083.91,Swift,A32020,Residential Provision,Residential Placements,643460,ADULT SOCIAL CARE,Social Care & Learning,Adult Social Care,,,
http://www.havering.gov.uk,London Borough of Havering,11/04/2011,10000049,ELIZABETH FITZROY SUPPORT *GU32 3JY GU27 2PE,1936,110411-280411,Apr-11,11/04/11,-189.64,Swift,A32006,ISAS PCT/LBH,Residential Placements,643460,ADULT SOCIAL CARE,Social Care & Learning,Adult Social Care,,,
http://www.havering.gov.uk,London Borough of Havering,11/04/2011,10000050,ELIZABETH FITZROY SUPPORT *GU32 3JY GU27 2PE,1936,110411-280411,Apr-11,11/04/11,3825.39,Swift,A32006,ISAS PCT/LBH,Residential Placements,643460,ADULT SOCIAL CARE,Social Care & Learning,Adult Social Care,,,
http://www.havering.gov.uk,London Borough of Havering,18/04/2011,10000051,HARRIS COMMERCIAL SALES LTD,2424,896262,Apr-11,,470.48,Tranfuel,A47560,Transport Workshop,Stock-Direct Purchases,641235,ASSET MANAGEMENT,Finance & Commerce,Asset Management,,,
http://www.havering.gov.uk,London Borough of Havering,11/04/2011,10000052,HARRIS COMMERCIAL SALES LTD,2424,896389,Apr-11,,478.08,Tranfuel,A47560,Transport Workshop,Stock-Purchases,641220,ASSET MANAGEMENT,Finance & Commerce,Asset Management,,,
http://www.havering.gov.uk,London Borough of Havering,15/04/2011,10000053,LONDON BOROUGH OF HAVERING,2450,9100021388,Apr-11,21/03/11,603.87,Manual Invoice Entry,A28240,Hostels For The Homeless,Plant/Vehicle Hire,634010,HOUSING (HRA),Culture & Community,Housing (HRA),,,
http://www.havering.gov.uk,London Borough of Havering,21/03/2011,10000054,LONDON BOROUGH OF HAVERING,2450,9120002815,Apr-11,04/03/11,2433.6,Manual Invoice Entry,A35900,Maintenance Non-Delegated,Building Maintenance,621030,SCHOOLS FOR THE FUTURE,Social Care & Learning,Schools For The Future,,,
http://www.havering.gov.uk,London Borough of Havering,13/04/2011,10000055,LONDON BOROUGH OF HAVERING,2450,MONTHLY PAYROLL DEDUCTION MAR,Apr-11,12/04/11,956.85,Manual Invoice Entry,0,Balance Sheet,Salaries Deductions Payments,233031,Old Z Code/Bal Shet,Finance & Commerce,Financial Services,,,
http://www.havering.gov.uk,London Borough of Havering,11/04/2011,10000056,HIGH HURLANDS HOMES * GU30 7RY,2564,010411-030411,Apr-11,11/04/11,-36.04,Swift,A32020,Residential Provision,Residential Placements,643460,ADULT SOCIAL CARE,Social Care & Learning,Adult Social Care,,,
http://www.havering.gov.uk,London Borough of Havering,11/04/2011,10000057,HIGH HURLANDS HOMES * GU30 7RY,2564,010411-030411,Apr-11,11/04/11,623.41,Swift,A32020,Residential Provision,Residential Placements,643460,ADULT SOCIAL CARE,Social Care & Learning,Adult Social Care,,,
http://www.havering.gov.uk,London Borough of Havering,11/04/2011,10000058,HIGH HURLANDS HOMES * GU30 7RY,2564,010411-030411,Apr-11,11/04/11,-30.49,Swift,A32020,Residential Provision,Residential Placements,643460,ADULT SOCIAL CARE,Social Care & Learning,Adult Social Care,,,
http://www.havering.gov.uk,London Borough of Havering,11/04/2011,10000059,HIGH HURLANDS HOMES * GU30 7RY,2564,010411-030411,Apr-11,11/04/11,559.21,Swift,A32020,Residential Provision,Residential Placements,643460,ADULT SOCIAL CARE,Social Care & Learning,Adult Social Care,,,
http://www.havering.gov.uk,London Borough of Havering,11/04/2011,10000060,HIGH HURLANDS HOMES * GU30 7RY,2564,040411-100411,Apr-11,11/04/11,-71.15,Swift,A32020,Residential Provision,Residential Placements,643460,ADULT SOCIAL CARE,Social Care & Learning,Adult Social Care,,,
http://www.havering.gov.uk,London Borough of Havering,11/04/2011,10000061,HIGH HURLANDS HOMES * GU30 7RY,2564,040411-100411,Apr-11,11/04/11,1304.83,Swift,A32020,Residential Provision,Residential Placements,643460,ADULT SOCIAL CARE,Social Care & Learning,Adult Social Care,,,
http://www.havering.gov.uk,London Borough of Havering,11/04/2011,10000062,HIGH HURLANDS HOMES * GU30 7RY,2564,040411-130411,Apr-11,11/04/11,-120.14,Swift,A32020,Residential Provision,Residential Placements,643460,ADULT SOCIAL CARE,Social Care & Learning,Adult Social Care,,,
http://www.havering.gov.uk,London Borough of Havering,11/04/2011,10000063,HIGH HURLANDS HOMES * GU30 7RY,2564,040411-130411,Apr-11,11/04/11,2078.03,Swift,A32020,Residential Provision,Residential Placements,643460,ADULT SOCIAL CARE,Social Care & Learning,Adult Social Care,,,
http://www.havering.gov.uk,London Borough of Havering,11/04/2011,10000064,HIGH HURLANDS HOMES * GU30 7RY,2564,110411-280411,Apr-11,11/04/11,-189.64,Swift,A32020,Residential Provision,Residential Placements,643460,ADULT SOCIAL CARE,Social Care & Learning,Adult Social Care,,,
http://www.havering.gov.uk,London Borough of Havering,11/04/2011,10000065,HIGH HURLANDS HOMES * GU30 7RY,2564,110411-280411,Apr-11,11/04/11,3355.28,Swift,A32020,Residential Provision,Residential Placements,643460,ADULT SOCIAL CARE,Social Care & Learning,Adult Social Care,,,
http://www.havering.gov.uk,London Borough of Havering,11/04/2011,10000066,HIGH HURLANDS HOMES * GU30 7RY,2564,140411-280411,Apr-11,11/04/11,-183.11,Swift,A32020,Residential Provision,Residential Placements,643460,ADULT SOCIAL CARE,Social Care & Learning,Adult Social Care,,,
http://www.havering.gov.uk,London Borough of Havering,11/04/2011,10000067,HIGH HURLANDS HOMES * GU30 7RY,2564,140411-280411,Apr-11,11/04/11,3117.04,Swift,A32020,Residential Provision,Residential Placements,643460,ADULT SOCIAL CARE,Social Care & Learning,Adult Social Care,,,
http://www.havering.gov.uk,London Borough of Havering,11/04/2011,10000074,JEWISH CARE * NW11 9DQ * CHARLES CLORE HOUSE * NW9 5AB,2879,040411-280411,Apr-11,11/04/11,4000.04,Swift,A31830,Phys Dis- Residential,Residential Placements,643460,ADULT SOCIAL CARE,Social Care & Learning,Adult Social Care,,,
http://www.havering.gov.uk,London Borough of Havering,20/04/2011,10000075,REDACTED PERSONAL DATA,3010,RENT May11 - 86 Junction Road,Apr-11,20/04/11,575,Landlord Rents,A28840,Private Sector Leasing,Rents,623010,HOUSING & PUBLIC PROTECTION,Culture & Community,Housing & Public Protection,,,
http://www.havering.gov.uk,London Borough of Havering,11/04/2011,10000076,MITCHELL DIESEL LTD,3615,126424844,Apr-11,,2459.72,Tranfuel,A47560,Transport Workshop,Stock-Direct Purchases,641235,ASSET MANAGEMENT,Finance & Commerce,Asset Management,,,
http://www.havering.gov.uk,London Borough of Havering,11/04/2011,10000077,ABBOTTSWOOD LODGE *NR10 5DY*OLDRECTORY*BASTOW,3916,040411-280411,Apr-11,11/04/11,1419.93,Swift,A32020,Residential Provision,Residential Placements,643460,ADULT SOCIAL CARE,Social Care & Learning,Adult Social Care,,,
http://www.havering.gov.uk,London Borough of Havering,15/02/2011,10000079,PERFORMING RIGHT SOCIETY LTD,4101,3265467,Apr-11,11/02/11,128.93,Manual Invoice Entry,A20500,Parks&Open Spaces Gen Exp,Externally Provided Services,643190,CULTURE & LEISURE,Culture & Community,Culture & Leisure,,,
http://www.havering.gov.uk,London Borough of Havering,15/02/2011,10000080,PERFORMING RIGHT SOCIETY LTD,4101,3265467,,,859.86,Manual Invoice Entry,A22030,Campaigns And Marketing,Externally Provided Services,643190,COMMUNICATIONS,Culture & Community,Communications,,,
http://www.havering.gov.uk,London Borough of Havering,15/02/2011,10000078,PERFORMING RIGHT SOCIETY LTD,4101,3265467,,,55.83,Manual Invoice Entry,A33330,School Travel Plan,Special Facilities & Activities,642310,LEARNING & ACHIEVEMENT,Social Care & Learning,Learning & Achievement,,,
http://www.havering.gov.uk,London Borough of Havering,15/02/2011,10000081,PERFORMING RIGHT SOCIETY LTD,4101,3265475,,,429.93,Manual Invoice Entry,A26305,Town Centre Management,Externally Provided Services,643190,REGENERATION & STRATEGIC PLANNING,Culture & Community,Regeneration & Strategic Planning,,,
http://www.havering.gov.uk,London Borough of Havering,15/02/2011,10000082,PERFORMING RIGHT SOCIETY LTD,4101,3265475,Apr-11,11/02/11,601.93,Manual Invoice Entry,A21030,Sports Development,Special Facilities & Activities,642310,CULTURE & LEISURE,Culture & Community,Culture & Leisure,,,
http://www.havering.gov.uk,London Borough of Havering,11/04/2011,10000083,PETERHOUSE CARE LTD * C013 0EW ALDANAT CARE LIMITED,4113,040411-280411,Apr-11,11/04/11,2704.96,Swift,A32020,Residential Provision,Residential Placements,643460,ADULT SOCIAL CARE,Social Care & Learning,Adult Social Care,,,
http://www.havering.gov.uk,London Borough of Havering,11/04/2011,10000084,PETERHOUSE CARE LTD * C013 0EW ALDANAT CARE LIMITED,4113,040411-280411,Apr-11,11/04/11,3954.89,Swift,A32020,Residential Provision,Residential Placements,643460,ADULT SOCIAL CARE,Social Care & Learning,Adult Social Care,,,
http://www.havering.gov.uk,London Borough of Havering,07/04/2011,10000085,LONDON BOROUGH OF REDBRIDGE,4364,1.70112E+11,Apr-11,23/03/11,1700,Manual Invoice Entry,A26610,Development Planning,Externally Provided Services,643190,REGENERATION & STRATEGIC PLANNING,Culture & Community,Regeneration & Strategic Planning,,,
http://www.havering.gov.uk,London Borough of Havering,05/04/2011,10000086,RM EDUCATION PLC,4413,DE2291113,Apr-11,22/03/11,4538.1,Manual Invoice Entry,A33010,Birnam Wood Unit,It Licences,644330,LEARNING & ACHIEVEMENT,Social Care & Learning,Learning & Achievement,,,
http://www.havering.gov.uk,London Borough of Havering,13/04/2011,10000087,RINGWAY INFRASTRUCTURE SERVICES LTD,4458,5055.1.0068000627A,Apr-11,31/03/11,90083.31,Manual Invoice Entry,A90440,Regeneration Capital,Works - Main Contract,911200,REGENERATION & STRATEGIC PLANNING,Culture & Community,Regeneration & Strategic Planning,,,
http://www.havering.gov.uk,London Borough of Havering,13/04/2011,10000088,RINGWAY INFRASTRUCTURE SERVICES LTD,4458,5055.1.0068000627B,Apr-11,31/03/11,54058.09,Manual Invoice Entry,A90440,Regeneration Capital,Works - Main Contract,911200,REGENERATION & STRATEGIC PLANNING,Culture & Community,Regeneration & Strategic Planning,,,
http://www.havering.gov.uk,London Borough of Havering,13/04/2011,10000089,RINGWAY INFRASTRUCTURE SERVICES LTD,4458,CT PLANNED MAINT @ VARIOUS SIT,Apr-11,13/04/11,1704.15,Manual Invoice Entry,A27000,Carriageway:Patch & Minor,Dso Payments,651110,STREETCARE,Culture & Community,Streetcare,,,
http://www.havering.gov.uk,London Borough of Havering,13/04/2011,10000090,RINGWAY INFRASTRUCTURE SERVICES LTD,4458,CT PLANNED MAINT @ VARIOUS SIT,,,4000,Manual Invoice Entry,A90220,,,911200,STREETCARE,Culture & Community,Streetcare,,,
http://www.havering.gov.uk,London Borough of Havering,13/04/2011,10000091,RINGWAY INFRASTRUCTURE SERVICES LTD,4458,CT PLANNED MAINT @ VARIOUS SIT,,,5000,Manual Invoice Entry,A90220,,Works - Main Contract,911200,STREETCARE,Culture & Community,Streetcare,,,
http://www.havering.gov.uk,London Borough of Havering,13/04/2011,10000092,RINGWAY INFRASTRUCTURE SERVICES LTD,4458,CT PLANNED MAINT @ VARIOUS SIT,,,6000,Manual Invoice Entry,A90220,,,911200,STREETCARE,Culture & Community,Streetcare,,,
http://www.havering.gov.uk,London Borough of Havering,13/04/2011,10000093,RINGWAY INFRASTRUCTURE SERVICES LTD,4458,CT PLANNED MAINT @ VARIOUS SIT,Apr-11,13/04/11,8000,Manual Invoice Entry,A90220,Highways Capital,Fees,911100,STREETCARE,Culture & Community,Streetcare,,,
http://www.havering.gov.uk,London Borough of Havering,13/04/2011,10000094,RINGWAY INFRASTRUCTURE SERVICES LTD,4458,CT PLANNED MAINT @ VARIOUS SIT,,,20000,Manual Invoice Entry,A90440,Regeneration Capital,Works - Main Contract,911200,REGENERATION & STRATEGIC PLANNING,Culture & Community,Regeneration & Strategic Planning,,,
http://www.havering.gov.uk,London Borough of Havering,13/04/2011,10000095,RINGWAY INFRASTRUCTURE SERVICES LTD,4458,CT PLANNED MAINT @ VARIOUS SIT,,,25000,Manual Invoice Entry,A90220,,Internal Charges,911400,STREETCARE,Culture & Community,Streetcare,,,
http://www.havering.gov.uk,London Borough of Havering,13/04/2011,10000096,RINGWAY INFRASTRUCTURE SERVICES LTD,4458,CT PLANNED MAINT @ VARIOUS SIT,,,35303.14,Manual Invoice Entry,A27000,,Externally Provided Services,643190,STREETCARE,Culture & Community,Streetcare,,,
http://www.havering.gov.uk,London Borough of Havering,13/04/2011,10000097,RINGWAY INFRASTRUCTURE SERVICES LTD,4458,CT PLANNED MAINT @ VARIOUS SIT,,,55574.3,Manual Invoice Entry,A90440,,,911200,REGENERATION & STRATEGIC PLANNING,Culture & Community,Regeneration & Strategic Planning,,,
http://www.havering.gov.uk,London Borough of Havering,13/04/2011,10000098,RINGWAY INFRASTRUCTURE SERVICES LTD,4458,CT PLANNED MAINT @ VARIOUS SIT,,,138849.61,Manual Invoice Entry,A90220,Highways Capital,Works - Main Contract,911200,STREETCARE,Culture & Community,Streetcare,,,
http://www.havering.gov.uk,London Borough of Havering,26/04/2011,10000099,RINGWAY INFRASTRUCTURE SERVICES LTD,4458,CT PLANNED MAINT 2004/09 CERT,,,487.53,Manual Invoice Entry,A90230,Parking Capital,GF Capital Receipts,983100,STREETCARE,Culture & Community,Streetcare,,,
http://www.havering.gov.uk,London Borough of Havering,26/04/2011,10000100,RINGWAY INFRASTRUCTURE SERVICES LTD,4458,CT PLANNED MAINT 2004/09 CERT,,,744.49,Manual Invoice Entry,A90220,Highways Capital,Works - Main Contract,911200,STREETCARE,Culture & Community,Streetcare,,,
http://www.havering.gov.uk,London Borough of Havering,26/04/2011,10000101,RINGWAY INFRASTRUCTURE SERVICES LTD,4458,CT PLANNED MAINT 2004/09 CERT,,,1837.9,Manual Invoice Entry,A90430,Environmental Strategy Capital,Works - Main Contract,911200,REGENERATION & STRATEGIC PLANNING,Culture & Community,Regeneration & Strategic Planning,,,
http://www.havering.gov.uk,London Borough of Havering,26/04/2011,10000102,RINGWAY INFRASTRUCTURE SERVICES LTD,4458,CT PLANNED MAINT 2004/09 CERT,Apr-11,04/04/11,6255.98,Manual Invoice Entry,A24650,Parking-Minor Safety Imps (Bor Rds),Externally Provided Services,643190,STREETCARE,Culture & Community,Streetcare,,,
http://www.havering.gov.uk,London Borough of Havering,26/04/2011,10000103,RINGWAY INFRASTRUCTURE SERVICES LTD,4458,CT PLANNED MAINT 2004/09 CERT,,,14839.92,Manual Invoice Entry,A27010,Bor Rds-Road Marking,Externally Provided Services,643190,STREETCARE,Culture & Community,Streetcare,,,
http://www.havering.gov.uk,London Borough of Havering,11/04/2011,10000104,SEEABILITY * KT19 8SQ KT22 8NR,4552,040411-100411,Apr-11,11/04/11,-110.3,Swift,A31820,Phys Dis-Nursing,Nursing Home Beds,643515,ADULT SOCIAL CARE,Social Care & Learning,Adult Social Care,,,
http://www.havering.gov.uk,London Borough of Havering,11/04/2011,10000105,SEEABILITY * KT19 8SQ KT22 8NR,4552,040411-100411,Apr-11,11/04/11,968.27,Swift,A31820,Phys Dis-Nursing,Nursing Home Beds,643515,ADULT SOCIAL CARE,Social Care & Learning,Adult Social Care,,,
http://www.havering.gov.uk,London Borough of Havering,11/04/2011,10000106,SEEABILITY * KT19 8SQ KT22 8NR,4552,110411-280411,Apr-11,11/04/11,-295.07,Swift,A31820,Phys Dis-Nursing,Nursing Home Beds,643515,ADULT SOCIAL CARE,Social Care & Learning,Adult Social Care,,,
http://www.havering.gov.uk,London Borough of Havering,11/04/2011,10000107,SEEABILITY * KT19 8SQ KT22 8NR,4552,110411-280411,Apr-11,11/04/11,2489.84,Swift,A31820,Phys Dis-Nursing,Nursing Home Beds,643515,ADULT SOCIAL CARE,Social Care & Learning,Adult Social Care,,,
http://www.havering.gov.uk,London Borough of Havering,05/04/2011,10000108,"JOHN TOWNSEND TRUST, THE * CT9 1NB WESTGATE COLLEGE ROYAL SCHOOL FOR DEAF CHILDREN",4556,SIN001838,Apr-11,28/02/11,12161.38,Manual Invoice Entry,A32020,Residential Provision,Residential Placements,643460,ADULT SOCIAL CARE,Social Care & Learning,Adult Social Care,,,
http://www.havering.gov.uk,London Borough of Havering,11/04/2011,10000109,ST ELIZABETH'S CENTRE * SG10 6EW ST ELIZABETH,4608,040411-100411,Apr-11,11/04/11,-71.15,Swift,A32006,ISAS PCT/LBH,Residential Placements,643460,ADULT SOCIAL CARE,Social Care & Learning,Adult Social Care,,,
http://www.havering.gov.uk,London Borough of Havering,11/04/2011,10000110,ST ELIZABETH'S CENTRE * SG10 6EW ST ELIZABETH,4608,040411-100411,Apr-11,11/04/11,1020,Swift,A32006,ISAS PCT/LBH,Residential Placements,643460,ADULT SOCIAL CARE,Social Care & Learning,Adult Social Care,,,
http://www.havering.gov.uk,London Borough of Havering,11/04/2011,10000111,ST ELIZABETH'S CENTRE * SG10 6EW ST ELIZABETH,4608,110411-280411,Apr-11,11/04/11,-189.64,Swift,A32006,ISAS PCT/LBH,Residential Placements,643460,ADULT SOCIAL CARE,Social Care & Learning,Adult Social Care,,,
http://www.havering.gov.uk,London Borough of Havering,11/04/2011,10000112,ST ELIZABETH'S CENTRE * SG10 6EW ST ELIZABETH,4608,110411-280411,Apr-11,11/04/11,2622.86,Swift,A32006,ISAS PCT/LBH,Residential Placements,643460,ADULT SOCIAL CARE,Social Care & Learning,Adult Social Care,,,
http://www.havering.gov.uk,London Borough of Havering,04/04/2011,10000113,SCARGILL INFANTS SCHOOL,4652,MONTHLY ALLOCATION 08/04/11,Apr-11,04/04/11,21634,Manual Invoice Entry,0,Balance Sheet,LMS Chequebook Accounts Adjustments,192161,Old Z Code/Bal Shet,Finance & Commerce,Financial Services,,,
http://www.havering.gov.uk,London Borough of Havering,08/04/2011,10000114,SCARGILL INFANTS SCHOOL,4652,REIMB SICKNESS INSURANCE CLAIM,Apr-11,08/04/11,849.6,Manual Invoice Entry,A35655,Sickness Insurance Scheme,Other Employee Related,612750,LEARNING & ACHIEVEMENT,Social Care & Learning,Learning & Achievement,,,
http://www.havering.gov.uk,London Borough of Havering,11/04/2011,10000115,VIRIDIAN HOUSING * W6 9JP 849122519,4719,040411-100411,Apr-11,11/04/11,-71.15,Swift,A32020,Residential Provision,Residential Placements,643460,ADULT SOCIAL CARE,Social Care & Learning,Adult Social Care,,,
http://www.havering.gov.uk,London Borough of Havering,11/04/2011,10000116,VIRIDIAN HOUSING * W6 9JP 849122519,4719,040411-100411,Apr-11,11/04/11,656.25,Swift,A32020,Residential Provision,Residential Placements,643460,ADULT SOCIAL CARE,Social Care & Learning,Adult Social Care,,,
http://www.havering.gov.uk,London Borough of Havering,11/04/2011,10000117,VIRIDIAN HOUSING * W6 9JP 849122519,4719,040411-100411,Apr-11,11/04/11,-71.15,Swift,A32020,Residential Provision,Residential Placements,643460,ADULT SOCIAL CARE,Social Care & Learning,Adult Social Care,,,
http://www.havering.gov.uk,London Borough of Havering,11/04/2011,10000118,VIRIDIAN HOUSING * W6 9JP 849122519,4719,040411-100411,Apr-11,11/04/11,656.25,Swift,A32020,Residential Provision,Residential Placements,643460,ADULT SOCIAL CARE,Social Care & Learning,Adult Social Care,,,
http://www.havering.gov.uk,London Borough of Havering,11/04/2011,10000119,VIRIDIAN HOUSING * W6 9JP 849122519,4719,040411-100411,Apr-11,11/04/11,-110.3,Swift,A32020,Residential Provision,Residential Placements,643460,ADULT SOCIAL CARE,Social Care & Learning,Adult Social Care,,,
http://www.havering.gov.uk,London Borough of Havering,11/04/2011,10000120,VIRIDIAN HOUSING * W6 9JP 849122519,4719,040411-100411,Apr-11,11/04/11,-71.15,Swift,A32020,Residential Provision,Residential Placements,643460,ADULT SOCIAL CARE,Social Care & Learning,Adult Social Care,,,
http://www.havering.gov.uk,London Borough of Havering,11/04/2011,10000121,VIRIDIAN HOUSING * W6 9JP 849122519,4719,040411-100411,Apr-11,11/04/11,656.25,Swift,A32020,Residential Provision,Residential Placements,643460,ADULT SOCIAL CARE,Social Care & Learning,Adult Social Care,,,
http://www.havering.gov.uk,London Borough of Havering,11/04/2011,10000122,VIRIDIAN HOUSING * W6 9JP 849122519,4719,040411-100411,Apr-11,11/04/11,656.25,Swift,A32020,Residential Provision,Residential Placements,643460,ADULT SOCIAL CARE,Social Care & Learning,Adult Social Care,,,
http://www.havering.gov.uk,London Borough of Havering,11/04/2011,10000123,VIRIDIAN HOUSING * W6 9JP 849122519,4719,040411-100411,Apr-11,11/04/11,-110.3,Swift,A32020,Residential Provision,Residential Placements,643460,ADULT SOCIAL CARE,Social Care & Learning,Adult Social Care,,,
http://www.havering.gov.uk,London Borough of Havering,11/04/2011,10000124,VIRIDIAN HOUSING * W6 9JP 849122519,4719,040411-100411,Apr-11,11/04/11,656.25,Swift,A32020,Residential Provision,Residential Placements,643460,ADULT SOCIAL CARE,Social Care & Learning,Adult Social Care,,,
http://www.havering.gov.uk,London Borough of Havering,11/04/2011,10000125,VIRIDIAN HOUSING * W6 9JP 849122519,4719,040411-100411,Apr-11,11/04/11,-71.15,Swift,A32020,Residential Provision,Residential Placements,643460,ADULT SOCIAL CARE,Social Care & Learning,Adult Social Care,,,
http://www.havering.gov.uk,London Borough of Havering,11/04/2011,10000126,VIRIDIAN HOUSING * W6 9JP 849122519,4719,040411-100411,Apr-11,11/04/11,656.25,Swift,A32020,Residential Provision,Residential Placements,643460,ADULT SOCIAL CARE,Social Care & Learning,Adult Social Care,,,
http://www.havering.gov.uk,London Borough of Havering,11/04/2011,10000127,VIRIDIAN HOUSING * W6 9JP 849122519,4719,040411-100411,Apr-11,11/04/11,-107.3,Swift,A32020,Residential Provision,Residential Placements,643460,ADULT SOCIAL CARE,Social Care & Learning,Adult Social Care,,,
http://www.havering.gov.uk,London Borough of Havering,11/04/2011,10000128,VIRIDIAN HOUSING * W6 9JP 849122519,4719,040411-100411,Apr-11,11/04/11,656.25,Swift,A32020,Residential Provision,Residential Placements,643460,ADULT SOCIAL CARE,Social Care & Learning,Adult Social Care,,,
http://www.havering.gov.uk,London Borough of Havering,11/04/2011,10000129,VIRIDIAN HOUSING * W6 9JP 849122519,4719,040411-100411,Apr-11,11/04/11,-110.3,Swift,A32020,Residential Provision,Residential Placements,643460,ADULT SOCIAL CARE,Social Care & Learning,Adult Social Care,,,
http://www.havering.gov.uk,London Borough of Havering,11/04/2011,10000130,VIRIDIAN HOUSING * W6 9JP 849122519,4719,040411-100411,Apr-11,11/04/11,656.25,Swift,A32020,Residential Provision,Residential Placements,643460,ADULT SOCIAL CARE,Social Care & Learning,Adult Social Care,,,
http://www.havering.gov.uk,London Borough of Havering,11/04/2011,10000131,VIRIDIAN HOUSING * W6 9JP 849122519,4719,040411-100411,Apr-11,11/04/11,-110.3,Swift,A32020,Residential Provision,Residential Placements,643460,ADULT SOCIAL CARE,Social Care & Learning,Adult Social Care,,,
http://www.havering.gov.uk,London Borough of Havering,11/04/2011,10000132,VIRIDIAN HOUSING * W6 9JP 849122519,4719,040411-100411,Apr-11,11/04/11,656.25,Swift,A32020,Residential Provision,Residential Placements,643460,ADULT SOCIAL CARE,Social Care & Learning,Adult Social Care,,,
http://www.havering.gov.uk,London Borough of Havering,11/04/2011,10000133,VIRIDIAN HOUSING * W6 9JP 849122519,4719,040411-100411,Apr-11,11/04/11,-71.15,Swift,A32020,Residential Provision,Residential Placements,643460,ADULT SOCIAL CARE,Social Care & Learning,Adult Social Care,,,
http://www.havering.gov.uk,London Borough of Havering,11/04/2011,10000134,VIRIDIAN HOUSING * W6 9JP 849122519,4719,040411-100411,Apr-11,11/04/11,656.25,Swift,A32020,Residential Provision,Residential Placements,643460,ADULT SOCIAL CARE,Social Care & Learning,Adult Social Care,,,
http://www.havering.gov.uk,London Borough of Havering,11/04/2011,10000135,VIRIDIAN HOUSING * W6 9JP 849122519,4719,040411-100411,Apr-11,11/04/11,-71.15,Swift,A32020,Residential Provision,Residential Placements,643460,ADULT SOCIAL CARE,Social Care & Learning,Adult Social Care,,,
http://www.havering.gov.uk,London Borough of Havering,11/04/2011,10000136,VIRIDIAN HOUSING * W6 9JP 849122519,4719,040411-100411,Apr-11,11/04/11,656.25,Swift,A32020,Residential Provision,Residential Placements,643460,ADULT SOCIAL CARE,Social Care & Learning,Adult Social Care,,,
http://www.havering.gov.uk,London Borough of Havering,11/04/2011,10000137,VIRIDIAN HOUSING * W6 9JP 849122519,4719,040411-100411,Apr-11,11/04/11,-71.15,Swift,A32020,Residential Provision,Residential Placements,643460,ADULT SOCIAL CARE,Social Care & Learning,Adult Social Care,,,
http://www.havering.gov.uk,London Borough of Havering,11/04/2011,10000138,VIRIDIAN HOUSING * W6 9JP 849122519,4719,040411-100411,Apr-11,11/04/11,656.25,Swift,A32020,Residential Provision,Residential Placements,643460,ADULT SOCIAL CARE,Social Care & Learning,Adult Social Care,,,
http://www.havering.gov.uk,London Borough of Havering,11/04/2011,10000139,VIRIDIAN HOUSING * W6 9JP 849122519,4719,040411-100411,Apr-11,11/04/11,-71.15,Swift,A32020,Residential Provision,Residential Placements,643460,ADULT SOCIAL CARE,Social Care & Learning,Adult Social Care,,,
http://www.havering.gov.uk,London Borough of Havering,11/04/2011,10000140,VIRIDIAN HOUSING * W6 9JP 849122519,4719,040411-100411,Apr-11,11/04/11,656.25,Swift,A32020,Residential Provision,Residential Placements,643460,ADULT SOCIAL CARE,Social Care & Learning,Adult Social Care,,,
http://www.havering.gov.uk,London Borough of Havering,11/04/2011,10000141,VIRIDIAN HOUSING * W6 9JP 849122519,4719,040411-100411,Apr-11,11/04/11,-71.15,Swift,A32020,Residential Provision,Residential Placements,643460,ADULT SOCIAL CARE,Social Care & Learning,Adult Social Care,,,
http://www.havering.gov.uk,London Borough of Havering,11/04/2011,10000142,VIRIDIAN HOUSING * W6 9JP 849122519,4719,040411-100411,Apr-11,11/04/11,656.25,Swift,A32020,Residential Provision,Residential Placements,643460,ADULT SOCIAL CARE,Social Care & Learning,Adult Social Care,,,
http://www.havering.gov.uk,London Borough of Havering,11/04/2011,10000143,VIRIDIAN HOUSING * W6 9JP 849122519,4719,040411-100411,Apr-11,11/04/11,-71.15,Swift,A32020,Residential Provision,Residential Placements,643460,ADULT SOCIAL CARE,Social Care & Learning,Adult Social Care,,,
http://www.havering.gov.uk,London Borough of Havering,11/04/2011,10000144,VIRIDIAN HOUSING * W6 9JP 849122519,4719,040411-100411,Apr-11,11/04/11,656.25,Swift,A32020,Residential Provision,Residential Placements,643460,ADULT SOCIAL CARE,Social Care & Learning,Adult Social Care,,,
http://www.havering.gov.uk,London Borough of Havering,11/04/2011,10000145,VIRIDIAN HOUSING * W6 9JP 849122519,4719,040411-100411,Apr-11,11/04/11,-110.3,Swift,A32020,Residential Provision,Residential Placements,643460,ADULT SOCIAL CARE,Social Care & Learning,Adult Social Care,,,
http://www.havering.gov.uk,London Borough of Havering,11/04/2011,10000146,VIRIDIAN HOUSING * W6 9JP 849122519,4719,040411-100411,Apr-11,11/04/11,656.25,Swift,A32020,Residential Provision,Residential Placements,643460,ADULT SOCIAL CARE,Social Care & Learning,Adult Social Care,,,
http://www.havering.gov.uk,London Borough of Havering,11/04/2011,10000147,VIRIDIAN HOUSING * W6 9JP 849122519,4719,040411-100411,Apr-11,11/04/11,-71.15,Swift,A32020,Residential Provision,Residential Placements,643460,ADULT SOCIAL CARE,Social Care & Learning,Adult Social Care,,,
http://www.havering.gov.uk,London Borough of Havering,11/04/2011,10000148,VIRIDIAN HOUSING * W6 9JP 849122519,4719,040411-100411,Apr-11,11/04/11,656.25,Swift,A32020,Residential Provision,Residential Placements,643460,ADULT SOCIAL CARE,Social Care & Learning,Adult Social Care,,,
http://www.havering.gov.uk,London Borough of Havering,11/04/2011,10000149,VIRIDIAN HOUSING * W6 9JP 849122519,4719,040411-100411,Apr-11,11/04/11,-71.15,Swift,A32020,Residential Provision,Residential Placements,643460,ADULT SOCIAL CARE,Social Care & Learning,Adult Social Care,,,
http://www.havering.gov.uk,London Borough of Havering,11/04/2011,10000150,VIRIDIAN HOUSING * W6 9JP 849122519,4719,040411-100411,Apr-11,11/04/11,656.25,Swift,A32020,Residential Provision,Residential Placements,643460,ADULT SOCIAL CARE,Social Care & Learning,Adult Social Care,,,
http://www.havering.gov.uk,London Borough of Havering,11/04/2011,10000151,VIRIDIAN HOUSING * W6 9JP 849122519,4719,040411-100411,Apr-11,11/04/11,-110.3,Swift,A32020,Residential Provision,Residential Placements,643460,ADULT SOCIAL CARE,Social Care & Learning,Adult Social Care,,,
http://www.havering.gov.uk,London Borough of Havering,11/04/2011,10000152,VIRIDIAN HOUSING * W6 9JP 849122519,4719,040411-100411,Apr-11,11/04/11,656.25,Swift,A32020,Residential Provision,Residential Placements,643460,ADULT SOCIAL CARE,Social Care & Learning,Adult Social Care,,,
http://www.havering.gov.uk,London Borough of Havering,11/04/2011,10000153,VIRIDIAN HOUSING * W6 9JP 849122519,4719,040411-100411,Apr-11,11/04/11,-71.15,Swift,A32020,Residential Provision,Residential Placements,643460,ADULT SOCIAL CARE,Social Care & Learning,Adult Social Care,,,
http://www.havering.gov.uk,London Borough of Havering,11/04/2011,10000154,VIRIDIAN HOUSING * W6 9JP 849122519,4719,040411-100411,Apr-11,11/04/11,656.25,Swift,A32020,Residential Provision,Residential Placements,643460,ADULT SOCIAL CARE,Social Care & Learning,Adult Social Care,,,
http://www.havering.gov.uk,London Borough of Havering,11/04/2011,10000155,VIRIDIAN HOUSING * W6 9JP 849122519,4719,040411-100411,Apr-11,11/04/11,-110.3,Swift,A32020,Residential Provision,Residential Placements,643460,ADULT SOCIAL CARE,Social Care & Learning,Adult Social Care,,,
http://www.havering.gov.uk,London Borough of Havering,11/04/2011,10000156,VIRIDIAN HOUSING * W6 9JP 849122519,4719,040411-100411,Apr-11,11/04/11,656.25,Swift,A32020,Residential Provision,Residential Placements,643460,ADULT SOCIAL CARE,Social Care & Learning,Adult Social Care,,,
http://www.havering.gov.uk,London Borough of Havering,11/04/2011,10000157,VIRIDIAN HOUSING * W6 9JP 849122519,4719,040411-280411,Apr-11,11/04/11,2343.75,Swift,A32020,Residential Provision,Residential Placements,643460,ADULT SOCIAL CARE,Social Care & Learning,Adult Social Care,,,
http://www.havering.gov.uk,London Borough of Havering,11/04/2011,10000158,VIRIDIAN HOUSING * W6 9JP 849122519,4719,040411-280411,Apr-11,11/04/11,2343.75,Swift,A32020,Residential Provision,Residential Placements,643460,ADULT SOCIAL CARE,Social Care & Learning,Adult Social Care,,,
http://www.havering.gov.uk,London Borough of Havering,11/04/2011,10000159,VIRIDIAN HOUSING * W6 9JP 849122519,4719,040411-280411,Apr-11,11/04/11,2343.75,Swift,A32020,Residential Provision,Residential Placements,643460,ADULT SOCIAL CARE,Social Care & Learning,Adult Social Care,,,
http://www.havering.gov.uk,London Borough of Havering,11/04/2011,10000160,VIRIDIAN HOUSING * W6 9JP 849122519,4719,040411-280411,Apr-11,11/04/11,2343.75,Swift,A32020,Residential Provision,Residential Placements,643460,ADULT SOCIAL CARE,Social Care & Learning,Adult Social Care,,,
http://www.havering.gov.uk,London Borough of Havering,11/04/2011,10000161,VIRIDIAN HOUSING * W6 9JP 849122519,4719,040411-280411,Apr-11,11/04/11,2343.75,Swift,A32020,Residential Provision,Residential Placements,643460,ADULT SOCIAL CARE,Social Care & Learning,Adult Social Care,,,
http://www.havering.gov.uk,London Borough of Havering,11/04/2011,10000162,VIRIDIAN HOUSING * W6 9JP 849122519,4719,040411-280411,Apr-11,11/04/11,2343.75,Swift,A32020,Residential Provision,Residential Placements,643460,ADULT SOCIAL CARE,Social Care & Learning,Adult Social Care,,,
http://www.havering.gov.uk,London Borough of Havering,11/04/2011,10000163,VIRIDIAN HOUSING * W6 9JP 849122519,4719,040411-280411,Apr-11,11/04/11,2343.75,Swift,A32020,Residential Provision,Residential Placements,643460,ADULT SOCIAL CARE,Social Care & Learning,Adult Social Care,,,
http://www.havering.gov.uk,London Borough of Havering,11/04/2011,10000164,VIRIDIAN HOUSING * W6 9JP 849122519,4719,040411-280411,Apr-11,11/04/11,2343.75,Swift,A32020,Residential Provision,Residential Placements,643460,ADULT SOCIAL CARE,Social Care & Learning,Adult Social Care,,,
http://www.havering.gov.uk,London Borough of Havering,11/04/2011,10000165,VIRIDIAN HOUSING * W6 9JP 849122519,4719,040411-280411,Apr-11,11/04/11,2343.75,Swift,A32020,Residential Provision,Residential Placements,643460,ADULT SOCIAL CARE,Social Care & Learning,Adult Social Care,,,
http://www.havering.gov.uk,London Borough of Havering,11/04/2011,10000166,VIRIDIAN HOUSING * W6 9JP 849122519,4719,110411-280411,Apr-11,11/04/11,-189.64,Swift,A32020,Residential Provision,Residential Placements,643460,ADULT SOCIAL CARE,Social Care & Learning,Adult Social Care,,,
http://www.havering.gov.uk,London Borough of Havering,11/04/2011,10000167,VIRIDIAN HOUSING * W6 9JP 849122519,4719,110411-280411,Apr-11,11/04/11,1687.5,Swift,A32020,Residential Provision,Residential Placements,643460,ADULT SOCIAL CARE,Social Care & Learning,Adult Social Care,,,
http://www.havering.gov.uk,London Borough of Havering,11/04/2011,10000168,VIRIDIAN HOUSING * W6 9JP 849122519,4719,110411-280411,Apr-11,11/04/11,-189.64,Swift,A32020,Residential Provision,Residential Placements,643460,ADULT SOCIAL CARE,Social Care & Learning,Adult Social Care,,,
http://www.havering.gov.uk,London Borough of Havering,11/04/2011,10000169,VIRIDIAN HOUSING * W6 9JP 849122519,4719,110411-280411,Apr-11,11/04/11,1687.5,Swift,A32020,Residential Provision,Residential Placements,643460,ADULT SOCIAL CARE,Social Care & Learning,Adult Social Care,,,
http://www.havering.gov.uk,London Borough of Havering,11/04/2011,10000170,VIRIDIAN HOUSING * W6 9JP 849122519,4719,110411-280411,Apr-11,11/04/11,-295.07,Swift,A32020,Residential Provision,Residential Placements,643460,ADULT SOCIAL CARE,Social Care & Learning,Adult Social Care,,,
http://www.havering.gov.uk,London Borough of Havering,11/04/2011,10000171,VIRIDIAN HOUSING * W6 9JP 849122519,4719,110411-280411,Apr-11,11/04/11,-189.64,Swift,A32020,Residential Provision,Residential Placements,643460,ADULT SOCIAL CARE,Social Care & Learning,Adult Social Care,,,
http://www.havering.gov.uk,London Borough of Havering,11/04/2011,10000172,VIRIDIAN HOUSING * W6 9JP 849122519,4719,110411-280411,Apr-11,11/04/11,1687.5,Swift,A32020,Residential Provision,Residential Placements,643460,ADULT SOCIAL CARE,Social Care & Learning,Adult Social Care,,,
http://www.havering.gov.uk,London Borough of Havering,11/04/2011,10000173,VIRIDIAN HOUSING * W6 9JP 849122519,4719,110411-280411,Apr-11,11/04/11,1687.5,Swift,A32020,Residential Provision,Residential Placements,643460,ADULT SOCIAL CARE,Social Care & Learning,Adult Social Care,,,
http://www.havering.gov.uk,London Borough of Havering,11/04/2011,10000174,VIRIDIAN HOUSING * W6 9JP 849122519,4719,110411-280411,Apr-11,11/04/11,-295.07,Swift,A32020,Residential Provision,Residential Placements,643460,ADULT SOCIAL CARE,Social Care & Learning,Adult Social Care,,,
http://www.havering.gov.uk,London Borough of Havering,11/04/2011,10000175,VIRIDIAN HOUSING * W6 9JP 849122519,4719,110411-280411,Apr-11,11/04/11,1687.5,Swift,A32020,Residential Provision,Residential Placements,643460,ADULT SOCIAL CARE,Social Care & Learning,Adult Social Care,,,
http://www.havering.gov.uk,London Borough of Havering,11/04/2011,10000176,VIRIDIAN HOUSING * W6 9JP 849122519,4719,110411-280411,Apr-11,11/04/11,-189.64,Swift,A32020,Residential Provision,Residential Placements,643460,ADULT SOCIAL CARE,Social Care & Learning,Adult Social Care,,,
http://www.havering.gov.uk,London Borough of Havering,11/04/2011,10000177,VIRIDIAN HOUSING * W6 9JP 849122519,4719,110411-280411,Apr-11,11/04/11,1687.5,Swift,A32020,Residential Provision,Residential Placements,643460,ADULT SOCIAL CARE,Social Care & Learning,Adult Social Care,,,
http://www.havering.gov.uk,London Borough of Havering,11/04/2011,10000178,VIRIDIAN HOUSING * W6 9JP 849122519,4719,110411-280411,Apr-11,11/04/11,-287.36,Swift,A32020,Residential Provision,Residential Placements,643460,ADULT SOCIAL CARE,Social Care & Learning,Adult Social Care,,,
http://www.havering.gov.uk,London Borough of Havering,11/04/2011,10000179,VIRIDIAN HOUSING * W6 9JP 849122519,4719,110411-280411,Apr-11,11/04/11,1687.5,Swift,A32020,Residential Provision,Residential Placements,643460,ADULT SOCIAL CARE,Social Care & Learning,Adult Social Care,,,
http://www.havering.gov.uk,London Borough of Havering,11/04/2011,10000180,VIRIDIAN HOUSING * W6 9JP 849122519,4719,110411-280411,Apr-11,11/04/11,-295.07,Swift,A32020,Residential Provision,Residential Placements,643460,ADULT SOCIAL CARE,Social Care & Learning,Adult Social Care,,,
http://www.havering.gov.uk,London Borough of Havering,11/04/2011,10000181,VIRIDIAN HOUSING * W6 9JP 849122519,4719,110411-280411,Apr-11,11/04/11,1687.5,Swift,A32020,Residential Provision,Residential Placements,643460,ADULT SOCIAL CARE,Social Care & Learning,Adult Social Care,,,
http://www.havering.gov.uk,London Borough of Havering,11/04/2011,10000182,VIRIDIAN HOUSING * W6 9JP 849122519,4719,110411-280411,Apr-11,11/04/11,-295.07,Swift,A32020,Residential Provision,Residential Placements,643460,ADULT SOCIAL CARE,Social Care & Learning,Adult Social Care,,,
http://www.havering.gov.uk,London Borough of Havering,11/04/2011,10000183,VIRIDIAN HOUSING * W6 9JP 849122519,4719,110411-280411,Apr-11,11/04/11,1687.5,Swift,A32020,Residential Provision,Residential Placements,643460,ADULT SOCIAL CARE,Social Care & Learning,Adult Social Care,,,
http://www.havering.gov.uk,London Borough of Havering,11/04/2011,10000184,VIRIDIAN HOUSING * W6 9JP 849122519,4719,110411-280411,Apr-11,11/04/11,-189.64,Swift,A32020,Residential Provision,Residential Placements,643460,ADULT SOCIAL CARE,Social Care & Learning,Adult Social Care,,,
http://www.havering.gov.uk,London Borough of Havering,11/04/2011,10000185,VIRIDIAN HOUSING * W6 9JP 849122519,4719,110411-280411,Apr-11,11/04/11,1687.5,Swift,A32020,Residential Provision,Residential Placements,643460,ADULT SOCIAL CARE,Social Care & Learning,Adult Social Care,,,
http://www.havering.gov.uk,London Borough of Havering,11/04/2011,10000186,VIRIDIAN HOUSING * W6 9JP 849122519,4719,110411-280411,Apr-11,11/04/11,-189.64,Swift,A32020,Residential Provision,Residential Placements,643460,ADULT SOCIAL CARE,Social Care & Learning,Adult Social Care,,,
http://www.havering.gov.uk,London Borough of Havering,11/04/2011,10000187,VIRIDIAN HOUSING * W6 9JP 849122519,4719,110411-280411,Apr-11,11/04/11,1687.5,Swift,A32020,Residential Provision,Residential Placements,643460,ADULT SOCIAL CARE,Social Care & Learning,Adult Social Care,,,
http://www.havering.gov.uk,London Borough of Havering,11/04/2011,10000188,VIRIDIAN HOUSING * W6 9JP 849122519,4719,110411-280411,Apr-11,11/04/11,-189.64,Swift,A32020,Residential Provision,Residential Placements,643460,ADULT SOCIAL CARE,Social Care & Learning,Adult Social Care,,,
http://www.havering.gov.uk,London Borough of Havering,11/04/2011,10000189,VIRIDIAN HOUSING * W6 9JP 849122519,4719,110411-280411,Apr-11,11/04/11,1687.5,Swift,A32020,Residential Provision,Residential Placements,643460,ADULT SOCIAL CARE,Social Care & Learning,Adult Social Care,,,
http://www.havering.gov.uk,London Borough of Havering,11/04/2011,10000190,VIRIDIAN HOUSING * W6 9JP 849122519,4719,110411-280411,Apr-11,11/04/11,-189.64,Swift,A32020,Residential Provision,Residential Placements,643460,ADULT SOCIAL CARE,Social Care & Learning,Adult Social Care,,,
http://www.havering.gov.uk,London Borough of Havering,11/04/2011,10000191,VIRIDIAN HOUSING * W6 9JP 849122519,4719,110411-280411,Apr-11,11/04/11,1687.5,Swift,A32020,Residential Provision,Residential Placements,643460,ADULT SOCIAL CARE,Social Care & Learning,Adult Social Care,,,
http://www.havering.gov.uk,London Borough of Havering,11/04/2011,10000192,VIRIDIAN HOUSING * W6 9JP 849122519,4719,110411-280411,Apr-11,11/04/11,-189.64,Swift,A32020,Residential Provision,Residential Placements,643460,ADULT SOCIAL CARE,Social Care & Learning,Adult Social Care,,,
http://www.havering.gov.uk,London Borough of Havering,11/04/2011,10000193,VIRIDIAN HOUSING * W6 9JP 849122519,4719,110411-280411,Apr-11,11/04/11,1687.5,Swift,A32020,Residential Provision,Residential Placements,643460,ADULT SOCIAL CARE,Social Care & Learning,Adult Social Care,,,
http://www.havering.gov.uk,London Borough of Havering,11/04/2011,10000194,VIRIDIAN HOUSING * W6 9JP 849122519,4719,110411-280411,Apr-11,11/04/11,-189.64,Swift,A32020,Residential Provision,Residential Placements,643460,ADULT SOCIAL CARE,Social Care & Learning,Adult Social Care,,,
http://www.havering.gov.uk,London Borough of Havering,11/04/2011,10000195,VIRIDIAN HOUSING * W6 9JP 849122519,4719,110411-280411,Apr-11,11/04/11,1687.5,Swift,A32020,Residential Provision,Residential Placements,643460,ADULT SOCIAL CARE,Social Care & Learning,Adult Social Care,,,
http://www.havering.gov.uk,London Borough of Havering,11/04/2011,10000196,VIRIDIAN HOUSING * W6 9JP 849122519,4719,110411-280411,Apr-11,11/04/11,-295.07,Swift,A32020,Residential Provision,Residential Placements,643460,ADULT SOCIAL CARE,Social Care & Learning,Adult Social Care,,,
http://www.havering.gov.uk,London Borough of Havering,11/04/2011,10000197,VIRIDIAN HOUSING * W6 9JP 849122519,4719,110411-280411,Apr-11,11/04/11,1687.5,Swift,A32020,Residential Provision,Residential Placements,643460,ADULT SOCIAL CARE,Social Care & Learning,Adult Social Care,,,
http://www.havering.gov.uk,London Borough of Havering,11/04/2011,10000198,VIRIDIAN HOUSING * W6 9JP 849122519,4719,110411-280411,Apr-11,11/04/11,-189.64,Swift,A32020,Residential Provision,Residential Placements,643460,ADULT SOCIAL CARE,Social Care & Learning,Adult Social Care,,,
http://www.havering.gov.uk,London Borough of Havering,11/04/2011,10000199,VIRIDIAN HOUSING * W6 9JP 849122519,4719,110411-280411,Apr-11,11/04/11,1687.5,Swift,A32020,Residential Provision,Residential Placements,643460,ADULT SOCIAL CARE,Social Care & Learning,Adult Social Care,,,
http://www.havering.gov.uk,London Borough of Havering,11/04/2011,10000200,VIRIDIAN HOUSING * W6 9JP 849122519,4719,110411-280411,Apr-11,11/04/11,-189.64,Swift,A32020,Residential Provision,Residential Placements,643460,ADULT SOCIAL CARE,Social Care & Learning,Adult Social Care,,,
http://www.havering.gov.uk,London Borough of Havering,11/04/2011,10000201,VIRIDIAN HOUSING * W6 9JP 849122519,4719,110411-280411,Apr-11,11/04/11,1687.5,Swift,A32020,Residential Provision,Residential Placements,643460,ADULT SOCIAL CARE,Social Care & Learning,Adult Social Care,,,
http://www.havering.gov.uk,London Borough of Havering,11/04/2011,10000202,VIRIDIAN HOUSING * W6 9JP 849122519,4719,110411-280411,Apr-11,11/04/11,-295.07,Swift,A32020,Residential Provision,Residential Placements,643460,ADULT SOCIAL CARE,Social Care & Learning,Adult Social Care,,,
http://www.havering.gov.uk,London Borough of Havering,11/04/2011,10000203,VIRIDIAN HOUSING * W6 9JP 849122519,4719,110411-280411,Apr-11,11/04/11,1687.5,Swift,A32020,Residential Provision,Residential Placements,643460,ADULT SOCIAL CARE,Social Care & Learning,Adult Social Care,,,
http://www.havering.gov.uk,London Borough of Havering,11/04/2011,10000204,VIRIDIAN HOUSING * W6 9JP 849122519,4719,110411-280411,Apr-11,11/04/11,-189.64,Swift,A32020,Residential Provision,Residential Placements,643460,ADULT SOCIAL CARE,Social Care & Learning,Adult Social Care,,,
http://www.havering.gov.uk,London Borough of Havering,11/04/2011,10000205,VIRIDIAN HOUSING * W6 9JP 849122519,4719,110411-280411,Apr-11,11/04/11,1687.5,Swift,A32020,Residential Provision,Residential Placements,643460,ADULT SOCIAL CARE,Social Care & Learning,Adult Social Care,,,
http://www.havering.gov.uk,London Borough of Havering,11/04/2011,10000206,VIRIDIAN HOUSING * W6 9JP 849122519,4719,110411-280411,Apr-11,11/04/11,-295.07,Swift,A32020,Residential Provision,Residential Placements,643460,ADULT SOCIAL CARE,Social Care & Learning,Adult Social Care,,,
http://www.havering.gov.uk,London Borough of Havering,11/04/2011,10000207,VIRIDIAN HOUSING * W6 9JP 849122519,4719,110411-280411,Apr-11,11/04/11,1687.5,Swift,A32020,Residential Provision,Residential Placements,643460,ADULT SOCIAL CARE,Social Care & Learning,Adult Social Care,,,
http://www.havering.gov.uk,London Borough of Havering,06/04/2011,10000208,CHRISTIES CARE LTD,4810,91252,Apr-11,30/03/11,937.84,Manual Invoice Entry,A32022,Domicilary Care,Home Care,643555,ADULT SOCIAL CARE,Social Care & Learning,Adult Social Care,,,
http://www.havering.gov.uk,London Borough of Havering,04/04/2011,10000209,"WHYBRIDGE JNR SCHOOL,LBH",4842,MONTHLY ALLOCATION 08/04/11,Apr-11,04/04/11,19750,Manual Invoice Entry,0,Balance Sheet,LMS Chequebook Accounts Adjustments,192161,Old Z Code/Bal Shet,Finance & Commerce,Financial Services,,,
http://www.havering.gov.uk,London Borough of Havering,11/04/2011,10000210,STABLE FAMILY HOME TRUST *BH24 3BN,5003,030211-020311,Apr-11,11/04/11,-284.6,Swift,A32020,Residential Provision,Residential Placements,643460,ADULT SOCIAL CARE,Social Care & Learning,Adult Social Care,,,
http://www.havering.gov.uk,London Borough of Havering,11/04/2011,10000211,STABLE FAMILY HOME TRUST *BH24 3BN,5003,030211-020311,Apr-11,11/04/11,2895.2,Swift,A32020,Residential Provision,Residential Placements,643460,ADULT SOCIAL CARE,Social Care & Learning,Adult Social Care,,,
http://www.havering.gov.uk,London Borough of Havering,11/04/2011,10000212,STABLE FAMILY HOME TRUST *BH24 3BN,5003,030311-310311,Apr-11,11/04/11,-294.76,Swift,A32020,Residential Provision,Residential Placements,643460,ADULT SOCIAL CARE,Social Care & Learning,Adult Social Care,,,
http://www.havering.gov.uk,London Borough of Havering,11/04/2011,10000213,STABLE FAMILY HOME TRUST *BH24 3BN,5003,030311-310311,Apr-11,11/04/11,2998.6,Swift,A32020,Residential Provision,Residential Placements,643460,ADULT SOCIAL CARE,Social Care & Learning,Adult Social Care,,,
http://www.havering.gov.uk,London Borough of Havering,11/04/2011,10000214,STABLE FAMILY HOME TRUST *BH24 3BN,5003,040411-100411,Apr-11,11/04/11,-71.15,Swift,A32020,Residential Provision,Residential Placements,643460,ADULT SOCIAL CARE,Social Care & Learning,Adult Social Care,,,
http://www.havering.gov.uk,London Borough of Havering,11/04/2011,10000215,STABLE FAMILY HOME TRUST *BH24 3BN,5003,040411-100411,Apr-11,11/04/11,723.8,Swift,A32020,Residential Provision,Residential Placements,643460,ADULT SOCIAL CARE,Social Care & Learning,Adult Social Care,,,
http://www.havering.gov.uk,London Borough of Havering,11/04/2011,10000216,STABLE FAMILY HOME TRUST *BH24 3BN,5003,110411-280411,Apr-11,11/04/11,-189.64,Swift,A32020,Residential Provision,Residential Placements,643460,ADULT SOCIAL CARE,Social Care & Learning,Adult Social Care,,,
http://www.havering.gov.uk,London Borough of Havering,11/04/2011,10000217,STABLE FAMILY HOME TRUST *BH24 3BN,5003,110411-280411,Apr-11,11/04/11,1861.2,Swift,A32020,Residential Provision,Residential Placements,643460,ADULT SOCIAL CARE,Social Care & Learning,Adult Social Care,,,
http://www.havering.gov.uk,London Borough of Havering,11/04/2011,10000218,JCDECAUX UK LTD,5093,SF/I018115,Apr-11,24/03/11,604.5,Manual Invoice Entry,A53320,Legal Services,Externally Provided Services,643190,LEGAL & DEMOCRATIC SVS,Legal & Democratic Services,Legal & Democratic Svs,,,
http://www.havering.gov.uk,London Borough of Havering,04/04/2011,10000219,"SUTTONS PRIMARY SCHOOL, LBH",5136,MONTHLY ALLOCATION 08/04/11,Apr-11,04/04/11,19040,Manual Invoice Entry,0,Balance Sheet,LMS Chequebook Accounts Adjustments,192161,Old Z Code/Bal Shet,Finance & Commerce,Financial Services,,,
http://www.havering.gov.uk,London Borough of Havering,07/04/2011,10000220,THOMPSON HEATING (2000) LTD,5259,4735,Apr-11,24/03/11,586,Manual Invoice Entry,A46540,Surplus Property Expenses,Building Maintenance,621030,ASSET MANAGEMENT,Finance & Commerce,Asset Management,,,
http://www.havering.gov.uk,London Borough of Havering,28/03/2011,10000221,TUNSTALL HEALTHCARE (UK) LTD,5399,3IN / 10175368,Apr-11,18/03/11,3747,Manual Invoice Entry,A90500,HRA Housing Needs & Strategy Capital,Works - Main Contract,911200,HOUSING HRA,Culture & Community,Housing (HRA),,,
http://www.havering.gov.uk,London Borough of Havering,04/04/2011,10000222,ST URSULA'S RC JNR SCHOOL LBH,6014,MONTHLY ALLOCATION 08/04/11,Apr-11,04/04/11,24224,Manual Invoice Entry,0,Balance Sheet,LMS Chequebook Accounts Adjustments,192161,Old Z Code/Bal Shet,Finance & Commerce,Financial Services,,,
http://www.havering.gov.uk,London Borough of Havering,08/04/2011,10000223,ST URSULA'S RC JNR SCHOOL LBH,6014,REIMB SICKNESS INSURANCE CLAIM,Apr-11,08/04/11,1325.02,Manual Invoice Entry,A35655,Sickness Insurance Scheme,Other Employee Related,612750,LEARNING & ACHIEVEMENT,Social Care & Learning,Learning & Achievement,,,
http://www.havering.gov.uk,London Borough of Havering,11/04/2011,10000224,BUPA CARE HOMES (HUT) * LS18 4UP CM13 1RX 239731641 HUTTON VILLAGE,6104,040411-280411,Apr-11,11/04/11,1675,Swift,A31720,Older People-Nursing,Nursing Home Beds,643515,ADULT SOCIAL CARE,Social Care & Learning,Adult Social Care,,,
http://www.havering.gov.uk,London Borough of Havering,08/04/2011,10000225,ROMFORD YMCA LTD,6169,E151,Apr-11,14/03/11,955,Manual Invoice Entry,A33020,Ks4 Alt. Provision Havering,Externally Provided Services,643190,LEARNING & ACHIEVEMENT,Social Care & Learning,Learning & Achievement,,,
http://www.havering.gov.uk,London Borough of Havering,13/04/2011,10000226,ROMFORD YMCA LTD,6169,QUALITY & ACCESS,Apr-11,07/04/11,1748.43,Manual Invoice Entry,A33160,"Sen,Supply And Sustainability Grant",Grants,647100,LEARNING & ACHIEVEMENT,Social Care & Learning,Learning & Achievement,,,
http://www.havering.gov.uk,London Borough of Havering,26/04/2011,10000227,MOREPOWER LTD T/A AQS HOMECARE,6564,HAV/0001/A,,,112.9,Manual Invoice Entry,A32022,Domicilary Care,Home Care,643555,ADULT SOCIAL CARE,Social Care & Learning,Adult Social Care,,,
http://www.havering.gov.uk,London Borough of Havering,26/04/2011,10000228,MOREPOWER LTD T/A AQS HOMECARE,6564,HAV/0001/A,,,2508.51,Manual Invoice Entry,A31840,Pd Homecare,Home Care,643555,ADULT SOCIAL CARE,Social Care & Learning,Adult Social Care,,,
http://www.havering.gov.uk,London Borough of Havering,26/04/2011,10000229,MOREPOWER LTD T/A AQS HOMECARE,6564,HAV/0001/A,Apr-11,26/04/11,20929.19,Manual Invoice Entry,A31740,Older Persons-Domiciliary,Home Care,643555,ADULT SOCIAL CARE,Social Care & Learning,Adult Social Care,,,
http://www.havering.gov.uk,London Borough of Havering,21/04/2011,10000230,MOREPOWER LTD T/A AQS HOMECARE,6564,HAV/0012,,,225.8,Manual Invoice Entry,A32022,Domicilary Care,Home Care,643555,ADULT SOCIAL CARE,Social Care & Learning,Adult Social Care,,,
http://www.havering.gov.uk,London Borough of Havering,21/04/2011,10000231,MOREPOWER LTD T/A AQS HOMECARE,6564,HAV/0012,,,4833.12,Manual Invoice Entry,A31840,Pd Homecare,Home Care,643555,ADULT SOCIAL CARE,Social Care & Learning,Adult Social Care,,,
http://www.havering.gov.uk,London Borough of Havering,21/04/2011,10000232,MOREPOWER LTD T/A AQS HOMECARE,6564,HAV/0012,Apr-11,21/04/11,40792.41,Manual Invoice Entry,A31740,Older Persons-Domiciliary,Home Care,643555,ADULT SOCIAL CARE,Social Care & Learning,Adult Social Care,,,
http://www.havering.gov.uk,London Borough of Havering,11/04/2011,10000233,ANCYRA HEALTH LTD * CT8 8LN * PRIORY N20 9DZ AERMID HEALTH CARE N3 2JX,6830,040411-280411,Apr-11,11/04/11,1817.86,Swift,A31730,Older Persons-Residential,Residential Placements,643460,ADULT SOCIAL CARE,Social Care & Learning,Adult Social Care,,,
http://www.havering.gov.uk,London Borough of Havering,11/04/2011,10000234,ANCYRA HEALTH LTD * CT8 8LN * PRIORY N20 9DZ AERMID HEALTH CARE N3 2JX,6830,040411-280411,Apr-11,11/04/11,1817.86,Swift,A31730,Older Persons-Residential,Residential Placements,643460,ADULT SOCIAL CARE,Social Care & Learning,Adult Social Care,,,
http://www.havering.gov.uk,London Borough of Havering,11/04/2011,10000235,ANCYRA HEALTH LTD * CT8 8LN * PRIORY N20 9DZ AERMID HEALTH CARE N3 2JX,6830,040411-280411,Apr-11,11/04/11,1817.86,Swift,A31730,Older Persons-Residential,Residential Placements,643460,ADULT SOCIAL CARE,Social Care & Learning,Adult Social Care,,,
http://www.havering.gov.uk,London Borough of Havering,11/04/2011,10000236,ANCYRA HEALTH LTD * CT8 8LN * PRIORY N20 9DZ AERMID HEALTH CARE N3 2JX,6830,040411-280411,Apr-11,11/04/11,1817.86,Swift,A31730,Older Persons-Residential,Residential Placements,643460,ADULT SOCIAL CARE,Social Care & Learning,Adult Social Care,,,
http://www.havering.gov.uk,London Borough of Havering,11/04/2011,10000237,ANCYRA HEALTH LTD * CT8 8LN * PRIORY N20 9DZ AERMID HEALTH CARE N3 2JX,6830,040411-280411,Apr-11,11/04/11,1817.86,Swift,A31730,Older Persons-Residential,Residential Placements,643460,ADULT SOCIAL CARE,Social Care & Learning,Adult Social Care,,,
http://www.havering.gov.uk,London Borough of Havering,11/04/2011,10000238,ANCYRA HEALTH LTD * CT8 8LN * PRIORY N20 9DZ AERMID HEALTH CARE N3 2JX,6830,040411-280411,Apr-11,11/04/11,1817.86,Swift,A31730,Older Persons-Residential,Residential Placements,643460,ADULT SOCIAL CARE,Social Care & Learning,Adult Social Care,,,
http://www.havering.gov.uk,London Borough of Havering,11/04/2011,10000239,ANCYRA HEALTH LTD * CT8 8LN * PRIORY N20 9DZ AERMID HEALTH CARE N3 2JX,6830,040411-280411,Apr-11,11/04/11,1817.86,Swift,A31730,Older Persons-Residential,Residential Placements,643460,ADULT SOCIAL CARE,Social Care & Learning,Adult Social Care,,,
http://www.havering.gov.uk,London Borough of Havering,11/04/2011,10000240,ANCYRA HEALTH LTD * CT8 8LN * PRIORY N20 9DZ AERMID HEALTH CARE N3 2JX,6830,040411-280411,Apr-11,11/04/11,1460.71,Swift,A31730,Older Persons-Residential,Residential Placements,643460,ADULT SOCIAL CARE,Social Care & Learning,Adult Social Care,,,
http://www.havering.gov.uk,London Borough of Havering,11/04/2011,10000241,ANCYRA HEALTH LTD * CT8 8LN * PRIORY N20 9DZ AERMID HEALTH CARE N3 2JX,6830,040411-280411,Apr-11,11/04/11,1571.43,Swift,A31730,Older Persons-Residential,Residential Placements,643460,ADULT SOCIAL CARE,Social Care & Learning,Adult Social Care,,,
http://www.havering.gov.uk,London Borough of Havering,05/04/2011,10000242,ALBANY SCHOOL,6974,MONTHLY ALLOCATION 08/04/11,Apr-11,05/04/11,113301,Manual Invoice Entry,0,Balance Sheet,LMS Chequebook Accounts Adjustments,192161,Old Z Code/Bal Shet,Finance & Commerce,Financial Services,,,
http://www.havering.gov.uk,London Borough of Havering,21/04/2011,10000243,ALBANY SCHOOL,6974,REIMB MATERNITY LEAVE MARCH 20,Apr-11,21/04/11,169.51,Manual Invoice Entry,A35615,Sec - Spec.Staff/Absence,Salaries-General Staff,611110,LEARNING & ACHIEVEMENT,Social Care & Learning,Learning & Achievement,,,
http://www.havering.gov.uk,London Borough of Havering,05/04/2011,10000244,CAMPION SCHOOL LBH,6975,MONTHLY ALLOCATION 08/04/11,Apr-11,05/04/11,133816,Manual Invoice Entry,0,Balance Sheet,LMS Chequebook Accounts Adjustments,192161,Old Z Code/Bal Shet,Finance & Commerce,Financial Services,,,
http://www.havering.gov.uk,London Borough of Havering,05/04/2011,10000245,EMERSON PARK SCHOOL,6978,MONTHLY ALLOCATION 08/04/11,Apr-11,05/04/11,116123,Manual Invoice Entry,0,Balance Sheet,LMS Chequebook Accounts Adjustments,192161,Old Z Code/Bal Shet,Finance & Commerce,Financial Services,,,
http://www.havering.gov.uk,London Borough of Havering,05/04/2011,10000246,REDDEN COURT SCHOOL,6981,MONTHLY ALLOCATION 08/04/11,Apr-11,05/04/11,98049,Manual Invoice Entry,0,Balance Sheet,LMS Chequebook Accounts Adjustments,192161,Old Z Code/Bal Shet,Finance & Commerce,Financial Services,,,
http://www.havering.gov.uk,London Borough of Havering,05/04/2011,10000247,ST EDWARD'S CE SCH & SIXTH FORM COLL,6983,MONTHLY ALLOCATION 08/04/11,Apr-11,05/04/11,162500,Manual Invoice Entry,0,Balance Sheet,LMS Chequebook Accounts Adjustments,192161,Old Z Code/Bal Shet,Finance & Commerce,Financial Services,,,
http://www.havering.gov.uk,London Borough of Havering,21/04/2011,10000248,ST EDWARD'S CE SCH & SIXTH FORM COLL,6983,REIMB MATERNITY LEAVE MAR 11.,Apr-11,21/04/11,2823.95,Manual Invoice Entry,A35615,Sec - Spec.Staff/Absence,Salaries-General Staff,611110,LEARNING & ACHIEVEMENT,Social Care & Learning,Learning & Achievement,,,
http://www.havering.gov.uk,London Borough of Havering,21/04/2011,10000249,ST EDWARD'S CE SCH & SIXTH FORM COLL,6983,REIMB MATERNITY LEAVE MAR 2011,Apr-11,21/04/11,246.17,Manual Invoice Entry,A35615,Sec - Spec.Staff/Absence,Salaries-General Staff,611110,LEARNING & ACHIEVEMENT,Social Care & Learning,Learning & Achievement,,,
http://www.havering.gov.uk,London Borough of Havering,21/04/2011,10000250,ST EDWARD'S CE SCH & SIXTH FORM COLL,6983,REIMB MATERNITY LEAVE MAR11,Apr-11,21/04/11,1263.54,Manual Invoice Entry,A35615,Sec - Spec.Staff/Absence,Salaries-General Staff,611110,LEARNING & ACHIEVEMENT,Social Care & Learning,Learning & Achievement,,,
http://www.havering.gov.uk,London Borough of Havering,21/04/2011,10000251,ST EDWARD'S CE SCH & SIXTH FORM COLL,6983,REIMB MATERNITY LEAVE MARCH 20,Apr-11,21/04/11,82.96,Manual Invoice Entry,A35615,Sec - Spec.Staff/Absence,Salaries-General Staff,611110,LEARNING & ACHIEVEMENT,Social Care & Learning,Learning & Achievement,,,
http://www.havering.gov.uk,London Borough of Havering,04/04/2011,10000252,ELM PARK PRIMARY,6984,MONTHLY ALLOCATION 08/04/11,Apr-11,04/04/11,38713,Manual Invoice Entry,0,Balance Sheet,LMS Chequebook Accounts Adjustments,192161,Old Z Code/Bal Shet,Finance & Commerce,Financial Services,,,
http://www.havering.gov.uk,London Borough of Havering,08/04/2011,10000253,ELM PARK PRIMARY,6984,REIMB SICKNESS INSURANCE CLAIM,Apr-11,08/04/11,854.25,Manual Invoice Entry,A35655,Sickness Insurance Scheme,Other Employee Related,612750,LEARNING & ACHIEVEMENT,Social Care & Learning,Learning & Achievement,,,
http://www.havering.gov.uk,London Borough of Havering,04/04/2011,10000254,LBH SQUIRRELS HEATH INFANT SCHOOL,7039,MONTHLY ALLOCATION 08/04/11,Apr-11,04/04/11,22732,Manual Invoice Entry,0,Balance Sheet,LMS Chequebook Accounts Adjustments,192161,Old Z Code/Bal Shet,Finance & Commerce,Financial Services,,,
http://www.havering.gov.uk,London Borough of Havering,08/04/2011,10000255,LBH SQUIRRELS HEATH INFANT SCHOOL,7039,REIMB SICKNESS INSURANCE CLAIM,Apr-11,08/04/11,283.49,Manual Invoice Entry,A35655,Sickness Insurance Scheme,Other Employee Related,612750,LEARNING & ACHIEVEMENT,Social Care & Learning,Learning & Achievement,,,
http://www.havering.gov.uk,London Borough of Havering,04/04/2011,10000256,TOWERS INFANT SCHOOL LBH,7041,MONTHLY ALLOCATION 08/04/11,Apr-11,04/04/11,17394,Manual Invoice Entry,0,Balance Sheet,LMS Chequebook Accounts Adjustments,192161,Old Z Code/Bal Shet,Finance & Commerce,Financial Services,,,
http://www.havering.gov.uk,London Borough of Havering,08/04/2011,10000257,TOWERS INFANT SCHOOL LBH,7041,REIMB SICKNESS INSURANCE CLAIM,Apr-11,08/04/11,240,Manual Invoice Entry,A35655,Sickness Insurance Scheme,Other Employee Related,612750,LEARNING & ACHIEVEMENT,Social Care & Learning,Learning & Achievement,,,
http://www.havering.gov.uk,London Borough of Havering,04/04/2011,10000258,TOWERS JUNIOR SCHOOL LBH,7043,MONTHLY ALLOCATION 08/04/11,Apr-11,04/04/11,21013,Manual Invoice Entry,0,Balance Sheet,LMS Chequebook Accounts Adjustments,192161,Old Z Code/Bal Shet,Finance & Commerce,Financial Services,,,
http://www.havering.gov.uk,London Borough of Havering,08/04/2011,10000259,TOWERS JUNIOR SCHOOL LBH,7043,REIMB SICKNESS INSURANCE CLAIM,Apr-11,08/04/11,360,Manual Invoice Entry,A35655,Sickness Insurance Scheme,Other Employee Related,612750,LEARNING & ACHIEVEMENT,Social Care & Learning,Learning & Achievement,,,
http://www.havering.gov.uk,London Borough of Havering,05/04/2011,10000260,CORBETS TEY SCHOOL,7046,MONTHLY ALLOCATION 08/04/11,Apr-11,05/04/11,46395,Manual Invoice Entry,0,Balance Sheet,LMS Chequebook Accounts Adjustments,192161,Old Z Code/Bal Shet,Finance & Commerce,Financial Services,,,
http://www.havering.gov.uk,London Borough of Havering,08/04/2011,10000261,CORBETS TEY SCHOOL,7046,REIMB SICKNESS INSURANCE CLAIM,Apr-11,08/04/11,1087.15,Manual Invoice Entry,A35655,Sickness Insurance Scheme,Other Employee Related,612750,LEARNING & ACHIEVEMENT,Social Care & Learning,Learning & Achievement,,,
http://www.havering.gov.uk,London Borough of Havering,11/04/2011,10000262,ASH GROVE RESIDENTIAL CARE HOME RM11 1XA,7108,040411-280411,Apr-11,11/04/11,1817.86,Swift,A31730,Older Persons-Residential,Residential Placements,643460,ADULT SOCIAL CARE,Social Care & Learning,Adult Social Care,,,
http://www.havering.gov.uk,London Borough of Havering,11/04/2011,10000263,ASH GROVE RESIDENTIAL CARE HOME RM11 1XA,7108,040411-280411,Apr-11,11/04/11,1817.86,Swift,A31730,Older Persons-Residential,Residential Placements,643460,ADULT SOCIAL CARE,Social Care & Learning,Adult Social Care,,,
http://www.havering.gov.uk,London Borough of Havering,11/04/2011,10000264,ASH GROVE RESIDENTIAL CARE HOME RM11 1XA,7108,040411-280411,Apr-11,11/04/11,2071.43,Swift,A31730,Older Persons-Residential,Residential Placements,643460,ADULT SOCIAL CARE,Social Care & Learning,Adult Social Care,,,
http://www.havering.gov.uk,London Borough of Havering,11/04/2011,10000265,ASH GROVE RESIDENTIAL CARE HOME RM11 1XA,7108,040411-280411,Apr-11,11/04/11,1817.86,Swift,A31730,Older Persons-Residential,Residential Placements,643460,ADULT SOCIAL CARE,Social Care & Learning,Adult Social Care,,,
http://www.havering.gov.uk,London Borough of Havering,11/04/2011,10000266,ASH GROVE RESIDENTIAL CARE HOME RM11 1XA,7108,040411-280411,Apr-11,11/04/11,2046.43,Swift,A31730,Older Persons-Residential,Residential Placements,643460,ADULT SOCIAL CARE,Social Care & Learning,Adult Social Care,,,
http://www.havering.gov.uk,London Borough of Havering,11/04/2011,10000267,KIRKSTONE CARE LTD * WD25 7EB * VICTORIA LODGE LTD *RM1 2RA,7241,040411-280411,Apr-11,11/04/11,1571.43,Swift,A31730,Older Persons-Residential,Residential Placements,643460,ADULT SOCIAL CARE,Social Care & Learning,Adult Social Care,,,
http://www.havering.gov.uk,London Borough of Havering,11/04/2011,10000268,KIRKSTONE CARE LTD * WD25 7EB * VICTORIA LODGE LTD *RM1 2RA,7241,040411-280411,Apr-11,11/04/11,1817.86,Swift,A31730,Older Persons-Residential,Residential Placements,643460,ADULT SOCIAL CARE,Social Care & Learning,Adult Social Care,,,
http://www.havering.gov.uk,London Borough of Havering,11/04/2011,10000269,KIRKSTONE CARE LTD * WD25 7EB * VICTORIA LODGE LTD *RM1 2RA,7241,040411-280411,Apr-11,11/04/11,1817.86,Swift,A31730,Older Persons-Residential,Residential Placements,643460,ADULT SOCIAL CARE,Social Care & Learning,Adult Social Care,,,
http://www.havering.gov.uk,London Borough of Havering,11/04/2011,10000270,KIRKSTONE CARE LTD * WD25 7EB * VICTORIA LODGE LTD *RM1 2RA,7241,040411-280411,Apr-11,11/04/11,1817.86,Swift,A31730,Older Persons-Residential,Residential Placements,643460,ADULT SOCIAL CARE,Social Care & Learning,Adult Social Care,,,
http://www.havering.gov.uk,London Borough of Havering,11/04/2011,10000271,KIRKSTONE CARE LTD * WD25 7EB * VICTORIA LODGE LTD *RM1 2RA,7241,040411-280411,Apr-11,11/04/11,1817.86,Swift,A31730,Older Persons-Residential,Residential Placements,643460,ADULT SOCIAL CARE,Social Care & Learning,Adult Social Care,,,
http://www.havering.gov.uk,London Borough of Havering,18/03/2001,10000272,HAVERING CROSSROADS,7265,2010/0331,Apr-11,18/03/11,2690.84,Manual Invoice Entry,A31840,Pd Homecare,Voluntary Associations,654010,ADULT SOCIAL CARE,Social Care & Learning,Adult Social Care,,,
http://www.havering.gov.uk,London Borough of Havering,28/03/2011,10000273,HAVERING CROSSROADS,7265,2010/0332,Apr-11,18/03/11,5805.34,Manual Invoice Entry,A32022,Domicilary Care,Voluntary Associations,654010,ADULT SOCIAL CARE,Social Care & Learning,Adult Social Care,,,
http://www.havering.gov.uk,London Borough of Havering,28/03/2011,10000274,HAVERING CROSSROADS,7265,2010/0333,Apr-11,18/03/11,818.41,Manual Invoice Entry,A31740,Older Persons-Domiciliary,Voluntary Associations,654010,ADULT SOCIAL CARE,Social Care & Learning,Adult Social Care,,,
http://www.havering.gov.uk,London Borough of Havering,24/03/2011,10000275,"PINEWOOD PRIMARY SCH,LBH",7364,9,Apr-11,16/03/11,5000,Manual Invoice Entry,A90430,Environmental Strategy Capital,Grants for capital purchases,916100,REGENERATION & STRATEGIC PLANNING,Culture & Community,Regeneration & Strategic Planning,,,
http://www.havering.gov.uk,London Borough of Havering,04/04/2011,10000276,"PINEWOOD PRIMARY SCH,LBH",7364,MONTHLY ALLOCATION 08/04/11,Apr-11,04/04/11,24851,Manual Invoice Entry,0,Balance Sheet,LMS Chequebook Accounts Adjustments,192161,Old Z Code/Bal Shet,Finance & Commerce,Financial Services,,,
http://www.havering.gov.uk,London Borough of Havering,21/04/2011,10000277,"PINEWOOD PRIMARY SCH,LBH",7364,REIMB MATERNITY LEAVE MARCH 11,Apr-11,21/04/11,397.72,Manual Invoice Entry,A35605,Prim - Spec Staff Absence,Salaries-General Staff,611110,LEARNING & ACHIEVEMENT,Social Care & Learning,Learning & Achievement,,,
http://www.havering.gov.uk,London Borough of Havering,21/04/2011,10000278,"PINEWOOD PRIMARY SCH,LBH",7364,REIMB MATERNITY LEAVE MARCH 20,Apr-11,21/04/11,9.86,Manual Invoice Entry,A35605,Prim - Spec Staff Absence,Salaries-General Staff,611110,LEARNING & ACHIEVEMENT,Social Care & Learning,Learning & Achievement,,,
http://www.havering.gov.uk,London Borough of Havering,08/04/2011,10000279,"PINEWOOD PRIMARY SCH,LBH",7364,REIMB SICKNESS INSURANCE CLAIM,Apr-11,08/04/11,792.25,Manual Invoice Entry,A35655,Sickness Insurance Scheme,Other Employee Related,612750,LEARNING & ACHIEVEMENT,Social Care & Learning,Learning & Achievement,,,
http://www.havering.gov.uk,London Borough of Havering,11/04/2011,10000280,BUPA CARE HOMES (GHG) * LS18 4UP SS14 2LA 239731641 GHYLL GROVE,7676,040411-280411 ,Apr-11,11/04/11,2046.43,Swift,A31730,Older Persons-Residential,Residential Placements,643460,ADULT SOCIAL CARE,Social Care & Learning,Adult Social Care,,,
http://www.havering.gov.uk,London Borough of Havering,05/04/2011,10000281,MARSHALLS PARK SCHOOL,7851,MONTHLY ALLOCATION 08/04/11,Apr-11,05/04/11,105861,Manual Invoice Entry,0,Balance Sheet,LMS Chequebook Accounts Adjustments,192161,Old Z Code/Bal Shet,Finance & Commerce,Financial Services,,,
http://www.havering.gov.uk,London Borough of Havering,21/04/2011,10000282,MARSHALLS PARK SCHOOL,7851,REIMB MATERNITY LEAVE MAR 2011,Apr-11,21/04/11,1536.98,Manual Invoice Entry,A35615,Sec - Spec.Staff/Absence,Salaries-General Staff,611110,LEARNING & ACHIEVEMENT,Social Care & Learning,Learning & Achievement,,,
http://www.havering.gov.uk,London Borough of Havering,08/04/2011,10000283,HAVERING COLLEGE OF F&HE,7902,10030057,Apr-11,23/03/11,2500,Manual Invoice Entry,A32130,Drop Ins,Rents,623010,ADULT SOCIAL CARE,Social Care & Learning,Adult Social Care,,,
http://www.havering.gov.uk,London Borough of Havering,08/04/2011,10000284,HAVERING COLLEGE OF F&HE,7902,I0030029,Apr-11,09/03/11,4471.33,Manual Invoice Entry,A33020,Ks4 Alt. Provision Havering,Externally Provided Services,643190,LEARNING & ACHIEVEMENT,Social Care & Learning,Learning & Achievement,,,
http://www.havering.gov.uk,London Borough of Havering,27/04/2011,10000285,HAVERING COLLEGE OF F&HE,7902,I0030054,Apr-11,23/03/11,700,Manual Invoice Entry,A21460,Corporate Equalities,Special Facilities & Activities,642310,CUSTOMER  & COMMUNITY ENGAGEMENT,Culture & Community,Regeneration & Strategic Planning,,,
http://www.havering.gov.uk,London Borough of Havering,27/04/2011,10000286,HAVERING COLLEGE OF F&HE,7902,I0030070,Apr-11,25/03/11,500,Manual Invoice Entry,A36610,14-19 Activities - Diploma,Supplies & Services-Other,648300,LEARNING & ACHIEVEMENT,Social Care & Learning,Schools For The Future,,,
http://www.havering.gov.uk,London Borough of Havering,13/04/2011,10000287,HAVERING COLLEGE OF F&HE,7902,k0004495,Apr-11,06/04/11,1310,Manual Invoice Entry,A33165,Graduate Leadership Fund,Supplies & Services-Other,648300,LEARNING & ACHIEVEMENT,Social Care & Learning,Learning & Achievement,,,
http://www.havering.gov.uk,London Borough of Havering,11/04/2011,10000288,LANGLEY HOUSE* RM3 0PH,8261,030311-170311,Apr-11,11/04/11,1017.94,Swift,A31730,Older Persons-Residential,Respite Care,643550,ADULT SOCIAL CARE,Social Care & Learning,Adult Social Care,,,
http://www.havering.gov.uk,London Borough of Havering,11/04/2011,10000289,LANGLEY HOUSE* RM3 0PH,8261,040411-280411,Apr-11,11/04/11,1817.86,Swift,A31730,Older Persons-Residential,Residential Placements,643460,ADULT SOCIAL CARE,Social Care & Learning,Adult Social Care,,,
http://www.havering.gov.uk,London Borough of Havering,11/04/2011,10000290,LANGLEY HOUSE* RM3 0PH,8261,040411-280411,Apr-11,11/04/11,1817.86,Swift,A31730,Older Persons-Residential,Residential Placements,643460,ADULT SOCIAL CARE,Social Care & Learning,Adult Social Care,,,
http://www.havering.gov.uk,London Borough of Havering,11/04/2011,10000291,LANGLEY HOUSE* RM3 0PH,8261,040411-280411,Apr-11,11/04/11,1817.86,Swift,A31730,Older Persons-Residential,Residential Placements,643460,ADULT SOCIAL CARE,Social Care & Learning,Adult Social Care,,,
http://www.havering.gov.uk,London Borough of Havering,11/04/2011,10000292,LANGLEY HOUSE* RM3 0PH,8261,040411-280411,Apr-11,11/04/11,1571.43,Swift,A31730,Older Persons-Residential,Residential Placements,643460,ADULT SOCIAL CARE,Social Care & Learning,Adult Social Care,,,
http://www.havering.gov.uk,London Borough of Havering,11/04/2011,10000293,LANGLEY HOUSE* RM3 0PH,8261,040411-280411,Apr-11,11/04/11,1528.57,Swift,A31730,Older Persons-Residential,Residential Placements,643460,ADULT SOCIAL CARE,Social Care & Learning,Adult Social Care,,,
http://www.havering.gov.uk,London Borough of Havering,11/04/2011,10000294,LANGLEY HOUSE* RM3 0PH,8261,040411-280411,Apr-11,11/04/11,1528.57,Swift,A31730,Older Persons-Residential,Residential Placements,643460,ADULT SOCIAL CARE,Social Care & Learning,Adult Social Care,,,
http://www.havering.gov.uk,London Borough of Havering,11/04/2011,10000295,LANGLEY HOUSE* RM3 0PH,8261,040411-280411,Apr-11,11/04/11,1817.86,Swift,A31730,Older Persons-Residential,Residential Placements,643460,ADULT SOCIAL CARE,Social Care & Learning,Adult Social Care,,,
http://www.havering.gov.uk,London Borough of Havering,11/04/2011,10000296,LANGLEY HOUSE* RM3 0PH,8261,040411-280411,Apr-11,11/04/11,1528.57,Swift,A31730,Older Persons-Residential,Residential Placements,643460,ADULT SOCIAL CARE,Social Care & Learning,Adult Social Care,,,
http://www.havering.gov.uk,London Borough of Havering,11/04/2011,10000297,LANGLEY HOUSE* RM3 0PH,8261,040411-280411,Apr-11,11/04/11,1528.57,Swift,A31730,Older Persons-Residential,Residential Placements,643460,ADULT SOCIAL CARE,Social Care & Learning,Adult Social Care,,,
http://www.havering.gov.uk,London Borough of Havering,11/04/2011,10000298,LANGLEY HOUSE* RM3 0PH,8261,040411-280411,Apr-11,11/04/11,1764.29,Swift,A31730,Older Persons-Residential,Residential Placements,643460,ADULT SOCIAL CARE,Social Care & Learning,Adult Social Care,,,
http://www.havering.gov.uk,London Borough of Havering,11/04/2011,10000299,LANGLEY HOUSE* RM3 0PH,8261,090211-210211,Apr-11,11/04/11,817.05,Swift,A31730,Older Persons-Residential,Respite Care,643550,ADULT SOCIAL CARE,Social Care & Learning,Adult Social Care,,,
http://www.havering.gov.uk,London Borough of Havering,11/04/2011,10000300,LANGLEY HOUSE* RM3 0PH,8261,270211-160311,Apr-11,11/04/11,1236.07,Swift,A31730,Older Persons-Residential,Respite Care,643550,ADULT SOCIAL CARE,Social Care & Learning,Adult Social Care,,,
http://www.havering.gov.uk,London Borough of Havering,11/04/2011,10000301,EBURY COURT * RM7 0LX 627497209,8344,040411-280411,Apr-11,11/04/11,1571.43,Swift,A31730,Older Persons-Residential,Residential Placements,643460,ADULT SOCIAL CARE,Social Care & Learning,Adult Social Care,,,
http://www.havering.gov.uk,London Borough of Havering,11/04/2011,10000302,EBURY COURT * RM7 0LX 627497209,8344,040411-280411,Apr-11,11/04/11,2089.29,Swift,A31730,Older Persons-Residential,Residential Placements,643460,ADULT SOCIAL CARE,Social Care & Learning,Adult Social Care,,,
http://www.havering.gov.uk,London Borough of Havering,11/04/2011,10000303,EBURY COURT * RM7 0LX 627497209,8344,040411-280411,Apr-11,11/04/11,1710.71,Swift,A31730,Older Persons-Residential,Residential Placements,643460,ADULT SOCIAL CARE,Social Care & Learning,Adult Social Care,,,
http://www.havering.gov.uk,London Borough of Havering,11/04/2011,10000304,EBURY COURT * RM7 0LX 627497209,8344,040411-280411,Apr-11,11/04/11,1571.43,Swift,A31730,Older Persons-Residential,Residential Placements,643460,ADULT SOCIAL CARE,Social Care & Learning,Adult Social Care,,,
http://www.havering.gov.uk,London Borough of Havering,11/04/2011,10000305,EBURY COURT * RM7 0LX 627497209,8344,040411-280411,Apr-11,11/04/11,1817.86,Swift,A31730,Older Persons-Residential,Residential Placements,643460,ADULT SOCIAL CARE,Social Care & Learning,Adult Social Care,,,
http://www.havering.gov.uk,London Borough of Havering,11/04/2011,10000306,EBURY COURT * RM7 0LX 627497209,8344,040411-280411,Apr-11,11/04/11,1817.86,Swift,A32155,Mental Health-Residential,Residential Placements,643460,ADULT SOCIAL CARE,Social Care & Learning,Adult Social Care,,,
http://www.havering.gov.uk,London Borough of Havering,23/03/2011,10000307,CAMBRIDGE EDUCATION,8850,IN00036182,Apr-11,21/03/11,8896,Manual Invoice Entry,A31450,H.I.A.S - Insp & Advisory,Externally Provided Services,643190,LEARNING & ACHIEVEMENT,Social Care & Learning,Learning & Achievement,,,
http://www.havering.gov.uk,London Borough of Havering,11/04/2011,10000308,BROOKLANDS *SS9 5XR,8925,040411-280411,Apr-11,11/04/11,1550,Swift,A31730,Older Persons-Residential,Residential Placements,643460,ADULT SOCIAL CARE,Social Care & Learning,Adult Social Care,,,
http://www.havering.gov.uk,London Borough of Havering,26/04/2011,10000309,ALACRITY PRINTING,9008,11074,Apr-11,09/03/11,445,Manual Invoice Entry,A53110,Electoral Registration,Special Facilities & Activities,642310,LEGAL & DEMOCRATIC SVS,Legal & Democratic Services,Legal & Democratic Svs,,,
http://www.havering.gov.uk,London Borough of Havering,11/04/2011,10000310,NIGHTINGALE RESIDENTIAL CARE HOME LTD *RM2 5EH,9058,040411-280411,Apr-11,11/04/11,1817.86,Swift,A31730,Older Persons-Residential,Residential Placements,643460,ADULT SOCIAL CARE,Social Care & Learning,Adult Social Care,,,
http://www.havering.gov.uk,London Borough of Havering,11/04/2011,10000311,NIGHTINGALE RESIDENTIAL CARE HOME LTD *RM2 5EH,9058,040411-280411,Apr-11,11/04/11,1817.86,Swift,A31730,Older Persons-Residential,Residential Placements,643460,ADULT SOCIAL CARE,Social Care & Learning,Adult Social Care,,,
http://www.havering.gov.uk,London Borough of Havering,11/04/2011,10000312,NIGHTINGALE RESIDENTIAL CARE HOME LTD *RM2 5EH,9058,040411-280411,Apr-11,11/04/11,1817.86,Swift,A31730,Older Persons-Residential,Residential Placements,643460,ADULT SOCIAL CARE,Social Care & Learning,Adult Social Care,,,
http://www.havering.gov.uk,London Borough of Havering,11/04/2011,10000313,NIGHTINGALE RESIDENTIAL CARE HOME LTD *RM2 5EH,9058,040411-280411,Apr-11,11/04/11,1817.86,Swift,A31730,Older Persons-Residential,Residential Placements,643460,ADULT SOCIAL CARE,Social Care & Learning,Adult Social Care,,,
http://www.havering.gov.uk,London Borough of Havering,11/04/2011,10000314,NIGHTINGALE RESIDENTIAL CARE HOME LTD *RM2 5EH,9058,040411-280411,Apr-11,11/04/11,1817.86,Swift,A31730,Older Persons-Residential,Residential Placements,643460,ADULT SOCIAL CARE,Social Care & Learning,Adult Social Care,,,
http://www.havering.gov.uk,London Borough of Havering,11/04/2011,10000315,NIGHTINGALE RESIDENTIAL CARE HOME LTD *RM2 5EH,9058,040411-280411,Apr-11,11/04/11,1589.29,Swift,A31730,Older Persons-Residential,Residential Placements,643460,ADULT SOCIAL CARE,Social Care & Learning,Adult Social Care,,,
http://www.havering.gov.uk,London Borough of Havering,11/04/2011,10000316,NIGHTINGALE RESIDENTIAL CARE HOME LTD *RM2 5EH,9058,040411-280411,Apr-11,11/04/11,1817.86,Swift,A31730,Older Persons-Residential,Residential Placements,643460,ADULT SOCIAL CARE,Social Care & Learning,Adult Social Care,,,
http://www.havering.gov.uk,London Borough of Havering,11/04/2011,10000317,NIGHTINGALE RESIDENTIAL CARE HOME LTD *RM2 5EH,9058,040411-280411,Apr-11,11/04/11,1817.86,Swift,A31730,Older Persons-Residential,Residential Placements,643460,ADULT SOCIAL CARE,Social Care & Learning,Adult Social Care,,,
http://www.havering.gov.uk,London Borough of Havering,11/04/2011,10000318,NIGHTINGALE RESIDENTIAL CARE HOME LTD *RM2 5EH,9058,040411-280411,Apr-11,11/04/11,1571.43,Swift,A31730,Older Persons-Residential,Residential Placements,643460,ADULT SOCIAL CARE,Social Care & Learning,Adult Social Care,,,
http://www.havering.gov.uk,London Borough of Havering,11/04/2011,10000319,NIGHTINGALE RESIDENTIAL CARE HOME LTD *RM2 5EH,9058,040411-280411,Apr-11,11/04/11,1950,Swift,A31730,Older Persons-Residential,Residential Placements,643460,ADULT SOCIAL CARE,Social Care & Learning,Adult Social Care,,,
http://www.havering.gov.uk,London Borough of Havering,11/04/2011,10000320,NIGHTINGALE RESIDENTIAL CARE HOME LTD *RM2 5EH,9058,040411-280411,Apr-11,11/04/11,1817.86,Swift,A31730,Older Persons-Residential,Residential Placements,643460,ADULT SOCIAL CARE,Social Care & Learning,Adult Social Care,,,
http://www.havering.gov.uk,London Borough of Havering,11/04/2011,10000321,NIGHTINGALE RESIDENTIAL CARE HOME LTD *RM2 5EH,9058,040411-280411,Apr-11,11/04/11,1817.86,Swift,A31730,Older Persons-Residential,Residential Placements,643460,ADULT SOCIAL CARE,Social Care & Learning,Adult Social Care,,,
http://www.havering.gov.uk,London Borough of Havering,11/04/2011,10000322,NIGHTINGALE RESIDENTIAL CARE HOME LTD *RM2 5EH,9058,040411-280411,Apr-11,11/04/11,1817.86,Swift,A31730,Older Persons-Residential,Residential Placements,643460,ADULT SOCIAL CARE,Social Care & Learning,Adult Social Care,,,
http://www.havering.gov.uk,London Borough of Havering,11/04/2011,10000323,NIGHTINGALE RESIDENTIAL CARE HOME LTD *RM2 5EH,9058,040411-280411,Apr-11,11/04/11,1817.86,Swift,A31730,Older Persons-Residential,Residential Placements,643460,ADULT SOCIAL CARE,Social Care & Learning,Adult Social Care,,,
http://www.havering.gov.uk,London Borough of Havering,11/04/2011,10000324,NIGHTINGALE RESIDENTIAL CARE HOME LTD *RM2 5EH,9058,040411-280411,Apr-11,11/04/11,1817.86,Swift,A31730,Older Persons-Residential,Residential Placements,643460,ADULT SOCIAL CARE,Social Care & Learning,Adult Social Care,,,
http://www.havering.gov.uk,London Borough of Havering,11/04/2011,10000325,NIGHTINGALE RESIDENTIAL CARE HOME LTD *RM2 5EH,9058,040411-280411,Apr-11,11/04/11,1817.86,Swift,A31730,Older Persons-Residential,Residential Placements,643460,ADULT SOCIAL CARE,Social Care & Learning,Adult Social Care,,,
http://www.havering.gov.uk,London Borough of Havering,11/04/2011,10000326,NIGHTINGALE RESIDENTIAL CARE HOME LTD *RM2 5EH,9058,040411-280411,Apr-11,11/04/11,1817.86,Swift,A31730,Older Persons-Residential,Residential Placements,643460,ADULT SOCIAL CARE,Social Care & Learning,Adult Social Care,,,
http://www.havering.gov.uk,London Borough of Havering,08/04/2011,10000327,SHB HIRE LTD,9159,10195483,Apr-11,31/03/11,1408,Manual Invoice Entry,A27310,Highways & Sewers,Plant/Vehicle Hire,634010,STREETCARE,Culture & Community,Streetcare,,,
http://www.havering.gov.uk,London Borough of Havering,11/04/2011,10000328,DUDBROOK HALL RESIDENTIAL HOME * CM14 5TQ,9212,040411-280411,Apr-11,11/04/11,1817.86,Swift,A31730,Older Persons-Residential,Residential Placements,643460,ADULT SOCIAL CARE,Social Care & Learning,Adult Social Care,,,
http://www.havering.gov.uk,London Borough of Havering,11/04/2011,10000329,DUDBROOK HALL RESIDENTIAL HOME * CM14 5TQ,9212,040411-280411,Apr-11,11/04/11,1792.86,Swift,A31730,Older Persons-Residential,Residential Placements,643460,ADULT SOCIAL CARE,Social Care & Learning,Adult Social Care,,,
http://www.havering.gov.uk,London Borough of Havering,11/04/2011,10000330,DUDBROOK HALL RESIDENTIAL HOME * CM14 5TQ,9212,040411-280411,Apr-11,11/04/11,1764.29,Swift,A31730,Older Persons-Residential,Residential Placements,643460,ADULT SOCIAL CARE,Social Care & Learning,Adult Social Care,,,
http://www.havering.gov.uk,London Borough of Havering,11/04/2011,10000331,HAVERING CARE HOMES LTD T/A ABBCROSS * RM1 2RL ABBCROSS,9971,040411-280411,Apr-11,11/04/11,1675,Swift,A31720,Older People-Nursing,Nursing Home Beds,643515,ADULT SOCIAL CARE,Social Care & Learning,Adult Social Care,,,
http://www.havering.gov.uk,London Borough of Havering,11/04/2011,10000332,HAVERING CARE HOMES LTD T/A ABBCROSS * RM1 2RL ABBCROSS,9971,040411-280411,Apr-11,11/04/11,1675,Swift,A31720,Older People-Nursing,Nursing Home Beds,643515,ADULT SOCIAL CARE,Social Care & Learning,Adult Social Care,,,
http://www.havering.gov.uk,London Borough of Havering,11/04/2011,10000333,HAVERING CARE HOMES LTD T/A ABBCROSS * RM1 2RL ABBCROSS,9971,040411-280411,Apr-11,11/04/11,1675,Swift,A31720,Older People-Nursing,Nursing Home Beds,643515,ADULT SOCIAL CARE,Social Care & Learning,Adult Social Care,,,
http://www.havering.gov.uk,London Borough of Havering,11/04/2011,10000334,HAVERING CARE HOMES LTD T/A ABBCROSS * RM1 2RL ABBCROSS,9971,040411-280411,Apr-11,11/04/11,1728.57,Swift,A31720,Older People-Nursing,Nursing Home Beds,643515,ADULT SOCIAL CARE,Social Care & Learning,Adult Social Care,,,
http://www.havering.gov.uk,London Borough of Havering,11/04/2011,10000335,HAVERING CARE HOMES LTD T/A ABBCROSS * RM1 2RL ABBCROSS,9971,040411-280411,Apr-11,11/04/11,1675,Swift,A31720,Older People-Nursing,Nursing Home Beds,643515,ADULT SOCIAL CARE,Social Care & Learning,Adult Social Care,,,
http://www.havering.gov.uk,London Borough of Havering,11/04/2011,10000336,HAVERING CARE HOMES LTD T/A ABBCROSS * RM1 2RL ABBCROSS,9971,040411-280411,Apr-11,11/04/11,1571.43,Swift,A31730,Older Persons-Residential,Residential Placements,643460,ADULT SOCIAL CARE,Social Care & Learning,Adult Social Care,,,
http://www.havering.gov.uk,London Borough of Havering,11/04/2011,10000337,HAVERING CARE HOMES LTD T/A ABBCROSS * RM1 2RL ABBCROSS,9971,040411-280411,Apr-11,11/04/11,1675,Swift,A31720,Older People-Nursing,Nursing Home Beds,643515,ADULT SOCIAL CARE,Social Care & Learning,Adult Social Care,,,
http://www.havering.gov.uk,London Borough of Havering,11/04/2011,10000338,HAVERING CARE HOMES LTD T/A ABBCROSS * RM1 2RL ABBCROSS,9971,040411-280411,Apr-11,11/04/11,1675,Swift,A31720,Older People-Nursing,Nursing Home Beds,643515,ADULT SOCIAL CARE,Social Care & Learning,Adult Social Care,,,
http://www.havering.gov.uk,London Borough of Havering,11/04/2011,10000339,HAVERING CARE HOMES LTD T/A ABBCROSS * RM1 2RL ABBCROSS,9971,040411-280411,Apr-11,11/04/11,2525,Swift,A31720,Older People-Nursing,Nursing Home Beds,643515,ADULT SOCIAL CARE,Social Care & Learning,Adult Social Care,,,
http://www.havering.gov.uk,London Borough of Havering,11/04/2011,10000340,HAVERING CARE HOMES LTD T/A ABBCROSS * RM1 2RL ABBCROSS,9971,040411-280411,Apr-11,11/04/11,1675,Swift,A31720,Older People-Nursing,Nursing Home Beds,643515,ADULT SOCIAL CARE,Social Care & Learning,Adult Social Care,,,
http://www.havering.gov.uk,London Borough of Havering,11/04/2011,10000341,HAVERING CARE HOMES LTD T/A ABBCROSS * RM1 2RL ABBCROSS,9971,040411-280411,Apr-11,11/04/11,1675,Swift,A31720,Older People-Nursing,Nursing Home Beds,643515,ADULT SOCIAL CARE,Social Care & Learning,Adult Social Care,,,
http://www.havering.gov.uk,London Borough of Havering,11/04/2011,10000342,HAVERING CARE HOMES LTD T/A ABBCROSS * RM1 2RL ABBCROSS,9971,040411-280411,Apr-11,11/04/11,1675,Swift,A31720,Older People-Nursing,Nursing Home Beds,643515,ADULT SOCIAL CARE,Social Care & Learning,Adult Social Care,,,
http://www.havering.gov.uk,London Borough of Havering,11/04/2011,10000343,ABBEY CARE HOME RM5 2BH,9991,040411-280411,Apr-11,11/04/11,1817.86,Swift,A31730,Older Persons-Residential,Residential Placements,643460,ADULT SOCIAL CARE,Social Care & Learning,Adult Social Care,,,
http://www.havering.gov.uk,London Borough of Havering,11/04/2011,10000344,ABBEY CARE HOME RM5 2BH,9991,040411-280411,Apr-11,11/04/11,1817.86,Swift,A31730,Older Persons-Residential,Residential Placements,643460,ADULT SOCIAL CARE,Social Care & Learning,Adult Social Care,,,
http://www.havering.gov.uk,London Borough of Havering,11/04/2011,10000345,ABBEY CARE HOME RM5 2BH,9991,040411-280411,Apr-11,11/04/11,1817.86,Swift,A31730,Older Persons-Residential,Residential Placements,643460,ADULT SOCIAL CARE,Social Care & Learning,Adult Social Care,,,
http://www.havering.gov.uk,London Borough of Havering,11/04/2011,10000346,ABBEY CARE HOME RM5 2BH,9991,040411-280411,Apr-11,11/04/11,1817.86,Swift,A31730,Older Persons-Residential,Residential Placements,643460,ADULT SOCIAL CARE,Social Care & Learning,Adult Social Care,,,
http://www.havering.gov.uk,London Borough of Havering,11/04/2011,10000347,ABBEY CARE HOME RM5 2BH,9991,040411-280411,Apr-11,11/04/11,1817.86,Swift,A31730,Older Persons-Residential,Residential Placements,643460,ADULT SOCIAL CARE,Social Care & Learning,Adult Social Care,,,
http://www.havering.gov.uk,London Borough of Havering,11/04/2011,10000348,ABBEY CARE HOME RM5 2BH,9991,040411-280411,Apr-11,11/04/11,1817.86,Swift,A31730,Older Persons-Residential,Residential Placements,643460,ADULT SOCIAL CARE,Social Care & Learning,Adult Social Care,,,
http://www.havering.gov.uk,London Borough of Havering,11/04/2011,10000349,ABBEY CARE HOME RM5 2BH,9991,040411-280411,Apr-11,11/04/11,1817.86,Swift,A31730,Older Persons-Residential,Residential Placements,643460,ADULT SOCIAL CARE,Social Care & Learning,Adult Social Care,,,
http://www.havering.gov.uk,London Borough of Havering,11/04/2011,10000350,ABBEY CARE HOME RM5 2BH,9991,040411-280411,Apr-11,11/04/11,1817.86,Swift,A31730,Older Persons-Residential,Residential Placements,643460,ADULT SOCIAL CARE,Social Care & Learning,Adult Social Care,,,
http://www.havering.gov.uk,London Borough of Havering,13/04/2011,10000351,THURROCK COUNCIL,10368,8393555,Apr-11,17/03/11,87222.8,Manual Invoice Entry,A33530,Spec-Non-Statement Recoup,Payments To Other Local Authorities,653010,CHILDREN & YOUNG PEOPLE,Social Care & Learning,Children & Young People,,,
http://www.havering.gov.uk,London Borough of Havering,13/04/2011,10000352,THURROCK COUNCIL,10368,MONTHLY PAYROLL DEDUCTION MAR,Apr-11,12/04/11,316.42,Manual Invoice Entry,0,Balance Sheet,Salaries Deductions Payments,233031,Old Z Code/Bal Shet,Finance & Commerce,Financial Services,,,
http://www.havering.gov.uk,London Borough of Havering,11/04/2011,10000353,ABBOTSFORD NURSING HOME *RM1 3BX,10454,040411-280411,Apr-11,11/04/11,1675,Swift,A31720,Older People-Nursing,Nursing Home Beds,643515,ADULT SOCIAL CARE,Social Care & Learning,Adult Social Care,,,
http://www.havering.gov.uk,London Borough of Havering,11/04/2011,10000354,ABBOTSFORD NURSING HOME *RM1 3BX,10454,040411-280411,Apr-11,11/04/11,1817.86,Swift,A31730,Older Persons-Residential,Residential Placements,643460,ADULT SOCIAL CARE,Social Care & Learning,Adult Social Care,,,
http://www.havering.gov.uk,London Borough of Havering,11/04/2011,10000355,ABBOTSFORD NURSING HOME *RM1 3BX,10454,040411-280411,Apr-11,11/04/11,1817.86,Swift,A31730,Older Persons-Residential,Residential Placements,643460,ADULT SOCIAL CARE,Social Care & Learning,Adult Social Care,,,
http://www.havering.gov.uk,London Borough of Havering,11/04/2011,10000356,ABBOTSFORD NURSING HOME *RM1 3BX,10454,180311-310311,Apr-11,11/04/11,1018,Swift,A31730,Older Persons-Residential,Residential Placements,643460,ADULT SOCIAL CARE,Social Care & Learning,Adult Social Care,,,
http://www.havering.gov.uk,London Borough of Havering,31/03/2011,10000357,COMFORT ZONE,11056,02/196,Apr-11,17/03/11,445,Manual Invoice Entry,A28240,Hostels For The Homeless,Building Maintenance,621030,HOUSING (HRA),Culture & Community,Housing (HRA),,,
http://www.havering.gov.uk,London Borough of Havering,13/04/2011,10000358,REDACTED PERSONAL DATA,11986,F/P C:C & S 07/04-20/04/2011,Apr-11,13/04/11,2184.78,Foster Parents,A38320,LAC Teams 1 & 2 Placements,In House Foster Care Placements,643420,CHILDREN & YOUNG PEOPLE,Social Care & Learning,Children & Young People,,,
http://www.havering.gov.uk,London Borough of Havering,27/04/2011,10000359,REDACTED PERSONAL DATA,11986,F/P C:C & S 21/04-04/05/2011,Apr-11,27/04/11,2184.78,Foster Parents,A38320,LAC Teams 1 & 2 Placements,In House Foster Care Placements,643420,CHILDREN & YOUNG PEOPLE,Social Care & Learning,Children & Young People,,,
http://www.havering.gov.uk,London Borough of Havering,13/04/2011,10000360,REDACTED PERSONAL DATA,12063,F/P A:J & J 07/04-20/04/2011,Apr-11,13/04/11,1922.84,Foster Parents,A38320,LAC Teams 1 & 2 Placements,In House Foster Care Placements,643420,CHILDREN & YOUNG PEOPLE,Social Care & Learning,Children & Young People,,,
http://www.havering.gov.uk,London Borough of Havering,27/04/2011,10000361,REDACTED PERSONAL DATA,12063,F/P A:J & J 21/04-04/05/2011,Apr-11,27/04/11,1922.84,Foster Parents,A38320,LAC Teams 1 & 2 Placements,In House Foster Care Placements,643420,CHILDREN & YOUNG PEOPLE,Social Care & Learning,Children & Young People,,,
http://www.havering.gov.uk,London Borough of Havering,13/04/2011,10000362,REDACTED PERSONAL DATA,12096,F/P NANCY 07/04-20/04/2011,Apr-11,13/04/11,832.2,Foster Parents,A38350,Leaving Care Placements,Supported Accommodation,643510,CHILDREN & YOUNG PEOPLE,Social Care & Learning,Children & Young People,,,
http://www.havering.gov.uk,London Borough of Havering,27/04/2011,10000363,REDACTED PERSONAL DATA,12096,F/P NANCY 21/04-04/05/2011,Apr-11,27/04/11,832.2,Foster Parents,A38350,Leaving Care Placements,Supported Accommodation,643510,CHILDREN & YOUNG PEOPLE,Social Care & Learning,Children & Young People,,,
http://www.havering.gov.uk,London Borough of Havering,01/04/2011,10000364,ROYAL NATIONAL INSTITUTE FOR THE BLIND,12407,OP/1013017,Apr-11,01/04/11,738,Manual Invoice Entry,A32400,Adaptations,Equipment & Furniture,641010,ADULT SOCIAL CARE,Social Care & Learning,Adult Social Care,,,
http://www.havering.gov.uk,London Borough of Havering,11/04/2011,10000365,ASHBROOK NURSING HOME * IG9 5QL ONE TREE ESTATES LTD T/A,14051,040411-280411,Apr-11,11/04/11,1675,Swift,A31720,Older People-Nursing,Nursing Home Beds,643515,ADULT SOCIAL CARE,Social Care & Learning,Adult Social Care,,,
http://www.havering.gov.uk,London Borough of Havering,11/04/2011,10000366,ASHBROOK NURSING HOME * IG9 5QL ONE TREE ESTATES LTD T/A,14051,040411-280411,Apr-11,11/04/11,1817.86,Swift,A31730,Older Persons-Residential,Residential Placements,643460,ADULT SOCIAL CARE,Social Care & Learning,Adult Social Care,,,
http://www.havering.gov.uk,London Borough of Havering,11/04/2011,10000367,ASHBROOK NURSING HOME * IG9 5QL ONE TREE ESTATES LTD T/A,14051,040411-280411,Apr-11,11/04/11,1817.86,Swift,A31730,Older Persons-Residential,Residential Placements,643460,ADULT SOCIAL CARE,Social Care & Learning,Adult Social Care,,,
http://www.havering.gov.uk,London Borough of Havering,11/04/2011,10000368,ASHBROOK NURSING HOME * IG9 5QL ONE TREE ESTATES LTD T/A,14051,040411-280411,Apr-11,11/04/11,1817.86,Swift,A31730,Older Persons-Residential,Residential Placements,643460,ADULT SOCIAL CARE,Social Care & Learning,Adult Social Care,,,
http://www.havering.gov.uk,London Borough of Havering,11/04/2011,10000369,ASHBROOK NURSING HOME * IG9 5QL ONE TREE ESTATES LTD T/A,14051,040411-280411,Apr-11,11/04/11,1675,Swift,A31720,Older People-Nursing,Nursing Home Beds,643515,ADULT SOCIAL CARE,Social Care & Learning,Adult Social Care,,,
http://www.havering.gov.uk,London Borough of Havering,11/04/2011,10000370,ASHBROOK NURSING HOME * IG9 5QL ONE TREE ESTATES LTD T/A,14051,040411-280411,Apr-11,11/04/11,1571.43,Swift,A31730,Older Persons-Residential,Residential Placements,643460,ADULT SOCIAL CARE,Social Care & Learning,Adult Social Care,,,
http://www.havering.gov.uk,London Borough of Havering,11/04/2011,10000371,ASHBROOK NURSING HOME * IG9 5QL ONE TREE ESTATES LTD T/A,14051,170311-310311,Apr-11,11/04/11,1005,Swift,A31720,Older People-Nursing,Nursing Home Beds,643515,ADULT SOCIAL CARE,Social Care & Learning,Adult Social Care,,,
http://www.havering.gov.uk,London Borough of Havering,11/04/2011,10000372,ASHBROOK NURSING HOME * IG9 5QL ONE TREE ESTATES LTD T/A,14051,230311-310311,Apr-11,11/04/11,654.43,Swift,A31730,Older Persons-Residential,Residential Placements,643460,ADULT SOCIAL CARE,Social Care & Learning,Adult Social Care,,,
http://www.havering.gov.uk,London Borough of Havering,11/04/2011,10000373,"LODGE,THE * RM5 2HX CM13 3LS RM5 2HK",14551,040411-280411,Apr-11,11/04/11,1817.86,Swift,A31730,Older Persons-Residential,Residential Placements,643460,ADULT SOCIAL CARE,Social Care & Learning,Adult Social Care,,,
http://www.havering.gov.uk,London Borough of Havering,11/04/2011,10000374,"LODGE,THE * RM5 2HX CM13 3LS RM5 2HK",14551,040411-280411,Apr-11,11/04/11,1817.86,Swift,A31730,Older Persons-Residential,Residential Placements,643460,ADULT SOCIAL CARE,Social Care & Learning,Adult Social Care,,,
http://www.havering.gov.uk,London Borough of Havering,11/04/2011,10000375,"LODGE,THE * RM5 2HX CM13 3LS RM5 2HK",14551,040411-280411,Apr-11,11/04/11,2321.43,Swift,A31730,Older Persons-Residential,Residential Placements,643460,ADULT SOCIAL CARE,Social Care & Learning,Adult Social Care,,,
http://www.havering.gov.uk,London Borough of Havering,11/04/2011,10000376,"LODGE,THE * RM5 2HX CM13 3LS RM5 2HK",14551,040411-280411,Apr-11,11/04/11,1817.86,Swift,A31730,Older Persons-Residential,Residential Placements,643460,ADULT SOCIAL CARE,Social Care & Learning,Adult Social Care,,,
http://www.havering.gov.uk,London Borough of Havering,11/04/2011,10000377,"LODGE,THE * RM5 2HX CM13 3LS RM5 2HK",14551,040411-280411,Apr-11,11/04/11,1864.29,Swift,A31730,Older Persons-Residential,Residential Placements,643460,ADULT SOCIAL CARE,Social Care & Learning,Adult Social Care,,,
http://www.havering.gov.uk,London Borough of Havering,11/04/2011,10000378,"LODGE,THE * RM5 2HX CM13 3LS RM5 2HK",14551,040411-280411,Apr-11,11/04/11,1817.86,Swift,A31730,Older Persons-Residential,Residential Placements,643460,ADULT SOCIAL CARE,Social Care & Learning,Adult Social Care,,,
http://www.havering.gov.uk,London Borough of Havering,11/04/2011,10000379,"LODGE,THE * RM5 2HX CM13 3LS RM5 2HK",14551,040411-280411,Apr-11,11/04/11,1817.86,Swift,A31730,Older Persons-Residential,Residential Placements,643460,ADULT SOCIAL CARE,Social Care & Learning,Adult Social Care,,,
http://www.havering.gov.uk,London Borough of Havering,11/04/2011,10000380,"LODGE,THE * RM5 2HX CM13 3LS RM5 2HK",14551,040411-280411,Apr-11,11/04/11,1817.86,Swift,A31730,Older Persons-Residential,Residential Placements,643460,ADULT SOCIAL CARE,Social Care & Learning,Adult Social Care,,,
http://www.havering.gov.uk,London Borough of Havering,11/04/2011,10000381,"LODGE,THE * RM5 2HX CM13 3LS RM5 2HK",14551,040411-280411,Apr-11,11/04/11,1817.86,Swift,A31730,Older Persons-Residential,Residential Placements,643460,ADULT SOCIAL CARE,Social Care & Learning,Adult Social Care,,,
http://www.havering.gov.uk,London Borough of Havering,11/04/2011,10000382,"LODGE,THE * RM5 2HX CM13 3LS RM5 2HK",14551,040411-280411,Apr-11,11/04/11,1867.86,Swift,A31730,Older Persons-Residential,Residential Placements,643460,ADULT SOCIAL CARE,Social Care & Learning,Adult Social Care,,,
http://www.havering.gov.uk,London Borough of Havering,11/04/2011,10000383,"LODGE,THE * RM5 2HX CM13 3LS RM5 2HK",14551,040411-280411,Apr-11,11/04/11,1571.43,Swift,A31730,Older Persons-Residential,Residential Placements,643460,ADULT SOCIAL CARE,Social Care & Learning,Adult Social Care,,,
http://www.havering.gov.uk,London Borough of Havering,11/04/2011,10000384,"LODGE,THE * RM5 2HX CM13 3LS RM5 2HK",14551,040411-280411,Apr-11,11/04/11,1928.57,Swift,A31730,Older Persons-Residential,Residential Placements,643460,ADULT SOCIAL CARE,Social Care & Learning,Adult Social Care,,,
http://www.havering.gov.uk,London Borough of Havering,11/04/2011,10000385,"LODGE,THE * RM5 2HX CM13 3LS RM5 2HK",14551,040411-280411,Apr-11,11/04/11,1817.86,Swift,A31730,Older Persons-Residential,Residential Placements,643460,ADULT SOCIAL CARE,Social Care & Learning,Adult Social Care,,,
http://www.havering.gov.uk,London Borough of Havering,11/04/2011,10000386,"LODGE,THE * RM5 2HX CM13 3LS RM5 2HK",14551,040411-280411,Apr-11,11/04/11,1817.86,Swift,A31730,Older Persons-Residential,Residential Placements,643460,ADULT SOCIAL CARE,Social Care & Learning,Adult Social Care,,,
http://www.havering.gov.uk,London Borough of Havering,11/04/2011,10000387,"LODGE,THE * RM5 2HX CM13 3LS RM5 2HK",14551,040411-280411,Apr-11,11/04/11,1817.86,Swift,A31730,Older Persons-Residential,Residential Placements,643460,ADULT SOCIAL CARE,Social Care & Learning,Adult Social Care,,,
http://www.havering.gov.uk,London Borough of Havering,11/04/2011,10000388,"LODGE,THE * RM5 2HX CM13 3LS RM5 2HK",14551,040411-280411,Apr-11,11/04/11,1571.43,Swift,A31730,Older Persons-Residential,Residential Placements,643460,ADULT SOCIAL CARE,Social Care & Learning,Adult Social Care,,,
http://www.havering.gov.uk,London Borough of Havering,11/04/2011,10000389,"LODGE,THE * RM5 2HX CM13 3LS RM5 2HK",14551,040411-280411,Apr-11,11/04/11,1817.86,Swift,A31730,Older Persons-Residential,Residential Placements,643460,ADULT SOCIAL CARE,Social Care & Learning,Adult Social Care,,,
http://www.havering.gov.uk,London Borough of Havering,11/04/2011,10000390,"LODGE,THE * RM5 2HX CM13 3LS RM5 2HK",14551,040411-280411,Apr-11,11/04/11,1571.43,Swift,A31730,Older Persons-Residential,Residential Placements,643460,ADULT SOCIAL CARE,Social Care & Learning,Adult Social Care,,,
http://www.havering.gov.uk,London Borough of Havering,11/04/2011,10000391,"LODGE,THE * RM5 2HX CM13 3LS RM5 2HK",14551,040411-280411,Apr-11,11/04/11,1928.57,Swift,A31730,Older Persons-Residential,Residential Placements,643460,ADULT SOCIAL CARE,Social Care & Learning,Adult Social Care,,,
http://www.havering.gov.uk,London Borough of Havering,11/04/2011,10000392,"LODGE,THE * RM5 2HX CM13 3LS RM5 2HK",14551,170211-240211,Apr-11,11/04/11,508.97,Swift,A31730,Older Persons-Residential,Respite Care,643550,ADULT SOCIAL CARE,Social Care & Learning,Adult Social Care,,,
http://www.havering.gov.uk,London Borough of Havering,07/04/2011,10000393,UNIQUE OFFICE SOLUTIONS LTD,14724,89868,Apr-11,23/03/11,11247.76,Manual Invoice Entry,A91710,Corporate Buildings & Facility Capital,Furniture & equipment purchase,911600,ASSET MANAGEMENT,Finance & Commerce,Asset Management,,,
http://www.havering.gov.uk,London Borough of Havering,07/04/2011,10000394,UNIQUE OFFICE SOLUTIONS LTD,14724,89999,Apr-11,21/03/11,1003.2,Manual Invoice Entry,A91710,Corporate Buildings & Facility Capital,Furniture & equipment purchase,911600,ASSET MANAGEMENT,Finance & Commerce,Asset Management,,,
http://www.havering.gov.uk,London Borough of Havering,18/04/2011,10000395,P TUCKWELL LTD,15647,602373,Apr-11,,1641.66,Tranfuel,A47560,Transport Workshop,Stock-Direct Purchases,641235,ASSET MANAGEMENT,Finance & Commerce,Asset Management,,,
http://www.havering.gov.uk,London Borough of Havering,11/04/2011,10000396,P TUCKWELL LTD,15647,602769,Apr-11,,512,Tranfuel,A47560,Transport Workshop,Stock-Direct Purchases,641235,ASSET MANAGEMENT,Finance & Commerce,Asset Management,,,
http://www.havering.gov.uk,London Borough of Havering,11/04/2011,10000397,LITTLE GAYNES *RM14 2ED,16171,040411-280411,Apr-11,11/04/11,1571.43,Swift,A31730,Older Persons-Residential,Residential Placements,643460,ADULT SOCIAL CARE,Social Care & Learning,Adult Social Care,,,
http://www.havering.gov.uk,London Borough of Havering,11/04/2011,10000398,LITTLE GAYNES *RM14 2ED,16171,040411-280411,Apr-11,11/04/11,1571.43,Swift,A31730,Older Persons-Residential,Residential Placements,643460,ADULT SOCIAL CARE,Social Care & Learning,Adult Social Care,,,
http://www.havering.gov.uk,London Borough of Havering,11/04/2011,10000399,HALL MEAD SCHOOL,16322,43 2010,Apr-11,21/03/11,2450,Manual Invoice Entry,A33115,Aiming High For Disabled Children,Externally Provided Services,643190,LEARNING & ACHIEVEMENT,Social Care & Learning,Learning & Achievement,,,
http://www.havering.gov.uk,London Borough of Havering,05/04/2011,10000400,HALL MEAD SCHOOL,16322,MONTHLY ALLOCATION 08/04/11,Apr-11,05/04/11,124577,Manual Invoice Entry,0,Balance Sheet,LMS Chequebook Accounts Adjustments,192161,Old Z Code/Bal Shet,Finance & Commerce,Financial Services,,,
http://www.havering.gov.uk,London Borough of Havering,11/04/2011,10000401,HALL MEAD SCHOOL,16322,RE2010/11 REFUND FROM TELECOM,Apr-11,11/04/11,4927.5,Manual Invoice Entry,A35555,Chbk School Holding Code,Holdings,648610,LEARNING & ACHIEVEMENT,Social Care & Learning,Schools For The Future,,,
http://www.havering.gov.uk,London Borough of Havering,21/04/2011,10000402,HALL MEAD SCHOOL,16322,REIMB MATERNITY LEAVE MAR 2011,Apr-11,21/04/11,82.96,Manual Invoice Entry,A35615,Sec - Spec.Staff/Absence,Salaries-General Staff,611110,LEARNING & ACHIEVEMENT,Social Care & Learning,Learning & Achievement,,,
http://www.havering.gov.uk,London Borough of Havering,11/04/2011,10000403,HALL MEAD SCHOOL,16322,RENT REFUND 2010/11 FRM VODAFO,Apr-11,11/04/11,7610.4,Manual Invoice Entry,A35555,Chbk School Holding Code,Holdings,648610,LEARNING & ACHIEVEMENT,Social Care & Learning,Schools For The Future,,,
http://www.havering.gov.uk,London Borough of Havering,05/04/2011,10000404,"ROYAL LIBERTY SCHOOL,LBH",16324,MONTHLY ALLOCATION 08/04/11,Apr-11,05/04/11,86632,Manual Invoice Entry,0,Balance Sheet,LMS Chequebook Accounts Adjustments,192161,Old Z Code/Bal Shet,Finance & Commerce,Financial Services,,,
http://www.havering.gov.uk,London Borough of Havering,05/04/2011,10000405,SANDERS DRAPERS SCHOOL,16326,MONTHLY ALLOCATION 08/04/11,Apr-11,05/04/11,120394,Manual Invoice Entry,0,Balance Sheet,LMS Chequebook Accounts Adjustments,192161,Old Z Code/Bal Shet,Finance & Commerce,Financial Services,,,
http://www.havering.gov.uk,London Borough of Havering,21/04/2011,10000406,SANDERS DRAPERS SCHOOL,16326,REIMB MATERNITY LEAVE MAR11,Apr-11,21/04/11,2888.31,Manual Invoice Entry,A35615,Sec - Spec.Staff/Absence,Salaries-General Staff,611110,LEARNING & ACHIEVEMENT,Social Care & Learning,Learning & Achievement,,,
http://www.havering.gov.uk,London Borough of Havering,04/04/2011,10000407,HYLANDS PRIMARY SCHOOL,16340,MONTHLY ALLOCATION 08/04/11,Apr-11,04/04/11,40969,Manual Invoice Entry,0,Balance Sheet,LMS Chequebook Accounts Adjustments,192161,Old Z Code/Bal Shet,Finance & Commerce,Financial Services,,,
http://www.havering.gov.uk,London Borough of Havering,13/04/2011,10000408,HYLANDS PRIMARY SCHOOL,16340,QUALITY & ACCESS,Apr-11,12/04/11,2216.9,Manual Invoice Entry,A90810,Early Years Capital,Grants for capital purchases,916100,LEARNING & ACHIEVEMENT,Social Care & Learning,Learning & Achievement,,,
http://www.havering.gov.uk,London Borough of Havering,21/04/2011,10000409,HYLANDS PRIMARY SCHOOL,16340,REIMB MATERNITY LEAVE MARCH 11,Apr-11,21/04/11,82.96,Manual Invoice Entry,A35605,Prim - Spec Staff Absence,Salaries-General Staff,611110,LEARNING & ACHIEVEMENT,Social Care & Learning,Learning & Achievement,,,
http://www.havering.gov.uk,London Borough of Havering,21/04/2011,10000410,HYLANDS PRIMARY SCHOOL,16340,REIMB MATERNITY LEAVE MARCH 11,Apr-11,21/04/11,98.84,Manual Invoice Entry,A35605,Prim - Spec Staff Absence,Salaries-General Staff,611110,LEARNING & ACHIEVEMENT,Social Care & Learning,Learning & Achievement,,,
http://www.havering.gov.uk,London Borough of Havering,08/04/2011,10000411,HYLANDS PRIMARY SCHOOL,16340,REIMB SICKNESS INSURANCE CLAIM,Apr-11,08/04/11,153.99,Manual Invoice Entry,A35655,Sickness Insurance Scheme,Other Employee Related,612750,LEARNING & ACHIEVEMENT,Social Care & Learning,Learning & Achievement,,,
http://www.havering.gov.uk,London Borough of Havering,04/04/2011,10000412,MEAD JMI SCHOOL,16352,MONTHLY ALLOCATION 08/04/11,Apr-11,04/04/11,51327,Manual Invoice Entry,0,Balance Sheet,LMS Chequebook Accounts Adjustments,192161,Old Z Code/Bal Shet,Finance & Commerce,Financial Services,,,
http://www.havering.gov.uk,London Borough of Havering,21/04/2011,10000413,MEAD JMI SCHOOL,16352,REIMB MATERNITY LEAVE MARCH 11,Apr-11,21/04/11,126.65,Manual Invoice Entry,A35605,Prim - Spec Staff Absence,Salaries-General Staff,611110,LEARNING & ACHIEVEMENT,Social Care & Learning,Learning & Achievement,,,
http://www.havering.gov.uk,London Borough of Havering,08/04/2011,10000414,MEAD JMI SCHOOL,16352,REIMB SICKNESS INSURANCE CLAIM,Apr-11,08/04/11,1546.01,Manual Invoice Entry,A35655,Sickness Insurance Scheme,Other Employee Related,612750,LEARNING & ACHIEVEMENT,Social Care & Learning,Learning & Achievement,,,
http://www.havering.gov.uk,London Borough of Havering,04/04/2011,10000415,ST EDWARDS CE PRIMARY SCHOOL,16362,MONTHLY ALLOCATION 08/04/11,Apr-11,04/04/11,58160,Manual Invoice Entry,0,Balance Sheet,LMS Chequebook Accounts Adjustments,192161,Old Z Code/Bal Shet,Finance & Commerce,Financial Services,,,
http://www.havering.gov.uk,London Borough of Havering,08/04/2011,10000416,ST EDWARDS CE PRIMARY SCHOOL,16362,REIMB SICKNESS INSURANCE CLAIM,Apr-11,08/04/11,1497.87,Manual Invoice Entry,A35655,Sickness Insurance Scheme,Other Employee Related,612750,LEARNING & ACHIEVEMENT,Social Care & Learning,Learning & Achievement,,,
http://www.havering.gov.uk,London Borough of Havering,04/04/2011,10000417,"ST PETERS CATHOLIC PRIMARY SCH,LBH",16363,MONTHLY ALLOCATION 08/04/11,Apr-11,04/04/11,19154,Manual Invoice Entry,0,Balance Sheet,LMS Chequebook Accounts Adjustments,192161,Old Z Code/Bal Shet,Finance & Commerce,Financial Services,,,
http://www.havering.gov.uk,London Borough of Havering,08/04/2011,10000418,"ST PETERS CATHOLIC PRIMARY SCH,LBH",16363,REIMB SICKNESS INSURANCE CLAIM,Apr-11,08/04/11,748.35,Manual Invoice Entry,A35655,Sickness Insurance Scheme,Other Employee Related,612750,LEARNING & ACHIEVEMENT,Social Care & Learning,Learning & Achievement,,,
http://www.havering.gov.uk,London Borough of Havering,04/04/2011,10000419,WYKEHAM PRIMARY SCHOOL,16372,MONTHLY ALLOCATION 08/04/11,Apr-11,04/04/11,36257,Manual Invoice Entry,0,Balance Sheet,LMS Chequebook Accounts Adjustments,192161,Old Z Code/Bal Shet,Finance & Commerce,Financial Services,,,
http://www.havering.gov.uk,London Borough of Havering,05/04/2011,10000420,LBH RAVENSBOURNE SCHOOL,16375,MONTHLY ALLOCATION 08/04/11,Apr-11,05/04/11,47919,Manual Invoice Entry,0,Balance Sheet,LMS Chequebook Accounts Adjustments,192161,Old Z Code/Bal Shet,Finance & Commerce,Financial Services,,,
http://www.havering.gov.uk,London Borough of Havering,08/04/2011,10000421,LBH RAVENSBOURNE SCHOOL,16375,REIMB SICKNESS INSURANCE CLAIM,Apr-11,08/04/11,32.22,Manual Invoice Entry,A35655,Sickness Insurance Scheme,Other Employee Related,612750,LEARNING & ACHIEVEMENT,Social Care & Learning,Learning & Achievement,,,
http://www.havering.gov.uk,London Borough of Havering,11/04/2011,10000422,ABBELEIGH HOUSE *RM3 0LS,16400,040411-280411,Apr-11,11/04/11,1817.86,Swift,A31730,Older Persons-Residential,Residential Placements,643460,ADULT SOCIAL CARE,Social Care & Learning,Adult Social Care,,,
http://www.havering.gov.uk,London Borough of Havering,11/04/2011,10000423,ABBELEIGH HOUSE *RM3 0LS,16400,040411-280411,Apr-11,11/04/11,1817.86,Swift,A31730,Older Persons-Residential,Residential Placements,643460,ADULT SOCIAL CARE,Social Care & Learning,Adult Social Care,,,
http://www.havering.gov.uk,London Borough of Havering,11/04/2011,10000424,ABBELEIGH HOUSE *RM3 0LS,16400,040411-280411,Apr-11,11/04/11,1817.86,Swift,A31730,Older Persons-Residential,Residential Placements,643460,ADULT SOCIAL CARE,Social Care & Learning,Adult Social Care,,,
http://www.havering.gov.uk,London Borough of Havering,11/04/2011,10000425,ABBELEIGH HOUSE *RM3 0LS,16400,040411-280411,Apr-11,11/04/11,1817.86,Swift,A31730,Older Persons-Residential,Residential Placements,643460,ADULT SOCIAL CARE,Social Care & Learning,Adult Social Care,,,
http://www.havering.gov.uk,London Borough of Havering,11/04/2011,10000426,ABBELEIGH HOUSE *RM3 0LS,16400,040411-280411,Apr-11,11/04/11,1460.71,Swift,A31730,Older Persons-Residential,Residential Placements,643460,ADULT SOCIAL CARE,Social Care & Learning,Adult Social Care,,,
http://www.havering.gov.uk,London Borough of Havering,11/04/2011,10000427,ABBELEIGH HOUSE *RM3 0LS,16400,040411-280411,Apr-11,11/04/11,1817.86,Swift,A31730,Older Persons-Residential,Residential Placements,643460,ADULT SOCIAL CARE,Social Care & Learning,Adult Social Care,,,
http://www.havering.gov.uk,London Borough of Havering,11/04/2011,10000428,ABBELEIGH HOUSE *RM3 0LS,16400,040411-280411,Apr-11,11/04/11,1571.43,Swift,A31730,Older Persons-Residential,Residential Placements,643460,ADULT SOCIAL CARE,Social Care & Learning,Adult Social Care,,,
http://www.havering.gov.uk,London Borough of Havering,11/04/2011,10000429,ABBELEIGH HOUSE *RM3 0LS,16400,040411-280411,Apr-11,11/04/11,1528.57,Swift,A31730,Older Persons-Residential,Residential Placements,643460,ADULT SOCIAL CARE,Social Care & Learning,Adult Social Care,,,
http://www.havering.gov.uk,London Borough of Havering,11/04/2011,10000430,ABBELEIGH HOUSE *RM3 0LS,16400,040411-280411,Apr-11,11/04/11,1571.43,Swift,A31730,Older Persons-Residential,Residential Placements,643460,ADULT SOCIAL CARE,Social Care & Learning,Adult Social Care,,,
http://www.havering.gov.uk,London Borough of Havering,11/04/2011,10000431,MORELAND HOUSE * IG9 5QL * RM11 2EB *,17189,040411-280411,Apr-11,11/04/11,1817.86,Swift,A31730,Older Persons-Residential,Residential Placements,643460,ADULT SOCIAL CARE,Social Care & Learning,Adult Social Care,,,
http://www.havering.gov.uk,London Borough of Havering,11/04/2011,10000432,MORELAND HOUSE * IG9 5QL * RM11 2EB *,17189,040411-280411,Apr-11,11/04/11,1817.86,Swift,A31730,Older Persons-Residential,Residential Placements,643460,ADULT SOCIAL CARE,Social Care & Learning,Adult Social Care,,,
http://www.havering.gov.uk,London Borough of Havering,11/04/2011,10000433,MORELAND HOUSE * IG9 5QL * RM11 2EB *,17189,040411-280411,Apr-11,11/04/11,1817.86,Swift,A31730,Older Persons-Residential,Residential Placements,643460,ADULT SOCIAL CARE,Social Care & Learning,Adult Social Care,,,
http://www.havering.gov.uk,London Borough of Havering,11/04/2011,10000434,MORELAND HOUSE * IG9 5QL * RM11 2EB *,17189,040411-280411,Apr-11,11/04/11,1817.86,Swift,A31730,Older Persons-Residential,Residential Placements,643460,ADULT SOCIAL CARE,Social Care & Learning,Adult Social Care,,,
http://www.havering.gov.uk,London Borough of Havering,11/04/2011,10000435,MORELAND HOUSE * IG9 5QL * RM11 2EB *,17189,040411-280411,Apr-11,11/04/11,1817.86,Swift,A31730,Older Persons-Residential,Residential Placements,643460,ADULT SOCIAL CARE,Social Care & Learning,Adult Social Care,,,
http://www.havering.gov.uk,London Borough of Havering,11/04/2011,10000436,MORELAND HOUSE * IG9 5QL * RM11 2EB *,17189,040411-280411,Apr-11,11/04/11,1817.86,Swift,A31730,Older Persons-Residential,Residential Placements,643460,ADULT SOCIAL CARE,Social Care & Learning,Adult Social Care,,,
http://www.havering.gov.uk,London Borough of Havering,11/04/2011,10000437,MORELAND HOUSE * IG9 5QL * RM11 2EB *,17189,040411-280411,Apr-11,11/04/11,1817.86,Swift,A31730,Older Persons-Residential,Residential Placements,643460,ADULT SOCIAL CARE,Social Care & Learning,Adult Social Care,,,
http://www.havering.gov.uk,London Borough of Havering,11/04/2011,10000438,MORELAND HOUSE * IG9 5QL * RM11 2EB *,17189,040411-280411,Apr-11,11/04/11,1817.86,Swift,A31730,Older Persons-Residential,Residential Placements,643460,ADULT SOCIAL CARE,Social Care & Learning,Adult Social Care,,,
http://www.havering.gov.uk,London Borough of Havering,04/04/2011,10000439,SCARGILL JUNIOR SCHOOL LBH,17471,MONTHLY ALLOCATION 08/04/11,Apr-11,04/04/11,25286,Manual Invoice Entry,0,Balance Sheet,LMS Chequebook Accounts Adjustments,192161,Old Z Code/Bal Shet,Finance & Commerce,Financial Services,,,
http://www.havering.gov.uk,London Borough of Havering,21/04/2011,10000440,SCARGILL JUNIOR SCHOOL LBH,17471,REIMB MATERNITY LEAVE MARCH 20,Apr-11,21/04/11,2566.08,Manual Invoice Entry,A35605,Prim - Spec Staff Absence,Salaries-General Staff,611110,LEARNING & ACHIEVEMENT,Social Care & Learning,Learning & Achievement,,,
http://www.havering.gov.uk,London Borough of Havering,08/04/2011,10000441,SCARGILL JUNIOR SCHOOL LBH,17471,REIMB SICKNESS INSURANCE CLAIM,Apr-11,08/04/11,446.04,Manual Invoice Entry,A35655,Sickness Insurance Scheme,Other Employee Related,612750,LEARNING & ACHIEVEMENT,Social Care & Learning,Learning & Achievement,,,
http://www.havering.gov.uk,London Borough of Havering,12/04/2011,10000442,HARDING BROS ELECTRICAL LTD,18276,3,Apr-11,09/04/11,971.85,Manual Invoice Entry,A44820,SS - Cheque Book Schools,Building Maintenance,621030,ASSET MANAGEMENT,Finance & Commerce,Asset Management,,,
http://www.havering.gov.uk,London Borough of Havering,27/04/2011,10000443,HARDING BROS ELECTRICAL LTD,18276,IN008316,Apr-11,27/04/11,2857.89,Manual Invoice Entry,A23140,Building Maintenance,Building Maintenance,621030,CULTURE & LEISURE,Culture & Community,Culture & Leisure,,,
http://www.havering.gov.uk,London Borough of Havering,06/04/2011,10000444,HARDING BROS ELECTRICAL LTD,18276,IN008631,Apr-11,25/03/11,1040,Manual Invoice Entry,A46540,Surplus Property Expenses,Building Maintenance,621030,ASSET MANAGEMENT,Finance & Commerce,Asset Management,,,
http://www.havering.gov.uk,London Borough of Havering,03/03/2011,10000445,HARDING BROS ELECTRICAL LTD,18276,INV008553,Apr-11,25/02/11,1422,Manual Invoice Entry,A44820,SS - Cheque Book Schools,Building Maintenance,621030,ASSET MANAGEMENT,Finance & Commerce,Asset Management,,,
http://www.havering.gov.uk,London Borough of Havering,13/04/2011,10000446,UNISON,18352,MONTHLY PAYROLL DEDUCTION MAR,Apr-11,12/04/11,21634.36,Manual Invoice Entry,0,Balance Sheet,Salaries Deductions Payments,233031,Old Z Code/Bal Shet,Finance & Commerce,Financial Services,,,
http://www.havering.gov.uk,London Borough of Havering,18/04/2011,10000447,PLUS BUSINESS SYSTEMS LTD,18616,5644,Apr-11,07/03/11,1945,Manual Invoice Entry,A30910,HCAE - Central Office,Software,644320,LEARNING & ACHIEVEMENT,Social Care & Learning,Learning & Achievement,,,
http://www.havering.gov.uk,London Borough of Havering,11/04/2011,10000448,LOOKERS MOTOR GROUP LTD,18978,60465173,Apr-11,,567.56,Tranfuel,A47560,Transport Workshop,Stock-Direct Purchases,641235,ASSET MANAGEMENT,Finance & Commerce,Asset Management,,,
http://www.havering.gov.uk,London Borough of Havering,13/04/2011,10000449,REDACTED PERSONAL DATA,19127, 07/04-20/04/2011,Apr-11,13/04/11,782.2,Foster Parents,A38200,New In-Year Placements,In House Foster Care Placements,643420,CHILDREN & YOUNG PEOPLE,Social Care & Learning,Children & Young People,,,
http://www.havering.gov.uk,London Borough of Havering,27/04/2011,10000450,REDACTED PERSONAL DATA,19127,21/04-04/05/2011,Apr-11,27/04/11,782.2,Foster Parents,A38200,New In-Year Placements,In House Foster Care Placements,643420,CHILDREN & YOUNG PEOPLE,Social Care & Learning,Children & Young People,,,
http://www.havering.gov.uk,London Borough of Havering,11/04/2011,10000451,MAY RESIDENTIAL HOMES LTD * RM14 2BN FRESHFIELDS,19151,040411-280411,Apr-11,11/04/11,1571.43,Swift,A31730,Older Persons-Residential,Residential Placements,643460,ADULT SOCIAL CARE,Social Care & Learning,Adult Social Care,,,
http://www.havering.gov.uk,London Borough of Havering,11/04/2011,10000452,MAY RESIDENTIAL HOMES LTD * RM14 2BN FRESHFIELDS,19151,040411-280411,Apr-11,11/04/11,1828.57,Swift,A31730,Older Persons-Residential,Residential Placements,643460,ADULT SOCIAL CARE,Social Care & Learning,Adult Social Care,,,
http://www.havering.gov.uk,London Borough of Havering,11/04/2011,10000453,MAY RESIDENTIAL HOMES LTD * RM14 2BN FRESHFIELDS,19151,040411-280411,Apr-11,11/04/11,1571.43,Swift,A31730,Older Persons-Residential,Residential Placements,643460,ADULT SOCIAL CARE,Social Care & Learning,Adult Social Care,,,
http://www.havering.gov.uk,London Borough of Havering,11/04/2011,10000454,MAY RESIDENTIAL HOMES LTD * RM14 2BN FRESHFIELDS,19151,040411-280411,Apr-11,11/04/11,1764.29,Swift,A31730,Older Persons-Residential,Residential Placements,643460,ADULT SOCIAL CARE,Social Care & Learning,Adult Social Care,,,
http://www.havering.gov.uk,London Borough of Havering,11/04/2011,10000455,GENESIS RESIDENTIAL HOMES LTD * RM2 6JB DOTHAN HOUSE LIBERTY LODGE,19159,040411-280411,Apr-11,11/04/11,1571.43,Swift,A31730,Older Persons-Residential,Residential Placements,643460,ADULT SOCIAL CARE,Social Care & Learning,Adult Social Care,,,
http://www.havering.gov.uk,London Borough of Havering,11/04/2011,10000456,GENESIS RESIDENTIAL HOMES LTD * RM2 6JB DOTHAN HOUSE LIBERTY LODGE,19159,040411-280411,Apr-11,11/04/11,1817.86,Swift,A31730,Older Persons-Residential,Residential Placements,643460,ADULT SOCIAL CARE,Social Care & Learning,Adult Social Care,,,
http://www.havering.gov.uk,London Borough of Havering,11/04/2011,10000457,GENESIS RESIDENTIAL HOMES LTD * RM2 6JB DOTHAN HOUSE LIBERTY LODGE,19159,040411-280411,Apr-11,11/04/11,1817.86,Swift,A31730,Older Persons-Residential,Residential Placements,643460,ADULT SOCIAL CARE,Social Care & Learning,Adult Social Care,,,
http://www.havering.gov.uk,London Borough of Havering,11/04/2011,10000458,GENESIS RESIDENTIAL HOMES LTD * RM2 6JB DOTHAN HOUSE LIBERTY LODGE,19159,040411-280411,Apr-11,11/04/11,1817.86,Swift,A31730,Older Persons-Residential,Residential Placements,643460,ADULT SOCIAL CARE,Social Care & Learning,Adult Social Care,,,
http://www.havering.gov.uk,London Borough of Havering,12/04/2011,10000459,LONDON BOROUGH OF TOWER HAMLETS,19366,83585508,Apr-11,21/03/11,3528.78,Manual Invoice Entry,A33210,Hospital Education - Out Of Borough Recoupment,Payments To Other Local Authorities,653010,LEARNING & ACHIEVEMENT,Social Care & Learning,Learning & Achievement,,,
http://www.havering.gov.uk,London Borough of Havering,11/04/2011,10000460,AVONPARK (RYEDALE) LTD * IG11 8PE RYEDALE COURT NURSING HOME,19609,040411-280411,Apr-11,11/04/11,1728.57,Swift,A31720,Older People-Nursing,Nursing Home Beds,643515,ADULT SOCIAL CARE,Social Care & Learning,Adult Social Care,,,
http://www.havering.gov.uk,London Borough of Havering,11/04/2011,10000461,MELODY LODGE * PE23 4BJ SKITININ,19679,040411-100411,Apr-11,11/04/11,-71.15,Swift,A32020,Residential Provision,Residential Placements,643460,ADULT SOCIAL CARE,Social Care & Learning,Adult Social Care,,,
http://www.havering.gov.uk,London Borough of Havering,11/04/2011,10000462,MELODY LODGE * PE23 4BJ SKITININ,19679,040411-100411,Apr-11,11/04/11,756.72,Swift,A32020,Residential Provision,Residential Placements,643460,ADULT SOCIAL CARE,Social Care & Learning,Adult Social Care,,,
http://www.havering.gov.uk,London Borough of Havering,11/04/2011,10000463,MELODY LODGE * PE23 4BJ SKITININ,19679,110411-280411,Apr-11,11/04/11,-189.64,Swift,A32020,Residential Provision,Residential Placements,643460,ADULT SOCIAL CARE,Social Care & Learning,Adult Social Care,,,
http://www.havering.gov.uk,London Borough of Havering,11/04/2011,10000464,MELODY LODGE * PE23 4BJ SKITININ,19679,110411-280411,Apr-11,11/04/11,1945.85,Swift,A32020,Residential Provision,Residential Placements,643460,ADULT SOCIAL CARE,Social Care & Learning,Adult Social Care,,,
http://www.havering.gov.uk,London Borough of Havering,11/04/2011,10000465,AILSA HOUSE RESIDENTIAL CARE HOME *SS0 8DB SS0 9PQ AILSAHOUSERESTHOME,19787,030311-310311,Apr-11,11/04/11,1586.71,Swift,A31730,Older Persons-Residential,Residential Placements,643460,ADULT SOCIAL CARE,Social Care & Learning,Adult Social Care,,,
http://www.havering.gov.uk,London Borough of Havering,11/04/2011,10000466,AILSA HOUSE RESIDENTIAL CARE HOME *SS0 8DB SS0 9PQ AILSAHOUSERESTHOME,19787,030311-310311,Apr-11,11/04/11,1586.71,Swift,A31730,Older Persons-Residential,Residential Placements,643460,ADULT SOCIAL CARE,Social Care & Learning,Adult Social Care,,,
http://www.havering.gov.uk,London Borough of Havering,11/04/2011,10000467,AILSA HOUSE RESIDENTIAL CARE HOME *SS0 8DB SS0 9PQ AILSAHOUSERESTHOME,19787,040411-280411,Apr-11,11/04/11,1367.86,Swift,A31730,Older Persons-Residential,Residential Placements,643460,ADULT SOCIAL CARE,Social Care & Learning,Adult Social Care,,,
http://www.havering.gov.uk,London Borough of Havering,11/04/2011,10000468,AILSA HOUSE RESIDENTIAL CARE HOME *SS0 8DB SS0 9PQ AILSAHOUSERESTHOME,19787,040411-280411,Apr-11,11/04/11,1367.86,Swift,A31730,Older Persons-Residential,Residential Placements,643460,ADULT SOCIAL CARE,Social Care & Learning,Adult Social Care,,,
http://www.havering.gov.uk,London Borough of Havering,11/04/2011,10000469,ASHBOURNE HOMES LADYVILLE LODGE *RM14 3PR*LADYVILLEL,20438,040411-280411,Apr-11,11/04/11,1728.57,Swift,A31720,Older People-Nursing,Nursing Home Beds,643515,ADULT SOCIAL CARE,Social Care & Learning,Adult Social Care,,,
http://www.havering.gov.uk,London Borough of Havering,11/04/2011,10000470,ASHBOURNE HOMES LADYVILLE LODGE *RM14 3PR*LADYVILLEL,20438,040411-280411,Apr-11,11/04/11,1817.86,Swift,A31730,Older Persons-Residential,Residential Placements,643460,ADULT SOCIAL CARE,Social Care & Learning,Adult Social Care,,,
http://www.havering.gov.uk,London Borough of Havering,11/04/2011,10000471,ASHBOURNE HOMES LADYVILLE LODGE *RM14 3PR*LADYVILLEL,20438,040411-280411,Apr-11,11/04/11,1675,Swift,A31720,Older People-Nursing,Nursing Home Beds,643515,ADULT SOCIAL CARE,Social Care & Learning,Adult Social Care,,,
http://www.havering.gov.uk,London Borough of Havering,11/04/2011,10000472,ASHBOURNE HOMES LADYVILLE LODGE *RM14 3PR*LADYVILLEL,20438,040411-280411,Apr-11,11/04/11,1571.43,Swift,A31730,Older Persons-Residential,Residential Placements,643460,ADULT SOCIAL CARE,Social Care & Learning,Adult Social Care,,,
http://www.havering.gov.uk,London Borough of Havering,11/04/2011,10000473,ASHBOURNE HOMES LADYVILLE LODGE *RM14 3PR*LADYVILLEL,20438,040411-280411,Apr-11,11/04/11,1675,Swift,A31720,Older People-Nursing,Nursing Home Beds,643515,ADULT SOCIAL CARE,Social Care & Learning,Adult Social Care,,,
http://www.havering.gov.uk,London Borough of Havering,11/04/2011,10000474,ASHBOURNE HOMES LADYVILLE LODGE *RM14 3PR*LADYVILLEL,20438,040411-280411,Apr-11,11/04/11,1675,Swift,A31720,Older People-Nursing,Nursing Home Beds,643515,ADULT SOCIAL CARE,Social Care & Learning,Adult Social Care,,,
http://www.havering.gov.uk,London Borough of Havering,11/04/2011,10000475,ASHBOURNE HOMES LADYVILLE LODGE *RM14 3PR*LADYVILLEL,20438,040411-280411,Apr-11,11/04/11,1571.43,Swift,A31730,Older Persons-Residential,Residential Placements,643460,ADULT SOCIAL CARE,Social Care & Learning,Adult Social Care,,,
http://www.havering.gov.uk,London Borough of Havering,11/04/2011,10000476,ASHBOURNE HOMES LADYVILLE LODGE *RM14 3PR*LADYVILLEL,20438,040411-280411,Apr-11,11/04/11,1571.43,Swift,A31730,Older Persons-Residential,Residential Placements,643460,ADULT SOCIAL CARE,Social Care & Learning,Adult Social Care,,,
http://www.havering.gov.uk,London Borough of Havering,11/04/2011,10000477,ASHBOURNE HOMES LADYVILLE LODGE *RM14 3PR*LADYVILLEL,20438,040411-280411,Apr-11,11/04/11,1571.43,Swift,A31730,Older Persons-Residential,Residential Placements,643460,ADULT SOCIAL CARE,Social Care & Learning,Adult Social Care,,,
http://www.havering.gov.uk,London Borough of Havering,11/04/2011,10000478,ASHBOURNE HOMES LADYVILLE LODGE *RM14 3PR*LADYVILLEL,20438,040411-280411,Apr-11,11/04/11,1675,Swift,A31720,Older People-Nursing,Nursing Home Beds,643515,ADULT SOCIAL CARE,Social Care & Learning,Adult Social Care,,,
http://www.havering.gov.uk,London Borough of Havering,11/04/2011,10000479,MERRIE LOOTS REST HOME * SS17 0QS,20615,040411-280411,Apr-11,11/04/11,1817.86,Swift,A31730,Older Persons-Residential,Residential Placements,643460,ADULT SOCIAL CARE,Social Care & Learning,Adult Social Care,,,
http://www.havering.gov.uk,London Borough of Havering,06/04/2011,10000480,JOHNSON CONTROLS LTD,21379,6906114126,Apr-11,01/02/11,5317.5,Manual Invoice Entry,A46430,Scimitar House Facilities,Building Maintenance,621030,ASSET MANAGEMENT,Finance & Commerce,Asset Management,,,
http://www.havering.gov.uk,London Borough of Havering,05/04/2011,10000481,PARKLANE PRE- SCHOOL,21796,EEE APRIL 2011 MONTHLY PAYMENT,Apr-11,05/04/11,3053.9,Early Educational Entitlement,A33100,Nursery Educ - 3 To 4 Yr Olds,Externally Provided Services,643190,LEARNING & ACHIEVEMENT,Social Care & Learning,Learning & Achievement,,,
http://www.havering.gov.uk,London Borough of Havering,12/04/2011,10000482,PARKLANE PRE- SCHOOL,21796,QUALITY & ACCESS 2009-10,Apr-11,12/04/11,3468.13,Manual Invoice Entry,A90810,Early Years Capital,Grants for capital purchases,916100,LEARNING & ACHIEVEMENT,Social Care & Learning,Learning & Achievement,,,
http://www.havering.gov.uk,London Borough of Havering,11/04/2011,10000483,REDACTED PERSONAL INFORMATION,22019,040411-100411,Apr-11,11/04/11,-71.15,Swift,A32020,Residential Provision,Residential Placements,643460,ADULT SOCIAL CARE,Social Care & Learning,Adult Social Care,,,
http://www.havering.gov.uk,London Borough of Havering,11/04/2011,10000484,REDACTED PERSONAL INFORMATION,22019,040411-100411,Apr-11,11/04/11,875.44,Swift,A32020,Residential Provision,Residential Placements,643460,ADULT SOCIAL CARE,Social Care & Learning,Adult Social Care,,,
http://www.havering.gov.uk,London Borough of Havering,11/04/2011,10000485,REDACTED PERSONAL INFORMATION,22019,040411-100411,Apr-11,11/04/11,-71.15,Swift,A32006,ISAS PCT/LBH,Residential Placements,643460,ADULT SOCIAL CARE,Social Care & Learning,Adult Social Care,,,
http://www.havering.gov.uk,London Borough of Havering,11/04/2011,10000486,REDACTED PERSONAL INFORMATION,22019,040411-100411,Apr-11,11/04/11,1077.05,Swift,A32006,ISAS PCT/LBH,Residential Placements,643460,ADULT SOCIAL CARE,Social Care & Learning,Adult Social Care,,,
http://www.havering.gov.uk,London Borough of Havering,11/04/2011,10000487,REDACTED PERSONAL INFORMATION,22019,110411-280411,Apr-11,11/04/11,-189.64,Swift,A32020,Residential Provision,Residential Placements,643460,ADULT SOCIAL CARE,Social Care & Learning,Adult Social Care,,,
http://www.havering.gov.uk,London Borough of Havering,11/04/2011,10000488,REDACTED PERSONAL INFORMATION,22019,110411-280411,Apr-11,11/04/11,2251.13,Swift,A32020,Residential Provision,Residential Placements,643460,ADULT SOCIAL CARE,Social Care & Learning,Adult Social Care,,,
http://www.havering.gov.uk,London Borough of Havering,11/04/2011,10000489,REDACTED PERSONAL INFORMATION,22019,110411-280411,Apr-11,11/04/11,-189.64,Swift,A32006,ISAS PCT/LBH,Residential Placements,643460,ADULT SOCIAL CARE,Social Care & Learning,Adult Social Care,,,
http://www.havering.gov.uk,London Borough of Havering,11/04/2011,10000490,REDACTED PERSONAL INFORMATION,22019,110411-280411,Apr-11,11/04/11,2769.56,Swift,A32006,ISAS PCT/LBH,Residential Placements,643460,ADULT SOCIAL CARE,Social Care & Learning,Adult Social Care,,,
http://www.havering.gov.uk,London Borough of Havering,11/04/2011,10000491,"GRANGE, THE *SS0 8LQ CROWSTONE CARE HOME",22030,110411-280411,Apr-11,11/04/11,-309.57,Swift,A31730,Older Persons-Residential,Residential Placements,643460,ADULT SOCIAL CARE,Social Care & Learning,Adult Social Care,,,
http://www.havering.gov.uk,London Borough of Havering,11/04/2011,10000492,"GRANGE, THE *SS0 8LQ CROWSTONE CARE HOME",22030,110411-280411,Apr-11,11/04/11,1068.69,Swift,A31730,Older Persons-Residential,Residential Placements,643460,ADULT SOCIAL CARE,Social Care & Learning,Adult Social Care,,,
http://www.havering.gov.uk,London Borough of Havering,11/04/2011,10000493,"GRANGE, THE *SS0 8LQ CROWSTONE CARE HOME",22030,110411-280411,Apr-11,11/04/11,-295.07,Swift,A32155,Mental Health-Residential,Residential Placements,643460,ADULT SOCIAL CARE,Social Care & Learning,Adult Social Care,,,
http://www.havering.gov.uk,London Borough of Havering,11/04/2011,10000494,"GRANGE, THE *SS0 8LQ CROWSTONE CARE HOME",22030,110411-280411,Apr-11,11/04/11,1117.13,Swift,A32155,Mental Health-Residential,Residential Placements,643460,ADULT SOCIAL CARE,Social Care & Learning,Adult Social Care,,,
http://www.havering.gov.uk,London Borough of Havering,11/04/2011,10000495,"GRANGE, THE *SS0 8LQ CROWSTONE CARE HOME",22030,110411-280411,Apr-11,11/04/11,-189.64,Swift,A32155,Mental Health-Residential,Residential Placements,643460,ADULT SOCIAL CARE,Social Care & Learning,Adult Social Care,,,
http://www.havering.gov.uk,London Borough of Havering,11/04/2011,10000496,"GRANGE, THE *SS0 8LQ CROWSTONE CARE HOME",22030,110411-280411,Apr-11,11/04/11,1133.54,Swift,A32155,Mental Health-Residential,Residential Placements,643460,ADULT SOCIAL CARE,Social Care & Learning,Adult Social Care,,,
http://www.havering.gov.uk,London Borough of Havering,11/04/2011,10000497,FIRST STEP,22045,747,Apr-11,15/03/11,678,Manual Invoice Entry,A33175,Early Years Development (Main Gssgrant),Training Fees,612310,LEARNING & ACHIEVEMENT,Social Care & Learning,Learning & Achievement,,,
http://www.havering.gov.uk,London Borough of Havering,06/04/2011,10000498,FIRST STEP,22045,EEE APRIL 2011 MONTHLY PAYMEN,Apr-11,06/04/11,589.98,Manual Invoice Entry,A33100,Nursery Educ - 3 To 4 Yr Olds,Externally Provided Services,643190,LEARNING & ACHIEVEMENT,Social Care & Learning,Learning & Achievement,,,
http://www.havering.gov.uk,London Borough of Havering,13/04/2011,10000499,FIRST STEP,22045,FINAL 2YOP GRANT,Apr-11,13/04/11,1707.3,Manual Invoice Entry,A33105,Nursery Education 2Yr Olds,Supplies & Services-Other,648300,LEARNING & ACHIEVEMENT,Social Care & Learning,Learning & Achievement,,,
http://www.havering.gov.uk,London Borough of Havering,13/04/2011,10000500,FIRST STEP,22045,GRAD LEADER FUND,Apr-11,12/04/11,8415.68,Manual Invoice Entry,A33165,Graduate Leadership Fund,Supplies & Services-Other,648300,LEARNING & ACHIEVEMENT,Social Care & Learning,Learning & Achievement,,,
http://www.havering.gov.uk,London Borough of Havering,06/04/2011,10000501,ALLTYPE FENCING SPECIALISTS LTD,22532,7456,Apr-11,22/03/11,8141,Manual Invoice Entry,A46540,Surplus Property Expenses,Building Maintenance,621030,ASSET MANAGEMENT,Finance & Commerce,Asset Management,,,
http://www.havering.gov.uk,London Borough of Havering,11/04/2011,10000502,DURY FALLS RESIDENTIAL NURSING HOME * RM2 5EH,22683,040411-280411,Apr-11,11/04/11,1871.43,Swift,A31730,Older Persons-Residential,Residential Placements,643460,ADULT SOCIAL CARE,Social Care & Learning,Adult Social Care,,,
http://www.havering.gov.uk,London Borough of Havering,11/04/2011,10000503,DURY FALLS RESIDENTIAL NURSING HOME * RM2 5EH,22683,040411-280411,Apr-11,11/04/11,1571.43,Swift,A31730,Older Persons-Residential,Residential Placements,643460,ADULT SOCIAL CARE,Social Care & Learning,Adult Social Care,,,
http://www.havering.gov.uk,London Borough of Havering,11/04/2011,10000504,DURY FALLS RESIDENTIAL NURSING HOME * RM2 5EH,22683,040411-280411,Apr-11,11/04/11,1817.86,Swift,A31730,Older Persons-Residential,Residential Placements,643460,ADULT SOCIAL CARE,Social Care & Learning,Adult Social Care,,,
http://www.havering.gov.uk,London Borough of Havering,11/04/2011,10000505,DURY FALLS RESIDENTIAL NURSING HOME * RM2 5EH,22683,040411-280411,Apr-11,11/04/11,1817.86,Swift,A31730,Older Persons-Residential,Residential Placements,643460,ADULT SOCIAL CARE,Social Care & Learning,Adult Social Care,,,
http://www.havering.gov.uk,London Borough of Havering,11/04/2011,10000506,DURY FALLS RESIDENTIAL NURSING HOME * RM2 5EH,22683,040411-280411,Apr-11,11/04/11,1817.86,Swift,A31730,Older Persons-Residential,Residential Placements,643460,ADULT SOCIAL CARE,Social Care & Learning,Adult Social Care,,,
http://www.havering.gov.uk,London Borough of Havering,11/04/2011,10000507,DURY FALLS RESIDENTIAL NURSING HOME * RM2 5EH,22683,040411-280411,Apr-11,11/04/11,1817.86,Swift,A31730,Older Persons-Residential,Residential Placements,643460,ADULT SOCIAL CARE,Social Care & Learning,Adult Social Care,,,
http://www.havering.gov.uk,London Borough of Havering,11/04/2011,10000508,DURY FALLS RESIDENTIAL NURSING HOME * RM2 5EH,22683,040411-280411,Apr-11,11/04/11,1864.29,Swift,A31730,Older Persons-Residential,Residential Placements,643460,ADULT SOCIAL CARE,Social Care & Learning,Adult Social Care,,,
http://www.havering.gov.uk,London Borough of Havering,11/04/2011,10000509,DURY FALLS RESIDENTIAL NURSING HOME * RM2 5EH,22683,040411-280411,Apr-11,11/04/11,2021.43,Swift,A31730,Older Persons-Residential,Residential Placements,643460,ADULT SOCIAL CARE,Social Care & Learning,Adult Social Care,,,
http://www.havering.gov.uk,London Borough of Havering,13/04/2011,10000510,GOWER CONSULTANTS LTD,23205,34610,Apr-11,24/03/11,500,Manual Invoice Entry,A24210,Bereavement Customer Services Customer Services,Hardware,644310,HOUSING & PUBLIC PROTECTION,Culture & Community,Housing & Public Protection,,,
http://www.havering.gov.uk,London Borough of Havering,11/04/2011,10000511,EMERSON COURT * RM11 3AR CRAIGGOWAN HOUSE,23494,040411-280411,Apr-11,11/04/11,1817.86,Swift,A31730,Older Persons-Residential,Residential Placements,643460,ADULT SOCIAL CARE,Social Care & Learning,Adult Social Care,,,
http://www.havering.gov.uk,London Borough of Havering,11/04/2011,10000512,EMERSON COURT * RM11 3AR CRAIGGOWAN HOUSE,23494,040411-280411,Apr-11,11/04/11,1817.86,Swift,A31730,Older Persons-Residential,Residential Placements,643460,ADULT SOCIAL CARE,Social Care & Learning,Adult Social Care,,,
http://www.havering.gov.uk,London Borough of Havering,11/04/2011,10000513,EMERSON COURT * RM11 3AR CRAIGGOWAN HOUSE,23494,040411-280411,Apr-11,11/04/11,1571.43,Swift,A31730,Older Persons-Residential,Residential Placements,643460,ADULT SOCIAL CARE,Social Care & Learning,Adult Social Care,,,
http://www.havering.gov.uk,London Borough of Havering,11/04/2011,10000514,EMERSON COURT * RM11 3AR CRAIGGOWAN HOUSE,23494,040411-280411,Apr-11,11/04/11,1817.86,Swift,A31730,Older Persons-Residential,Residential Placements,643460,ADULT SOCIAL CARE,Social Care & Learning,Adult Social Care,,,
http://www.havering.gov.uk,London Borough of Havering,11/04/2011,10000515,EMERSON COURT * RM11 3AR CRAIGGOWAN HOUSE,23494,040411-280411,Apr-11,11/04/11,1817.86,Swift,A31730,Older Persons-Residential,Residential Placements,643460,ADULT SOCIAL CARE,Social Care & Learning,Adult Social Care,,,
http://www.havering.gov.uk,London Borough of Havering,11/04/2011,10000516,EMERSON COURT * RM11 3AR CRAIGGOWAN HOUSE,23494,040411-280411,Apr-11,11/04/11,1817.86,Swift,A31730,Older Persons-Residential,Residential Placements,643460,ADULT SOCIAL CARE,Social Care & Learning,Adult Social Care,,,
http://www.havering.gov.uk,London Borough of Havering,11/04/2011,10000517,EMERSON COURT * RM11 3AR CRAIGGOWAN HOUSE,23494,040411-280411,Apr-11,11/04/11,1817.86,Swift,A31730,Older Persons-Residential,Residential Placements,643460,ADULT SOCIAL CARE,Social Care & Learning,Adult Social Care,,,
http://www.havering.gov.uk,London Borough of Havering,11/04/2011,10000518,EMERSON COURT * RM11 3AR CRAIGGOWAN HOUSE,23494,040411-280411,Apr-11,11/04/11,1817.86,Swift,A31730,Older Persons-Residential,Residential Placements,643460,ADULT SOCIAL CARE,Social Care & Learning,Adult Social Care,,,
http://www.havering.gov.uk,London Borough of Havering,11/04/2011,10000519,EMERSON COURT * RM11 3AR CRAIGGOWAN HOUSE,23494,040411-280411,Apr-11,11/04/11,1817.86,Swift,A31730,Older Persons-Residential,Residential Placements,643460,ADULT SOCIAL CARE,Social Care & Learning,Adult Social Care,,,
http://www.havering.gov.uk,London Borough of Havering,11/04/2011,10000520,EMERSON COURT * RM11 3AR CRAIGGOWAN HOUSE,23494,100311-310311,Apr-11,11/04/11,1599.71,Swift,A31730,Older Persons-Residential,Residential Placements,643460,ADULT SOCIAL CARE,Social Care & Learning,Adult Social Care,,,
http://www.havering.gov.uk,London Borough of Havering,11/04/2011,10000521,SENSE * B29 6UB 524704461,23988,010411-030411,Apr-11,11/04/11,-30.49,Swift,A32020,Residential Provision,Residential Placements,643460,ADULT SOCIAL CARE,Social Care & Learning,Adult Social Care,,,
http://www.havering.gov.uk,London Borough of Havering,11/04/2011,10000522,SENSE * B29 6UB 524704461,23988,010411-030411,Apr-11,11/04/11,849.48,Swift,A32020,Residential Provision,Residential Placements,643460,ADULT SOCIAL CARE,Social Care & Learning,Adult Social Care,,,
http://www.havering.gov.uk,London Borough of Havering,11/04/2011,10000523,SENSE * B29 6UB 524704461,23988,040411-100411,Apr-11,11/04/11,-71.15,Swift,A32020,Residential Provision,Residential Placements,643460,ADULT SOCIAL CARE,Social Care & Learning,Adult Social Care,,,
http://www.havering.gov.uk,London Borough of Havering,11/04/2011,10000524,SENSE * B29 6UB 524704461,23988,040411-100411,Apr-11,11/04/11,1982.12,Swift,A32020,Residential Provision,Residential Placements,643460,ADULT SOCIAL CARE,Social Care & Learning,Adult Social Care,,,
http://www.havering.gov.uk,London Borough of Havering,11/04/2011,10000525,SENSE * B29 6UB 524704461,23988,110411-280411,Apr-11,11/04/11,-189.64,Swift,A32020,Residential Provision,Residential Placements,643460,ADULT SOCIAL CARE,Social Care & Learning,Adult Social Care,,,
http://www.havering.gov.uk,London Borough of Havering,11/04/2011,10000526,SENSE * B29 6UB 524704461,23988,110411-280411,Apr-11,11/04/11,5096.88,Swift,A32020,Residential Provision,Residential Placements,643460,ADULT SOCIAL CARE,Social Care & Learning,Adult Social Care,,,
http://www.havering.gov.uk,London Borough of Havering,06/04/2011,10000527,L & N TRAINING,24706,JW1006,Apr-11,23/03/11,1650,Manual Invoice Entry,A46420,House Services Management,Training Fees,612310,ASSET MANAGEMENT,Finance & Commerce,Asset Management,,,
http://www.havering.gov.uk,London Borough of Havering,06/04/2011,10000528,L & N TRAINING,24706,JW1007,Apr-11,23/03/11,600,Manual Invoice Entry,A46420,House Services Management,Recruitment Costs,612110,ASSET MANAGEMENT,Finance & Commerce,Asset Management,,,
http://www.havering.gov.uk,London Borough of Havering,11/04/2011,10000529,MILBURY CARE SERVICES LTD. * WS11 0EJ * RG9 1XL,26125,010411-030411,Apr-11,11/04/11,-47.27,Swift,A32004,PCT Block Contracts,Residential Placements,643460,ADULT SOCIAL CARE,Social Care & Learning,Adult Social Care,,,
http://www.havering.gov.uk,London Borough of Havering,11/04/2011,10000530,MILBURY CARE SERVICES LTD. * WS11 0EJ * RG9 1XL,26125,010411-030411,Apr-11,11/04/11,548.58,Swift,A32004,PCT Block Contracts,Residential Placements,643460,ADULT SOCIAL CARE,Social Care & Learning,Adult Social Care,,,
http://www.havering.gov.uk,London Borough of Havering,11/04/2011,10000531,MILBURY CARE SERVICES LTD. * WS11 0EJ * RG9 1XL,26125,010411-030411,Apr-11,11/04/11,-30.49,Swift,A32004,PCT Block Contracts,Residential Placements,643460,ADULT SOCIAL CARE,Social Care & Learning,Adult Social Care,,,
http://www.havering.gov.uk,London Borough of Havering,11/04/2011,10000532,MILBURY CARE SERVICES LTD. * WS11 0EJ * RG9 1XL,26125,010411-030411,Apr-11,11/04/11,548.58,Swift,A32004,PCT Block Contracts,Residential Placements,643460,ADULT SOCIAL CARE,Social Care & Learning,Adult Social Care,,,
http://www.havering.gov.uk,London Borough of Havering,11/04/2011,10000533,MILBURY CARE SERVICES LTD. * WS11 0EJ * RG9 1XL,26125,010411-030411,Apr-11,11/04/11,548.58,Swift,A32004,PCT Block Contracts,Residential Placements,643460,ADULT SOCIAL CARE,Social Care & Learning,Adult Social Care,,,
http://www.havering.gov.uk,London Borough of Havering,11/04/2011,10000534,MILBURY CARE SERVICES LTD. * WS11 0EJ * RG9 1XL,26125,010411-030411,Apr-11,11/04/11,548.58,Swift,A32004,PCT Block Contracts,Residential Placements,643460,ADULT SOCIAL CARE,Social Care & Learning,Adult Social Care,,,
http://www.havering.gov.uk,London Borough of Havering,11/04/2011,10000535,MILBURY CARE SERVICES LTD. * WS11 0EJ * RG9 1XL,26125,010411-030411,Apr-11,11/04/11,-30.49,Swift,A32004,PCT Block Contracts,Residential Placements,643460,ADULT SOCIAL CARE,Social Care & Learning,Adult Social Care,,,
http://www.havering.gov.uk,London Borough of Havering,11/04/2011,10000536,MILBURY CARE SERVICES LTD. * WS11 0EJ * RG9 1XL,26125,010411-030411,Apr-11,11/04/11,548.58,Swift,A32004,PCT Block Contracts,Residential Placements,643460,ADULT SOCIAL CARE,Social Care & Learning,Adult Social Care,,,
http://www.havering.gov.uk,London Borough of Havering,11/04/2011,10000537,MILBURY CARE SERVICES LTD. * WS11 0EJ * RG9 1XL,26125,010411-030411,Apr-11,11/04/11,-30.49,Swift,A32004,PCT Block Contracts,Residential Placements,643460,ADULT SOCIAL CARE,Social Care & Learning,Adult Social Care,,,
http://www.havering.gov.uk,London Borough of Havering,11/04/2011,10000538,MILBURY CARE SERVICES LTD. * WS11 0EJ * RG9 1XL,26125,010411-030411,Apr-11,11/04/11,548.58,Swift,A32004,PCT Block Contracts,Residential Placements,643460,ADULT SOCIAL CARE,Social Care & Learning,Adult Social Care,,,
http://www.havering.gov.uk,London Borough of Havering,11/04/2011,10000539,MILBURY CARE SERVICES LTD. * WS11 0EJ * RG9 1XL,26125,040411-100411,Apr-11,11/04/11,-110.3,Swift,A32004,PCT Block Contracts,Residential Placements,643460,ADULT SOCIAL CARE,Social Care & Learning,Adult Social Care,,,
http://www.havering.gov.uk,London Borough of Havering,11/04/2011,10000540,MILBURY CARE SERVICES LTD. * WS11 0EJ * RG9 1XL,26125,040411-100411,Apr-11,11/04/11,1280.01,Swift,A32004,PCT Block Contracts,Residential Placements,643460,ADULT SOCIAL CARE,Social Care & Learning,Adult Social Care,,,
http://www.havering.gov.uk,London Borough of Havering,11/04/2011,10000541,MILBURY CARE SERVICES LTD. * WS11 0EJ * RG9 1XL,26125,040411-100411,Apr-11,11/04/11,-71.15,Swift,A32004,PCT Block Contracts,Residential Placements,643460,ADULT SOCIAL CARE,Social Care & Learning,Adult Social Care,,,
http://www.havering.gov.uk,London Borough of Havering,11/04/2011,10000542,MILBURY CARE SERVICES LTD. * WS11 0EJ * RG9 1XL,26125,040411-100411,Apr-11,11/04/11,1280.01,Swift,A32004,PCT Block Contracts,Residential Placements,643460,ADULT SOCIAL CARE,Social Care & Learning,Adult Social Care,,,
http://www.havering.gov.uk,London Borough of Havering,11/04/2011,10000543,MILBURY CARE SERVICES LTD. * WS11 0EJ * RG9 1XL,26125,040411-100411,Apr-11,11/04/11,-71.15,Swift,A32004,PCT Block Contracts,Residential Placements,643460,ADULT SOCIAL CARE,Social Care & Learning,Adult Social Care,,,
http://www.havering.gov.uk,London Borough of Havering,11/04/2011,10000544,MILBURY CARE SERVICES LTD. * WS11 0EJ * RG9 1XL,26125,040411-100411,Apr-11,11/04/11,1280.01,Swift,A32004,PCT Block Contracts,Residential Placements,643460,ADULT SOCIAL CARE,Social Care & Learning,Adult Social Care,,,
http://www.havering.gov.uk,London Borough of Havering,11/04/2011,10000545,MILBURY CARE SERVICES LTD. * WS11 0EJ * RG9 1XL,26125,040411-100411,Apr-11,11/04/11,-71.15,Swift,A32004,PCT Block Contracts,Residential Placements,643460,ADULT SOCIAL CARE,Social Care & Learning,Adult Social Care,,,
http://www.havering.gov.uk,London Borough of Havering,11/04/2011,10000546,MILBURY CARE SERVICES LTD. * WS11 0EJ * RG9 1XL,26125,040411-100411,Apr-11,11/04/11,1280.01,Swift,A32004,PCT Block Contracts,Residential Placements,643460,ADULT SOCIAL CARE,Social Care & Learning,Adult Social Care,,,
http://www.havering.gov.uk,London Borough of Havering,11/04/2011,10000547,MILBURY CARE SERVICES LTD. * WS11 0EJ * RG9 1XL,26125,040411-280411,Apr-11,11/04/11,4571.46,Swift,A32004,PCT Block Contracts,Residential Placements,643460,ADULT SOCIAL CARE,Social Care & Learning,Adult Social Care,,,
http://www.havering.gov.uk,London Borough of Havering,11/04/2011,10000548,MILBURY CARE SERVICES LTD. * WS11 0EJ * RG9 1XL,26125,040411-280411,Apr-11,11/04/11,4571.46,Swift,A32004,PCT Block Contracts,Residential Placements,643460,ADULT SOCIAL CARE,Social Care & Learning,Adult Social Care,,,
http://www.havering.gov.uk,London Borough of Havering,11/04/2011,10000549,MILBURY CARE SERVICES LTD. * WS11 0EJ * RG9 1XL,26125,110411-280411,Apr-11,11/04/11,-295.07,Swift,A32004,PCT Block Contracts,Residential Placements,643460,ADULT SOCIAL CARE,Social Care & Learning,Adult Social Care,,,
http://www.havering.gov.uk,London Borough of Havering,11/04/2011,10000550,MILBURY CARE SERVICES LTD. * WS11 0EJ * RG9 1XL,26125,110411-280411,Apr-11,11/04/11,3291.45,Swift,A32004,PCT Block Contracts,Residential Placements,643460,ADULT SOCIAL CARE,Social Care & Learning,Adult Social Care,,,
http://www.havering.gov.uk,London Borough of Havering,11/04/2011,10000551,MILBURY CARE SERVICES LTD. * WS11 0EJ * RG9 1XL,26125,110411-280411,Apr-11,11/04/11,-189.64,Swift,A32004,PCT Block Contracts,Residential Placements,643460,ADULT SOCIAL CARE,Social Care & Learning,Adult Social Care,,,
http://www.havering.gov.uk,London Borough of Havering,11/04/2011,10000552,MILBURY CARE SERVICES LTD. * WS11 0EJ * RG9 1XL,26125,110411-280411,Apr-11,11/04/11,3291.45,Swift,A32004,PCT Block Contracts,Residential Placements,643460,ADULT SOCIAL CARE,Social Care & Learning,Adult Social Care,,,
http://www.havering.gov.uk,London Borough of Havering,11/04/2011,10000553,MILBURY CARE SERVICES LTD. * WS11 0EJ * RG9 1XL,26125,110411-280411,Apr-11,11/04/11,-189.64,Swift,A32004,PCT Block Contracts,Residential Placements,643460,ADULT SOCIAL CARE,Social Care & Learning,Adult Social Care,,,
http://www.havering.gov.uk,London Borough of Havering,11/04/2011,10000554,MILBURY CARE SERVICES LTD. * WS11 0EJ * RG9 1XL,26125,110411-280411,Apr-11,11/04/11,3291.45,Swift,A32004,PCT Block Contracts,Residential Placements,643460,ADULT SOCIAL CARE,Social Care & Learning,Adult Social Care,,,
http://www.havering.gov.uk,London Borough of Havering,11/04/2011,10000555,MILBURY CARE SERVICES LTD. * WS11 0EJ * RG9 1XL,26125,110411-280411,Apr-11,11/04/11,-189.64,Swift,A32004,PCT Block Contracts,Residential Placements,643460,ADULT SOCIAL CARE,Social Care & Learning,Adult Social Care,,,
http://www.havering.gov.uk,London Borough of Havering,11/04/2011,10000556,MILBURY CARE SERVICES LTD. * WS11 0EJ * RG9 1XL,26125,110411-280411,Apr-11,11/04/11,3291.45,Swift,A32004,PCT Block Contracts,Residential Placements,643460,ADULT SOCIAL CARE,Social Care & Learning,Adult Social Care,,,
http://www.havering.gov.uk,London Borough of Havering,04/04/2011,10000557,LANGTONS INFANTS SCHOOL,26267,MONTHLY ALLOCATION 08/04/11,Apr-11,04/04/11,22459,Manual Invoice Entry,0,Balance Sheet,LMS Chequebook Accounts Adjustments,192161,Old Z Code/Bal Shet,Finance & Commerce,Financial Services,,,
http://www.havering.gov.uk,London Borough of Havering,08/04/2011,10000558,LANGTONS INFANTS SCHOOL,26267,REIMB SICKNESS INSURANCE CLAIM,Apr-11,08/04/11,570,Manual Invoice Entry,A35655,Sickness Insurance Scheme,Other Employee Related,612750,LEARNING & ACHIEVEMENT,Social Care & Learning,Learning & Achievement,,,
http://www.havering.gov.uk,London Borough of Havering,04/04/2011,10000559,HOMESTEAD CARE SERVICE,26452,248,,,24078.18,Manual Invoice Entry,A31840,Pd Homecare,Home Care,643555,ADULT SOCIAL CARE,Social Care & Learning,Adult Social Care,,,
http://www.havering.gov.uk,London Borough of Havering,04/04/2011,10000560,HOMESTEAD CARE SERVICE,26452,248,Apr-11,05/04/11,168426.44,Manual Invoice Entry,A31740,Older Persons-Domiciliary,Home Care,643555,ADULT SOCIAL CARE,Social Care & Learning,Adult Social Care,,,
http://www.havering.gov.uk,London Borough of Havering,26/04/2011,10000561,HOMESTEAD CARE SERVICE,26452,254,,,1235.31,Manual Invoice Entry,A32022,Domicilary Care,Home Care,643555,ADULT SOCIAL CARE,Social Care & Learning,Adult Social Care,,,
http://www.havering.gov.uk,London Borough of Havering,26/04/2011,10000562,HOMESTEAD CARE SERVICE,26452,254,,,10397.93,Manual Invoice Entry,A31840,Pd Homecare,Home Care,643555,ADULT SOCIAL CARE,Social Care & Learning,Adult Social Care,,,
http://www.havering.gov.uk,London Borough of Havering,26/04/2011,10000563,HOMESTEAD CARE SERVICE,26452,254,Apr-11,19/04/11,83254.78,Manual Invoice Entry,A31740,Older Persons-Domiciliary,Home Care,643555,ADULT SOCIAL CARE,Social Care & Learning,Adult Social Care,,,
http://www.havering.gov.uk,London Borough of Havering,13/04/2011,10000564,REDACTED PERSONAL DATA,26715,F/P C:O & V 07/04-20/04/2011,Apr-11,13/04/11,2321.88,Foster Parents,A38200,New In-Year Placements,In House Foster Care Placements,643420,CHILDREN & YOUNG PEOPLE,Social Care & Learning,Children & Young People,,,
http://www.havering.gov.uk,London Borough of Havering,27/04/2011,10000565,REDACTED PERSONAL DATA,26715,F/P C:O & V 21/04-04/05/2011,Apr-11,27/04/11,2321.88,Foster Parents,A38200,New In-Year Placements,In House Foster Care Placements,643420,CHILDREN & YOUNG PEOPLE,Social Care & Learning,Children & Young People,,,
http://www.havering.gov.uk,London Borough of Havering,11/04/2011,10000566,MOORLANDS REHABILITATION (STAFFORDSHIRE) LTD *ST10 2EE,27001,040411-100411,Apr-11,11/04/11,-84.1,Swift,A32145,Mental Health-Nursing,Nursing Home Beds,643515,ADULT SOCIAL CARE,Social Care & Learning,Adult Social Care,,,
http://www.havering.gov.uk,London Borough of Havering,11/04/2011,10000567,MOORLANDS REHABILITATION (STAFFORDSHIRE) LTD *ST10 2EE,27001,040411-100411,Apr-11,11/04/11,621.02,Swift,A32145,Mental Health-Nursing,Nursing Home Beds,643515,ADULT SOCIAL CARE,Social Care & Learning,Adult Social Care,,,
http://www.havering.gov.uk,London Borough of Havering,11/04/2011,10000568,MOORLANDS REHABILITATION (STAFFORDSHIRE) LTD *ST10 2EE,27001,110411-280411,Apr-11,11/04/11,-219.73,Swift,A32145,Mental Health-Nursing,Nursing Home Beds,643515,ADULT SOCIAL CARE,Social Care & Learning,Adult Social Care,,,
http://www.havering.gov.uk,London Borough of Havering,11/04/2011,10000569,MOORLANDS REHABILITATION (STAFFORDSHIRE) LTD *ST10 2EE,27001,110411-280411,Apr-11,11/04/11,1596.91,Swift,A32145,Mental Health-Nursing,Nursing Home Beds,643515,ADULT SOCIAL CARE,Social Care & Learning,Adult Social Care,,,
http://www.havering.gov.uk,London Borough of Havering,11/04/2011,10000570,PARTNERSHIPS IN CARE * WD6 1JN * CO16 0BX * SG8 5JP * IP22 1BA *235134980*BURSTONHOU,27405,010411-030411,Apr-11,11/04/11,520.39,Swift,A32020,Residential Provision,Residential Placements,643460,ADULT SOCIAL CARE,Social Care & Learning,Adult Social Care,,,
http://www.havering.gov.uk,London Borough of Havering,11/04/2011,10000571,PARTNERSHIPS IN CARE * WD6 1JN * CO16 0BX * SG8 5JP * IP22 1BA *235134980*BURSTONHOU,27405,040411-280411,Apr-11,11/04/11,4336.57,Swift,A32020,Residential Provision,Residential Placements,643460,ADULT SOCIAL CARE,Social Care & Learning,Adult Social Care,,,
http://www.havering.gov.uk,London Borough of Havering,11/04/2011,10000572,ARRAN MANOR *RM11 2EJ,29288,040411-280411,Apr-11,11/04/11,2250,Swift,A31730,Older Persons-Residential,Residential Placements,643460,ADULT SOCIAL CARE,Social Care & Learning,Adult Social Care,,,
http://www.havering.gov.uk,London Borough of Havering,11/04/2011,10000573,ARRAN MANOR *RM11 2EJ,29288,040411-280411,Apr-11,11/04/11,2096.43,Swift,A31730,Older Persons-Residential,Residential Placements,643460,ADULT SOCIAL CARE,Social Care & Learning,Adult Social Care,,,
http://www.havering.gov.uk,London Borough of Havering,11/04/2011,10000574,ARRAN MANOR *RM11 2EJ,29288,040411-280411,Apr-11,11/04/11,1817.86,Swift,A31730,Older Persons-Residential,Residential Placements,643460,ADULT SOCIAL CARE,Social Care & Learning,Adult Social Care,,,
http://www.havering.gov.uk,London Borough of Havering,11/04/2011,10000575,ARRAN MANOR *RM11 2EJ,29288,040411-280411,Apr-11,11/04/11,1817.86,Swift,A31730,Older Persons-Residential,Residential Placements,643460,ADULT SOCIAL CARE,Social Care & Learning,Adult Social Care,,,
http://www.havering.gov.uk,London Borough of Havering,11/04/2011,10000576,ARRAN MANOR *RM11 2EJ,29288,040411-280411,Apr-11,11/04/11,1571.43,Swift,A31730,Older Persons-Residential,Residential Placements,643460,ADULT SOCIAL CARE,Social Care & Learning,Adult Social Care,,,
http://www.havering.gov.uk,London Borough of Havering,04/04/2011,10000577,COMMUNITY CARELINE SERVICES (HAVERING) LTD,29982,4851/2010,,,2517.94,Manual Invoice Entry,A32160,Mental Health-Domiciliary,Home Care,643555,ADULT SOCIAL CARE,Social Care & Learning,Adult Social Care,,,
http://www.havering.gov.uk,London Borough of Havering,04/04/2011,10000578,COMMUNITY CARELINE SERVICES (HAVERING) LTD,29982,4851/2010,,,6184.51,Manual Invoice Entry,A31840,Pd Homecare,Home Care,643555,ADULT SOCIAL CARE,Social Care & Learning,Adult Social Care,,,
http://www.havering.gov.uk,London Borough of Havering,04/04/2011,10000579,COMMUNITY CARELINE SERVICES (HAVERING) LTD,29982,4851/2010,Apr-11,03/03/11,72602.86,Manual Invoice Entry,A31740,Older Persons-Domiciliary,Home Care,643555,ADULT SOCIAL CARE,Social Care & Learning,Adult Social Care,,,
http://www.havering.gov.uk,London Borough of Havering,26/04/2011,10000580,COMMUNITY CARELINE SERVICES (HAVERING) LTD,29982,5201/2011,,,175.53,Manual Invoice Entry,A32160,Mental Health-Domiciliary,Home Care,643555,ADULT SOCIAL CARE,Social Care & Learning,Adult Social Care,,,
http://www.havering.gov.uk,London Borough of Havering,26/04/2011,10000581,COMMUNITY CARELINE SERVICES (HAVERING) LTD,29982,5201/2011,,,1088.55,Manual Invoice Entry,A32022,Domicilary Care,Home Care,643555,ADULT SOCIAL CARE,Social Care & Learning,Adult Social Care,,,
http://www.havering.gov.uk,London Borough of Havering,26/04/2011,10000582,COMMUNITY CARELINE SERVICES (HAVERING) LTD,29982,5201/2011,,,2998.42,Manual Invoice Entry,A31840,Pd Homecare,Home Care,643555,ADULT SOCIAL CARE,Social Care & Learning,Adult Social Care,,,
http://www.havering.gov.uk,London Borough of Havering,26/04/2011,10000583,COMMUNITY CARELINE SERVICES (HAVERING) LTD,29982,5201/2011,Apr-11,19/04/11,35217.31,Manual Invoice Entry,A31740,Older Persons-Domiciliary,Home Care,643555,ADULT SOCIAL CARE,Social Care & Learning,Adult Social Care,,,
http://www.havering.gov.uk,London Borough of Havering,04/04/2011,10000584,NEWTONS PRIMARY SCHOOL,32406,MONTHLY ALLOCATION 08/04/11,Apr-11,04/04/11,35202,Manual Invoice Entry,0,Balance Sheet,LMS Chequebook Accounts Adjustments,192161,Old Z Code/Bal Shet,Finance & Commerce,Financial Services,,,
http://www.havering.gov.uk,London Borough of Havering,08/04/2011,10000585,NEWTONS PRIMARY SCHOOL,32406,REIMB SICKNESS INSURANCE CLAIM,Apr-11,08/04/11,653.04,Manual Invoice Entry,A35655,Sickness Insurance Scheme,Other Employee Related,612750,LEARNING & ACHIEVEMENT,Social Care & Learning,Learning & Achievement,,,
http://www.havering.gov.uk,London Borough of Havering,11/04/2011,10000586,PARKSIDE *RM2 5EH,33538,040411-280411,Apr-11,11/04/11,1571.43,Swift,A31730,Older Persons-Residential,Residential Placements,643460,ADULT SOCIAL CARE,Social Care & Learning,Adult Social Care,,,
http://www.havering.gov.uk,London Borough of Havering,11/04/2011,10000587,PARKSIDE *RM2 5EH,33538,040411-280411,Apr-11,11/04/11,1571.43,Swift,A31730,Older Persons-Residential,Residential Placements,643460,ADULT SOCIAL CARE,Social Care & Learning,Adult Social Care,,,
http://www.havering.gov.uk,London Borough of Havering,11/04/2011,10000588,PARKSIDE *RM2 5EH,33538,040411-280411,Apr-11,11/04/11,1528.57,Swift,A31730,Older Persons-Residential,Residential Placements,643460,ADULT SOCIAL CARE,Social Care & Learning,Adult Social Care,,,
http://www.havering.gov.uk,London Borough of Havering,11/04/2011,10000589,PARKSIDE *RM2 5EH,33538,040411-280411,Apr-11,11/04/11,1571.43,Swift,A31730,Older Persons-Residential,Residential Placements,643460,ADULT SOCIAL CARE,Social Care & Learning,Adult Social Care,,,
http://www.havering.gov.uk,London Borough of Havering,11/04/2011,10000590,SCOPE *N7 9PW*805156939 233228685,33704,010411-030411,Apr-11,11/04/11,877.56,Swift,A31830,Phys Dis- Residential,Residential Placements,643460,ADULT SOCIAL CARE,Social Care & Learning,Adult Social Care,,,
http://www.havering.gov.uk,London Borough of Havering,11/04/2011,10000591,SCOPE *N7 9PW*805156939 233228685,33704,010411-030411,Apr-11,11/04/11,-30.49,Swift,A32020,Residential Provision,Residential Placements,643460,ADULT SOCIAL CARE,Social Care & Learning,Adult Social Care,,,
http://www.havering.gov.uk,London Borough of Havering,11/04/2011,10000592,SCOPE *N7 9PW*805156939 233228685,33704,010411-030411,Apr-11,11/04/11,573.86,Swift,A32020,Residential Provision,Residential Placements,643460,ADULT SOCIAL CARE,Social Care & Learning,Adult Social Care,,,
http://www.havering.gov.uk,London Borough of Havering,11/04/2011,10000593,SCOPE *N7 9PW*805156939 233228685,33704,040411-100411,Apr-11,11/04/11,-110.3,Swift,A32020,Residential Provision,Residential Placements,643460,ADULT SOCIAL CARE,Social Care & Learning,Adult Social Care,,,
http://www.havering.gov.uk,London Borough of Havering,11/04/2011,10000594,SCOPE *N7 9PW*805156939 233228685,33704,040411-100411,Apr-11,11/04/11,848.36,Swift,A32020,Residential Provision,Residential Placements,643460,ADULT SOCIAL CARE,Social Care & Learning,Adult Social Care,,,
http://www.havering.gov.uk,London Borough of Havering,11/04/2011,10000595,SCOPE *N7 9PW*805156939 233228685,33704,040411-100411,Apr-11,11/04/11,-71.15,Swift,A31830,Phys Dis- Residential,Residential Placements,643460,ADULT SOCIAL CARE,Social Care & Learning,Adult Social Care,,,
http://www.havering.gov.uk,London Borough of Havering,11/04/2011,10000596,SCOPE *N7 9PW*805156939 233228685,33704,040411-100411,Apr-11,11/04/11,1339,Swift,A31830,Phys Dis- Residential,Residential Placements,643460,ADULT SOCIAL CARE,Social Care & Learning,Adult Social Care,,,
http://www.havering.gov.uk,London Borough of Havering,11/04/2011,10000597,SCOPE *N7 9PW*805156939 233228685,33704,040411-280411,Apr-11,11/04/11,7313,Swift,A31830,Phys Dis- Residential,Residential Placements,643460,ADULT SOCIAL CARE,Social Care & Learning,Adult Social Care,,,
http://www.havering.gov.uk,London Borough of Havering,11/04/2011,10000598,SCOPE *N7 9PW*805156939 233228685,33704,110411-280411,Apr-11,11/04/11,-295.07,Swift,A32020,Residential Provision,Residential Placements,643460,ADULT SOCIAL CARE,Social Care & Learning,Adult Social Care,,,
http://www.havering.gov.uk,London Borough of Havering,11/04/2011,10000599,SCOPE *N7 9PW*805156939 233228685,33704,110411-280411,Apr-11,11/04/11,2181.5,Swift,A32020,Residential Provision,Residential Placements,643460,ADULT SOCIAL CARE,Social Care & Learning,Adult Social Care,,,
http://www.havering.gov.uk,London Borough of Havering,11/04/2011,10000600,SCOPE *N7 9PW*805156939 233228685,33704,110411-280411,Apr-11,11/04/11,-189.64,Swift,A31830,Phys Dis- Residential,Residential Placements,643460,ADULT SOCIAL CARE,Social Care & Learning,Adult Social Care,,,
http://www.havering.gov.uk,London Borough of Havering,11/04/2011,10000601,SCOPE *N7 9PW*805156939 233228685,33704,110411-280411,Apr-11,11/04/11,3443.14,Swift,A31830,Phys Dis- Residential,Residential Placements,643460,ADULT SOCIAL CARE,Social Care & Learning,Adult Social Care,,,
http://www.havering.gov.uk,London Borough of Havering,05/04/2011,10000602,TOPSY TURVY PLAYGROUP,33956,EEE APRIL 2011 MONTHLY PAYMENT,Apr-11,05/04/11,5350.29,Early Educational Entitlement,A33100,Nursery Educ - 3 To 4 Yr Olds,Externally Provided Services,643190,LEARNING & ACHIEVEMENT,Social Care & Learning,Learning & Achievement,,,
http://www.havering.gov.uk,London Borough of Havering,04/04/2011,10000603,BROADFORD PRIMARY SCHOOL,34561,MONTHLY ALLOCATION 08/04/11,Apr-11,04/04/11,35640,Manual Invoice Entry,0,Balance Sheet,LMS Chequebook Accounts Adjustments,192161,Old Z Code/Bal Shet,Finance & Commerce,Financial Services,,,
http://www.havering.gov.uk,London Borough of Havering,08/04/2011,10000604,BROADFORD PRIMARY SCHOOL,34561,REIMB SICKNESS INSURANCE CLAIM,Apr-11,08/04/11,3674.69,Manual Invoice Entry,A35655,Sickness Insurance Scheme,Other Employee Related,612750,LEARNING & ACHIEVEMENT,Social Care & Learning,Learning & Achievement,,,
http://www.havering.gov.uk,London Borough of Havering,11/04/2011,10000605,C.H.O.I.C.E. LTD *RG30 3ZR GU19 5AW*COMMUNITY HOMES OF INTENSIVE CARE,34950,010411-030411,Apr-11,11/04/11,923.04,Swift,A32020,Residential Provision,Residential Placements,643460,ADULT SOCIAL CARE,Social Care & Learning,Adult Social Care,,,
http://www.havering.gov.uk,London Borough of Havering,11/04/2011,10000606,C.H.O.I.C.E. LTD *RG30 3ZR GU19 5AW*COMMUNITY HOMES OF INTENSIVE CARE,34950,040411-280411,Apr-11,11/04/11,7692.04,Swift,A32020,Residential Provision,Residential Placements,643460,ADULT SOCIAL CARE,Social Care & Learning,Adult Social Care,,,
http://www.havering.gov.uk,London Borough of Havering,15/04/2011,10000607,GOLDSBOROUGH HOME CARE & NURSING SERVICES LTD,35282,248/RF/0028558,,,823.59,Manual Invoice Entry,A32022,Domicilary Care,Home Care,643555,ADULT SOCIAL CARE,Social Care & Learning,Adult Social Care,,,
http://www.havering.gov.uk,London Borough of Havering,15/04/2011,10000608,GOLDSBOROUGH HOME CARE & NURSING SERVICES LTD,35282,248/RF/0028558,,,10580.29,Manual Invoice Entry,A31840,Pd Homecare,Home Care,643555,ADULT SOCIAL CARE,Social Care & Learning,Adult Social Care,,,
http://www.havering.gov.uk,London Borough of Havering,15/04/2011,10000609,GOLDSBOROUGH HOME CARE & NURSING SERVICES LTD,35282,248/RF/0028558,Apr-11,07/04/11,41897.32,Manual Invoice Entry,A31740,Older Persons-Domiciliary,Home Care,643555,ADULT SOCIAL CARE,Social Care & Learning,Adult Social Care,,,
http://www.havering.gov.uk,London Borough of Havering,06/04/2011,10000611,DAGENHAM MOTORS,35790,14238977,,,26106.2,Manual Invoice Entry,A90040,Parks & Open Spaces Capital,"Vehicles, plant & machinery purchase",911700,CULTURE & LEISURE,Culture & Community,Culture & Leisure,,,
http://www.havering.gov.uk,London Borough of Havering,06/04/2011,10000610,DAGENHAM MOTORS,35790,14238977,Apr-11,30/03/11,200,Manual Invoice Entry,A47500,Vehicle & Plant,Vehicle Licences,631320,ASSET MANAGEMENT,Finance & Commerce,Asset Management,,,
http://www.havering.gov.uk,London Borough of Havering,06/04/2011,10000613,DAGENHAM MOTORS,35790,14238988,,,26106.2,Manual Invoice Entry,A90040,Parks & Open Spaces Capital,"Vehicles, plant & machinery purchase",911700,CULTURE & LEISURE,Culture & Community,Culture & Leisure,,,
http://www.havering.gov.uk,London Borough of Havering,06/04/2011,10000612,DAGENHAM MOTORS,35790,14238988,Apr-11,30/03/11,200,Manual Invoice Entry,A47500,Vehicle & Plant,Vehicle Licences,631320,ASSET MANAGEMENT,Finance & Commerce,Asset Management,,,
http://www.havering.gov.uk,London Borough of Havering,06/04/2011,10000615,DAGENHAM MOTORS,35790,14238989,,,26106.2,Manual Invoice Entry,A90040,Parks & Open Spaces Capital,"Vehicles, plant & machinery purchase",911700,CULTURE & LEISURE,Culture & Community,Culture & Leisure,,,
http://www.havering.gov.uk,London Borough of Havering,06/04/2011,10000614,DAGENHAM MOTORS,35790,14238989,Apr-11,30/03/11,200,Manual Invoice Entry,A47500,Vehicle & Plant,Vehicle Licences,631320,ASSET MANAGEMENT,Finance & Commerce,Asset Management,,,
http://www.havering.gov.uk,London Borough of Havering,06/04/2011,10000617,DAGENHAM MOTORS,35790,14238991,,,26106.2,Manual Invoice Entry,A90040,Parks & Open Spaces Capital,"Vehicles, plant & machinery purchase",911700,CULTURE & LEISURE,Culture & Community,Culture & Leisure,,,
http://www.havering.gov.uk,London Borough of Havering,06/04/2011,10000616,DAGENHAM MOTORS,35790,14238991,Apr-11,30/03/11,200,Manual Invoice Entry,A47500,Vehicle & Plant,Vehicle Licences,631320,ASSET MANAGEMENT,Finance & Commerce,Asset Management,,,
http://www.havering.gov.uk,London Borough of Havering,06/04/2011,10000619,DAGENHAM MOTORS,35790,14238992,,,26106.2,Manual Invoice Entry,A90040,Parks & Open Spaces Capital,"Vehicles, plant & machinery purchase",911700,CULTURE & LEISURE,Culture & Community,Culture & Leisure,,,
http://www.havering.gov.uk,London Borough of Havering,06/04/2011,10000618,DAGENHAM MOTORS,35790,14238992,Apr-11,30/03/11,200,Manual Invoice Entry,A47500,Vehicle & Plant,Vehicle Licences,631320,ASSET MANAGEMENT,Finance & Commerce,Asset Management,,,
http://www.havering.gov.uk,London Borough of Havering,06/04/2011,10000621,DAGENHAM MOTORS,35790,14238997,,,21356,Manual Invoice Entry,A90040,Parks & Open Spaces Capital,"Vehicles, plant & machinery purchase",911700,CULTURE & LEISURE,Culture & Community,Culture & Leisure,,,
http://www.havering.gov.uk,London Borough of Havering,06/04/2011,10000620,DAGENHAM MOTORS,35790,14238997,Apr-11,30/03/11,200,Manual Invoice Entry,A47500,Vehicle & Plant,Vehicle Licences,631320,ASSET MANAGEMENT,Finance & Commerce,Asset Management,,,
http://www.havering.gov.uk,London Borough of Havering,06/04/2011,10000623,DAGENHAM MOTORS,35790,14239007,,,17805.15,Manual Invoice Entry,A90040,Parks & Open Spaces Capital,"Vehicles, plant & machinery purchase",911700,CULTURE & LEISURE,Culture & Community,Culture & Leisure,,,
http://www.havering.gov.uk,London Borough of Havering,06/04/2011,10000622,DAGENHAM MOTORS,35790,14239007,Apr-11,30/03/11,200,Manual Invoice Entry,A47500,Vehicle & Plant,Vehicle Licences,631320,ASSET MANAGEMENT,Finance & Commerce,Asset Management,,,
http://www.havering.gov.uk,London Borough of Havering,06/04/2011,10000625,DAGENHAM MOTORS,35790,14239826,,,12427,Manual Invoice Entry,A90040,Parks & Open Spaces Capital,"Vehicles, plant & machinery purchase",911700,CULTURE & LEISURE,Culture & Community,Culture & Leisure,,,
http://www.havering.gov.uk,London Borough of Havering,06/04/2011,10000624,DAGENHAM MOTORS,35790,14239826,Apr-11,30/03/11,200,Manual Invoice Entry,A47500,Vehicle & Plant,Vehicle Licences,631320,ASSET MANAGEMENT,Finance & Commerce,Asset Management,,,
http://www.havering.gov.uk,London Borough of Havering,06/04/2011,10000627,DAGENHAM MOTORS,35790,14239827,,,12693.03,Manual Invoice Entry,A90040,Parks & Open Spaces Capital,"Vehicles, plant & machinery purchase",911700,CULTURE & LEISURE,Culture & Community,Culture & Leisure,,,
http://www.havering.gov.uk,London Borough of Havering,06/04/2011,10000626,DAGENHAM MOTORS,35790,14239827,Apr-11,31/03/11,200,Manual Invoice Entry,A47500,Vehicle & Plant,Vehicle Licences,631320,ASSET MANAGEMENT,Finance & Commerce,Asset Management,,,
http://www.havering.gov.uk,London Borough of Havering,06/04/2011,10000629,DAGENHAM MOTORS,35790,14239830,,,18667.15,Manual Invoice Entry,A90040,Parks & Open Spaces Capital,"Vehicles, plant & machinery purchase",911700,CULTURE & LEISURE,Culture & Community,Culture & Leisure,,,
http://www.havering.gov.uk,London Borough of Havering,06/04/2011,10000628,DAGENHAM MOTORS,35790,14239830,Apr-11,31/03/11,200,Manual Invoice Entry,A47500,Vehicle & Plant,Vehicle Licences,631320,ASSET MANAGEMENT,Finance & Commerce,Asset Management,,,
http://www.havering.gov.uk,London Borough of Havering,06/04/2011,10000631,DAGENHAM MOTORS,35790,14239831,,,12693.03,Manual Invoice Entry,A90040,Parks & Open Spaces Capital,"Vehicles, plant & machinery purchase",911700,CULTURE & LEISURE,Culture & Community,Culture & Leisure,,,
http://www.havering.gov.uk,London Borough of Havering,06/04/2011,10000630,DAGENHAM MOTORS,35790,14239831,Apr-11,30/03/11,200,Manual Invoice Entry,A47500,Vehicle & Plant,Vehicle Licences,631320,ASSET MANAGEMENT,Finance & Commerce,Asset Management,,,
http://www.havering.gov.uk,London Borough of Havering,06/04/2011,10000633,DAGENHAM MOTORS,35790,14239835,,,16423.53,Manual Invoice Entry,A90040,Parks & Open Spaces Capital,"Vehicles, plant & machinery purchase",911700,CULTURE & LEISURE,Culture & Community,Culture & Leisure,,,
http://www.havering.gov.uk,London Borough of Havering,06/04/2011,10000632,DAGENHAM MOTORS,35790,14239835,Apr-11,30/03/11,200,Manual Invoice Entry,A47500,Vehicle & Plant,Vehicle Licences,631320,ASSET MANAGEMENT,Finance & Commerce,Asset Management,,,
http://www.havering.gov.uk,London Borough of Havering,06/04/2011,10000635,DAGENHAM MOTORS,35790,14239837,,,12693.03,Manual Invoice Entry,A90040,Parks & Open Spaces Capital,"Vehicles, plant & machinery purchase",911700,CULTURE & LEISURE,Culture & Community,Culture & Leisure,,,
http://www.havering.gov.uk,London Borough of Havering,06/04/2011,10000634,DAGENHAM MOTORS,35790,14239837,Apr-11,30/03/11,200,Manual Invoice Entry,A47500,Vehicle & Plant,Vehicle Licences,631320,ASSET MANAGEMENT,Finance & Commerce,Asset Management,,,
http://www.havering.gov.uk,London Borough of Havering,07/04/2011,10000636,FOSTERING NETWORK,36821,6653,,,1922.84,Manual Invoice Entry,A38600,Fostering Carers Costs,Subscriptions/Registration Fees,647200,CHILDREN & YOUNG PEOPLE,Social Care & Learning,Children & Young People,,,
http://www.havering.gov.uk,London Borough of Havering,12/04/2011,10000637,STAR MINI CABS,37619,233,,,150,Manual Invoice Entry,A33540,Post 16 Support,Transport Sundries,631350,CHILDREN & YOUNG PEOPLE,Social Care & Learning,Children & Young People,,,
http://www.havering.gov.uk,London Borough of Havering,12/04/2011,10000638,STAR MINI CABS,37619,233,Apr-11,01/03/11,384,Manual Invoice Entry,A33310,Sec Home To School Trans,Plant/Vehicle Hire,634010,LEARNING & ACHIEVEMENT,Social Care & Learning,Learning & Achievement,,,
http://www.havering.gov.uk,London Borough of Havering,12/04/2011,10000639,STAR MINI CABS,37619,233,,,15639.5,Manual Invoice Entry,A33520,Spec To Home To Sch Trans,Plant/Vehicle Hire,634010,CHILDREN & YOUNG PEOPLE,Social Care & Learning,Children & Young People,,,
http://www.havering.gov.uk,London Borough of Havering,11/04/2011,10000640,LUKKA CARE HOMES LTD *RM12 6LX*RAVENSCOUR,38505,040411-280411,Apr-11,11/04/11,1675,Swift,A31720,Older People-Nursing,Nursing Home Beds,643515,ADULT SOCIAL CARE,Social Care & Learning,Adult Social Care,,,
http://www.havering.gov.uk,London Borough of Havering,11/04/2011,10000641,LUKKA CARE HOMES LTD *RM12 6LX*RAVENSCOUR,38505,040411-280411,Apr-11,11/04/11,1728.57,Swift,A31720,Older People-Nursing,Nursing Home Beds,643515,ADULT SOCIAL CARE,Social Care & Learning,Adult Social Care,,,
http://www.havering.gov.uk,London Borough of Havering,11/04/2011,10000642,LUKKA CARE HOMES LTD *RM12 6LX*RAVENSCOUR,38505,040411-280411,Apr-11,11/04/11,1728.57,Swift,A31720,Older People-Nursing,Nursing Home Beds,643515,ADULT SOCIAL CARE,Social Care & Learning,Adult Social Care,,,
http://www.havering.gov.uk,London Borough of Havering,11/04/2011,10000643,LUKKA CARE HOMES LTD *RM12 6LX*RAVENSCOUR,38505,040411-280411,Apr-11,11/04/11,1728.57,Swift,A31720,Older People-Nursing,Nursing Home Beds,643515,ADULT SOCIAL CARE,Social Care & Learning,Adult Social Care,,,
http://www.havering.gov.uk,London Borough of Havering,11/04/2011,10000644,LUKKA CARE HOMES LTD *RM12 6LX*RAVENSCOUR,38505,040411-280411,Apr-11,11/04/11,1728.57,Swift,A31720,Older People-Nursing,Nursing Home Beds,643515,ADULT SOCIAL CARE,Social Care & Learning,Adult Social Care,,,
http://www.havering.gov.uk,London Borough of Havering,11/04/2011,10000645,LUKKA CARE HOMES LTD *RM12 6LX*RAVENSCOUR,38505,040411-280411,Apr-11,11/04/11,1728.57,Swift,A31720,Older People-Nursing,Nursing Home Beds,643515,ADULT SOCIAL CARE,Social Care & Learning,Adult Social Care,,,
http://www.havering.gov.uk,London Borough of Havering,11/04/2011,10000646,LUKKA CARE HOMES LTD *RM12 6LX*RAVENSCOUR,38505,040411-280411,Apr-11,11/04/11,1728.57,Swift,A31720,Older People-Nursing,Nursing Home Beds,643515,ADULT SOCIAL CARE,Social Care & Learning,Adult Social Care,,,
http://www.havering.gov.uk,London Borough of Havering,11/04/2011,10000647,LUKKA CARE HOMES LTD *RM12 6LX*RAVENSCOUR,38505,040411-280411,Apr-11,11/04/11,1728.57,Swift,A31720,Older People-Nursing,Nursing Home Beds,643515,ADULT SOCIAL CARE,Social Care & Learning,Adult Social Care,,,
http://www.havering.gov.uk,London Borough of Havering,11/04/2011,10000648,LUKKA CARE HOMES LTD *RM12 6LX*RAVENSCOUR,38505,040411-280411,Apr-11,11/04/11,1817.86,Swift,A31730,Older Persons-Residential,Residential Placements,643460,ADULT SOCIAL CARE,Social Care & Learning,Adult Social Care,,,
http://www.havering.gov.uk,London Borough of Havering,11/04/2011,10000649,LUKKA CARE HOMES LTD *RM12 6LX*RAVENSCOUR,38505,040411-280411,Apr-11,11/04/11,1728.57,Swift,A31720,Older People-Nursing,Nursing Home Beds,643515,ADULT SOCIAL CARE,Social Care & Learning,Adult Social Care,,,
http://www.havering.gov.uk,London Borough of Havering,11/04/2011,10000650,LUKKA CARE HOMES LTD *RM12 6LX*RAVENSCOUR,38505,040411-280411,Apr-11,11/04/11,1728.57,Swift,A31720,Older People-Nursing,Nursing Home Beds,643515,ADULT SOCIAL CARE,Social Care & Learning,Adult Social Care,,,
http://www.havering.gov.uk,London Borough of Havering,11/04/2011,10000651,LUKKA CARE HOMES LTD *RM12 6LX*RAVENSCOUR,38505,040411-280411,Apr-11,11/04/11,1571.43,Swift,A31730,Older Persons-Residential,Residential Placements,643460,ADULT SOCIAL CARE,Social Care & Learning,Adult Social Care,,,
http://www.havering.gov.uk,London Borough of Havering,11/04/2011,10000652,LUKKA CARE HOMES LTD *RM12 6LX*RAVENSCOUR,38505,040411-280411,Apr-11,11/04/11,1728.57,Swift,A31720,Older People-Nursing,Nursing Home Beds,643515,ADULT SOCIAL CARE,Social Care & Learning,Adult Social Care,,,
http://www.havering.gov.uk,London Borough of Havering,11/04/2011,10000653,LUKKA CARE HOMES LTD *RM12 6LX*RAVENSCOUR,38505,040411-280411,Apr-11,11/04/11,1675,Swift,A31720,Older People-Nursing,Nursing Home Beds,643515,ADULT SOCIAL CARE,Social Care & Learning,Adult Social Care,,,
http://www.havering.gov.uk,London Borough of Havering,11/04/2011,10000654,LUKKA CARE HOMES LTD *RM12 6LX*RAVENSCOUR,38505,040411-280411,Apr-11,11/04/11,1728.57,Swift,A31730,Older Persons-Residential,Residential Placements,643460,ADULT SOCIAL CARE,Social Care & Learning,Adult Social Care,,,
http://www.havering.gov.uk,London Borough of Havering,11/04/2011,10000655,LUKKA CARE HOMES LTD *RM12 6LX*RAVENSCOUR,38505,040411-280411,Apr-11,11/04/11,1728.57,Swift,A31720,Older People-Nursing,Nursing Home Beds,643515,ADULT SOCIAL CARE,Social Care & Learning,Adult Social Care,,,
http://www.havering.gov.uk,London Borough of Havering,11/04/2011,10000656,LUKKA CARE HOMES LTD *RM12 6LX*RAVENSCOUR,38505,040411-280411,Apr-11,11/04/11,1760.71,Swift,A31720,Older People-Nursing,Nursing Home Beds,643515,ADULT SOCIAL CARE,Social Care & Learning,Adult Social Care,,,
http://www.havering.gov.uk,London Borough of Havering,11/04/2011,10000657,LUKKA CARE HOMES LTD *RM12 6LX*RAVENSCOUR,38505,040411-280411,Apr-11,11/04/11,1817.86,Swift,A31730,Older Persons-Residential,Residential Placements,643460,ADULT SOCIAL CARE,Social Care & Learning,Adult Social Care,,,
http://www.havering.gov.uk,London Borough of Havering,11/04/2011,10000658,LUKKA CARE HOMES LTD *RM12 6LX*RAVENSCOUR,38505,040411-280411,Apr-11,11/04/11,1675,Swift,A31720,Older People-Nursing,Nursing Home Beds,643515,ADULT SOCIAL CARE,Social Care & Learning,Adult Social Care,,,
http://www.havering.gov.uk,London Borough of Havering,11/04/2011,10000659,LUKKA CARE HOMES LTD *RM12 6LX*RAVENSCOUR,38505,040411-280411,Apr-11,11/04/11,1728.57,Swift,A31720,Older People-Nursing,Nursing Home Beds,643515,ADULT SOCIAL CARE,Social Care & Learning,Adult Social Care,,,
http://www.havering.gov.uk,London Borough of Havering,11/04/2011,10000660,LUKKA CARE HOMES LTD *RM12 6LX*RAVENSCOUR,38505,040411-280411,Apr-11,11/04/11,1675,Swift,A31720,Older People-Nursing,Nursing Home Beds,643515,ADULT SOCIAL CARE,Social Care & Learning,Adult Social Care,,,
http://www.havering.gov.uk,London Borough of Havering,11/04/2011,10000661,LUKKA CARE HOMES LTD *RM12 6LX*RAVENSCOUR,38505,040411-280411,Apr-11,11/04/11,1728.57,Swift,A31720,Older People-Nursing,Nursing Home Beds,643515,ADULT SOCIAL CARE,Social Care & Learning,Adult Social Care,,,
http://www.havering.gov.uk,London Borough of Havering,11/04/2011,10000662,LUKKA CARE HOMES LTD *RM12 6LX*RAVENSCOUR,38505,040411-280411,Apr-11,11/04/11,1675,Swift,A31720,Older People-Nursing,Nursing Home Beds,643515,ADULT SOCIAL CARE,Social Care & Learning,Adult Social Care,,,
http://www.havering.gov.uk,London Borough of Havering,11/04/2011,10000663,LUKKA CARE HOMES LTD *RM12 6LX*RAVENSCOUR,38505,040411-280411,Apr-11,11/04/11,1760.71,Swift,A31720,Older People-Nursing,Nursing Home Beds,643515,ADULT SOCIAL CARE,Social Care & Learning,Adult Social Care,,,
http://www.havering.gov.uk,London Borough of Havering,11/04/2011,10000664,LUKKA CARE HOMES LTD *RM12 6LX*RAVENSCOUR,38505,040411-280411,Apr-11,11/04/11,1728.57,Swift,A31720,Older People-Nursing,Nursing Home Beds,643515,ADULT SOCIAL CARE,Social Care & Learning,Adult Social Care,,,
http://www.havering.gov.uk,London Borough of Havering,11/04/2011,10000665,LUKKA CARE HOMES LTD *RM12 6LX*RAVENSCOUR,38505,240311-310311,Apr-11,11/04/11,581.71,Swift,A31730,Older Persons-Residential,Residential Placements,643460,ADULT SOCIAL CARE,Social Care & Learning,Adult Social Care,,,
http://www.havering.gov.uk,London Borough of Havering,11/04/2011,10000666,LUKKA CARE HOMES LTD *RM12 6LX*RAVENSCOUR,38505,260111-230311,Apr-11,11/04/11,3940.98,Swift,A31720,Older People-Nursing,Respite Care,643550,ADULT SOCIAL CARE,Social Care & Learning,Adult Social Care,,,
http://www.havering.gov.uk,London Borough of Havering,11/04/2011,10000667,ALTON HOUSE * RM12 4YS BARRS,39463,040311-160311,Apr-11,11/04/11,872.52,Swift,A31730,Older Persons-Residential,Respite Care,643550,ADULT SOCIAL CARE,Social Care & Learning,Adult Social Care,,,
http://www.havering.gov.uk,London Borough of Havering,11/04/2011,10000668,ALTON HOUSE * RM12 4YS BARRS,39463,040411-280411,Apr-11,11/04/11,1821.43,Swift,A31730,Older Persons-Residential,Residential Placements,643460,ADULT SOCIAL CARE,Social Care & Learning,Adult Social Care,,,
http://www.havering.gov.uk,London Borough of Havering,11/04/2011,10000669,ALTON HOUSE * RM12 4YS BARRS,39463,040411-280411,Apr-11,11/04/11,1817.86,Swift,A31730,Older Persons-Residential,Residential Placements,643460,ADULT SOCIAL CARE,Social Care & Learning,Adult Social Care,,,
http://www.havering.gov.uk,London Borough of Havering,11/04/2011,10000670,ALTON HOUSE * RM12 4YS BARRS,39463,040411-280411,Apr-11,11/04/11,1817.86,Swift,A31730,Older Persons-Residential,Residential Placements,643460,ADULT SOCIAL CARE,Social Care & Learning,Adult Social Care,,,
http://www.havering.gov.uk,London Borough of Havering,11/04/2011,10000671,ALTON HOUSE * RM12 4YS BARRS,39463,040411-280411,Apr-11,11/04/11,1528.57,Swift,A31730,Older Persons-Residential,Residential Placements,643460,ADULT SOCIAL CARE,Social Care & Learning,Adult Social Care,,,
http://www.havering.gov.uk,London Borough of Havering,11/04/2011,10000672,ALTON HOUSE * RM12 4YS BARRS,39463,040411-280411,Apr-11,11/04/11,1817.86,Swift,A31730,Older Persons-Residential,Residential Placements,643460,ADULT SOCIAL CARE,Social Care & Learning,Adult Social Care,,,
http://www.havering.gov.uk,London Borough of Havering,11/04/2011,10000673,ALTON HOUSE * RM12 4YS BARRS,39463,040411-280411,Apr-11,11/04/11,1571.43,Swift,A31730,Older Persons-Residential,Residential Placements,643460,ADULT SOCIAL CARE,Social Care & Learning,Adult Social Care,,,
http://www.havering.gov.uk,London Borough of Havering,11/04/2011,10000674,ALTON HOUSE * RM12 4YS BARRS,39463,040411-280411,Apr-11,11/04/11,1528.57,Swift,A31730,Older Persons-Residential,Residential Placements,643460,ADULT SOCIAL CARE,Social Care & Learning,Adult Social Care,,,
http://www.havering.gov.uk,London Borough of Havering,11/04/2011,10000675,ALTON HOUSE * RM12 4YS BARRS,39463,160311-310311,Apr-11,11/04/11,1163.43,Swift,A31730,Older Persons-Residential,Residential Placements,643460,ADULT SOCIAL CARE,Social Care & Learning,Adult Social Care,,,
http://www.havering.gov.uk,London Borough of Havering,11/04/2011,10000676,ALTON HOUSE * RM12 4YS BARRS,39463,170311-310311,Apr-11,11/04/11,1090.71,Swift,A31730,Older Persons-Residential,Residential Placements,643460,ADULT SOCIAL CARE,Social Care & Learning,Adult Social Care,,,
http://www.havering.gov.uk,London Borough of Havering,04/04/2011,10000677,HAROLD COURT SCHOOL,39924,MONTHLY ALLOC,Apr-11,04/04/11,26772,Manual Invoice Entry,0,Balance Sheet,LMS Chequebook Accounts Adjustments,192161,Old Z Code/Bal Shet,Finance & Commerce,Financial Services,,,
http://www.havering.gov.uk,London Borough of Havering,11/04/2011,10000678,BROOK CARE HOME * SS4 1HN,40838,040411-280411,Apr-11,11/04/11,2402.36,Swift,A32155,Mental Health-Residential,Residential Placements,643460,ADULT SOCIAL CARE,Social Care & Learning,Adult Social Care,,,
http://www.havering.gov.uk,London Borough of Havering,07/04/2011,10000679,MATTHEWS & SON (JACK REPAIRS) LTD,40976,60679,Apr-11,,812,Tranfuel,A47560,Transport Workshop,Stock-Direct Purchases,641235,ASSET MANAGEMENT,Finance & Commerce,Asset Management,,,
http://www.havering.gov.uk,London Borough of Havering,27/04/2011,10000680,REDACTED PERSONAL DATA,41464,D/P 02/05-29/,Apr-11,27/04/11,1316,DIRECT PAYMENTS,A32022,Domicilary Care,Social Services Client Direct Payments,662110,ADULT SOCIAL CARE,Social Care & Learning,Adult Social Care,,,
http://www.havering.gov.uk,London Borough of Havering,11/04/2011,10000681,CRANHAM COURT NURSING HOME *RM14 3NU,41473,040411-280411,Apr-11,11/04/11,1728.57,Swift,A31720,Older People-Nursing,Respite Care,643550,ADULT SOCIAL CARE,Social Care & Learning,Adult Social Care,,,
http://www.havering.gov.uk,London Borough of Havering,11/04/2011,10000682,CRANHAM COURT NURSING HOME *RM14 3NU,41473,040411-280411,Apr-11,11/04/11,2321.43,Swift,A31820,Phys Dis-Nursing,Nursing Home Beds,643515,ADULT SOCIAL CARE,Social Care & Learning,Adult Social Care,,,
http://www.havering.gov.uk,London Borough of Havering,11/04/2011,10000683,CRANHAM COURT NURSING HOME *RM14 3NU,41473,040411-280411,Apr-11,11/04/11,1675,Swift,A31720,Older People-Nursing,Nursing Home Beds,643515,ADULT SOCIAL CARE,Social Care & Learning,Adult Social Care,,,
http://www.havering.gov.uk,London Borough of Havering,11/04/2011,10000684,CRANHAM COURT NURSING HOME *RM14 3NU,41473,040411-280411,Apr-11,11/04/11,1728.57,Swift,A31720,Older People-Nursing,Nursing Home Beds,643515,ADULT SOCIAL CARE,Social Care & Learning,Adult Social Care,,,
http://www.havering.gov.uk,London Borough of Havering,11/04/2011,10000685,CRANHAM COURT NURSING HOME *RM14 3NU,41473,040411-280411,Apr-11,11/04/11,1728.57,Swift,A31720,Older People-Nursing,Nursing Home Beds,643515,ADULT SOCIAL CARE,Social Care & Learning,Adult Social Care,,,
http://www.havering.gov.uk,London Borough of Havering,11/04/2011,10000686,CRANHAM COURT NURSING HOME *RM14 3NU,41473,040411-280411,Apr-11,11/04/11,1675,Swift,A31720,Older People-Nursing,Nursing Home Beds,643515,ADULT SOCIAL CARE,Social Care & Learning,Adult Social Care,,,
http://www.havering.gov.uk,London Borough of Havering,11/04/2011,10000687,CRANHAM COURT NURSING HOME *RM14 3NU,41473,040411-280411,Apr-11,11/04/11,1675,Swift,A31720,Older People-Nursing,Nursing Home Beds,643515,ADULT SOCIAL CARE,Social Care & Learning,Adult Social Care,,,
http://www.havering.gov.uk,London Borough of Havering,11/04/2011,10000688,CRANHAM COURT NURSING HOME *RM14 3NU,41473,040411-280411,Apr-11,11/04/11,1675,Swift,A31720,Older People-Nursing,Nursing Home Beds,643515,ADULT SOCIAL CARE,Social Care & Learning,Adult Social Care,,,
http://www.havering.gov.uk,London Borough of Havering,11/04/2011,10000689,CRANHAM COURT NURSING HOME *RM14 3NU,41473,040411-280411,Apr-11,11/04/11,1728.57,Swift,A31720,Older People-Nursing,Nursing Home Beds,643515,ADULT SOCIAL CARE,Social Care & Learning,Adult Social Care,,,
http://www.havering.gov.uk,London Borough of Havering,11/04/2011,10000690,CRANHAM COURT NURSING HOME *RM14 3NU,41473,040411-280411,Apr-11,11/04/11,1675,Swift,A31720,Older People-Nursing,Nursing Home Beds,643515,ADULT SOCIAL CARE,Social Care & Learning,Adult Social Care,,,
http://www.havering.gov.uk,London Borough of Havering,11/04/2011,10000691,CRANHAM COURT NURSING HOME *RM14 3NU,41473,040411-280411,Apr-11,11/04/11,1675,Swift,A31720,Older People-Nursing,Nursing Home Beds,643515,ADULT SOCIAL CARE,Social Care & Learning,Adult Social Care,,,
http://www.havering.gov.uk,London Borough of Havering,11/04/2011,10000692,CRANHAM COURT NURSING HOME *RM14 3NU,41473,040411-280411,Apr-11,11/04/11,1675,Swift,A31720,Older People-Nursing,Nursing Home Beds,643515,ADULT SOCIAL CARE,Social Care & Learning,Adult Social Care,,,
http://www.havering.gov.uk,London Borough of Havering,11/04/2011,10000693,CRANHAM COURT NURSING HOME *RM14 3NU,41473,040411-280411,Apr-11,11/04/11,1817.86,Swift,A31730,Older Persons-Residential,Residential Placements,643460,ADULT SOCIAL CARE,Social Care & Learning,Adult Social Care,,,
http://www.havering.gov.uk,London Borough of Havering,11/04/2011,10000694,CRANHAM COURT NURSING HOME *RM14 3NU,41473,040411-280411,Apr-11,11/04/11,1817.86,Swift,A31730,Older Persons-Residential,Residential Placements,643460,ADULT SOCIAL CARE,Social Care & Learning,Adult Social Care,,,
http://www.havering.gov.uk,London Borough of Havering,11/04/2011,10000695,CRANHAM COURT NURSING HOME *RM14 3NU,41473,040411-280411,Apr-11,11/04/11,1817.86,Swift,A31730,Older Persons-Residential,Residential Placements,643460,ADULT SOCIAL CARE,Social Care & Learning,Adult Social Care,,,
http://www.havering.gov.uk,London Borough of Havering,11/04/2011,10000696,CRANHAM COURT NURSING HOME *RM14 3NU,41473,040411-280411,Apr-11,11/04/11,1728.57,Swift,A31720,Older People-Nursing,Nursing Home Beds,643515,ADULT SOCIAL CARE,Social Care & Learning,Adult Social Care,,,
http://www.havering.gov.uk,London Borough of Havering,11/04/2011,10000697,CRANHAM COURT NURSING HOME *RM14 3NU,41473,040411-280411,Apr-11,11/04/11,1675,Swift,A31720,Older People-Nursing,Nursing Home Beds,643515,ADULT SOCIAL CARE,Social Care & Learning,Adult Social Care,,,
http://www.havering.gov.uk,London Borough of Havering,11/04/2011,10000698,CRANHAM COURT NURSING HOME *RM14 3NU,41473,040411-280411,Apr-11,11/04/11,1728.57,Swift,A31720,Older People-Nursing,Nursing Home Beds,643515,ADULT SOCIAL CARE,Social Care & Learning,Adult Social Care,,,
http://www.havering.gov.uk,London Borough of Havering,11/04/2011,10000699,CRANHAM COURT NURSING HOME *RM14 3NU,41473,040411-280411,Apr-11,11/04/11,1728.57,Swift,A31720,Older People-Nursing,Nursing Home Beds,643515,ADULT SOCIAL CARE,Social Care & Learning,Adult Social Care,,,
http://www.havering.gov.uk,London Borough of Havering,11/04/2011,10000700,CRANHAM COURT NURSING HOME *RM14 3NU,41473,040411-280411,Apr-11,11/04/11,1675,Swift,A31720,Older People-Nursing,Nursing Home Beds,643515,ADULT SOCIAL CARE,Social Care & Learning,Adult Social Care,,,
http://www.havering.gov.uk,London Borough of Havering,11/04/2011,10000701,CRANHAM COURT NURSING HOME *RM14 3NU,41473,170810-290910,Apr-11,11/04/11,2881,Swift,A31720,Older People-Nursing,Respite Care,643550,ADULT SOCIAL CARE,Social Care & Learning,Adult Social Care,,,
http://www.havering.gov.uk,London Borough of Havering,11/04/2011,10000702,CRANHAM COURT NURSING HOME *RM14 3NU,41473,180311-310311,Apr-11,11/04/11,1018,Swift,A31730,Older Persons-Residential,Residential Placements,643460,ADULT SOCIAL CARE,Social Care & Learning,Adult Social Care,,,
http://www.havering.gov.uk,London Borough of Havering,11/04/2011,10000703,CRANHAM COURT NURSING HOME *RM14 3NU,41473,230211-310311,Apr-11,11/04/11,2558.29,Swift,A31720,Older People-Nursing,Nursing Home Beds,643515,ADULT SOCIAL CARE,Social Care & Learning,Adult Social Care,,,
http://www.havering.gov.uk,London Borough of Havering,11/04/2011,10000704,CRANHAM COURT NURSING HOME *RM14 3NU,41473,290910-310311,Apr-11,11/04/11,12328,Swift,A31720,Older People-Nursing,Nursing Home Beds,643515,ADULT SOCIAL CARE,Social Care & Learning,Adult Social Care,,,
